{"text_format":"1","workbook":"xlsx","n_sheets":5,"sheets":["Analysis description","Description","GRAPHS FOR PAPER","GRAPHS","DATA COLLATED"],"not_rendered":{"charts":4,"images":0,"macros":1,"external_links":0,"defined_names":0,"comments":0,"pivot_tables":0},"unopened":[],"bounds":{"document_bytes":16777216,"sheet_cells":100000,"rows_first":2000,"rows_last":500,"rows_between":2000,"halvings":0,"cell_chars":16384,"cell_head_chars":4096},"cells_cut":0,"cells_raw":0,"read":"whole","date_system":"1900"}

{"sheet":"Analysis description","index":0,"n_rows":7,"n_cols":1,"rows_kept":7,"cut":false,"hidden":false,"merged":[]}
["Warm-up data for Bombus terrestris workers after 2 h in the fridge"]
[]
["Aim to calculate equilibrated body surface temp after warm-up and max rate of warm up (degrees/min)"]
[]
["Equilibrated temp: normally calculated as average of last 10 minutes but interval adjusted to ensure flat line"]
[]
["Max rate: calculated as any max rate beginning at 18 celcius"]

{"sheet":"Description","index":1,"n_rows":7,"n_cols":1,"rows_kept":7,"cut":false,"hidden":false,"merged":[]}
["Warm-up data for Bombus terrestris workers after 2 h in the fridge"]
[]
["Aim to calculate equilibrated body surface temp after warm-up and max rate of warm up (degrees/min)"]
[]
["Equilibrated temp: normally calculated as average of 6 minutes"]
[]
["Max rate: calculated as any max rate above 18 celcius"]

{"sheet":"GRAPHS FOR PAPER","index":2,"n_rows":26,"n_cols":2,"rows_kept":26,"cut":false,"hidden":false,"merged":[]}
[]
[]
[]
[]
[]
[]
[]
[]
[]
[]
[]
[]
[]
[]
[]
[]
[]
[]
[]
["beta0",1.5677000000000001]
["beta1",-0.10349999999999999]
["beta2",-0.15820999999999999]
[]
[]
["b0",25.390999999999998]
["b1",-0.60094000000000003]

{"sheet":"GRAPHS","index":3,"n_rows":0,"n_cols":0,"rows_kept":0,"cut":false,"hidden":false,"merged":[]}

{"sheet":"DATA COLLATED","index":4,"n_rows":420,"n_cols":19,"rows_kept":420,"cut":false,"hidden":false,"merged":[]}
["Bee","Dose","ug Dose","log(ug Dose)","Equilibrated temp (oC)","Warming rate (oC/min)",null,null,null,"DOSE","ug DOSE","ln substitute",null,null,null,null,"FITTED CURVES"]
[1,1,0,-2.0969100130080562,25.053333333333331,1.008333333333332,null,null,null,1,0,{"$f":"1/125","v":8.0000000000000002E-3},null,null,null,null,-2.1,{"$f":"'GRAPHS FOR PAPER'!B$20+'GRAPHS FOR PAPER'!B$21*'DATA COLLATED'!Q2+'GRAPHS FOR PAPER'!B$22*'DATA COLLATED'!Q2*'DATA COLLATED'!Q2","v":1.0873439},{"$f":"'GRAPHS FOR PAPER'!B$25+'GRAPHS FOR PAPER'!B$26*'DATA COLLATED'!Q2","v":26.652973999999997}]
[2,5,1.28,0.10720996964786837,26.450000000000003,1.5499999999999998,null,null,null,2,0.08,null,null,null,null,null,-2.09,{"$f":"'GRAPHS FOR PAPER'!B$20+'GRAPHS FOR PAPER'!B$21*'DATA COLLATED'!Q3+'GRAPHS FOR PAPER'!B$22*'DATA COLLATED'!Q3*'DATA COLLATED'!Q3","v":1.0929378990000003},{"$f":"'GRAPHS FOR PAPER'!B$25+'GRAPHS FOR PAPER'!B$26*'DATA COLLATED'!Q3","v":26.646964599999997}]
[3,1,0,-2.0969100130080562,27.327777777777779,1.3722222222222225,null,null,null,3,0.2,null,null,null,null,null,-2.08,{"$f":"'GRAPHS FOR PAPER'!B$20+'GRAPHS FOR PAPER'!B$21*'DATA COLLATED'!Q4+'GRAPHS FOR PAPER'!B$22*'DATA COLLATED'!Q4*'DATA COLLATED'!Q4","v":1.0985002559999999},{"$f":"'GRAPHS FOR PAPER'!B$25+'GRAPHS FOR PAPER'!B$26*'DATA COLLATED'!Q4","v":26.640955199999997}]
[4,1,0,-2.0969100130080562,24.5,0.72999999999999976,null,null,null,4,0.51,null,null,null,null,null,-2.0699999999999998,{"$f":"'GRAPHS FOR PAPER'!B$20+'GRAPHS FOR PAPER'!B$21*'DATA COLLATED'!Q5+'GRAPHS FOR PAPER'!B$22*'DATA COLLATED'!Q5*'DATA COLLATED'!Q5","v":1.1040309710000002},{"$f":"'GRAPHS FOR PAPER'!B$25+'GRAPHS FOR PAPER'!B$26*'DATA COLLATED'!Q5","v":26.634945799999997}]
[5,3,0.2,-0.69897000433601875,25.37777777777778,0.85416666666666696,null,null,null,5,1.28,null,null,null,null,null,-2.06,{"$f":"'GRAPHS FOR PAPER'!B$20+'GRAPHS FOR PAPER'!B$21*'DATA COLLATED'!Q6+'GRAPHS FOR PAPER'!B$22*'DATA COLLATED'!Q6*'DATA COLLATED'!Q6","v":1.109530044},{"$f":"'GRAPHS FOR PAPER'!B$25+'GRAPHS FOR PAPER'!B$26*'DATA COLLATED'!Q6","v":26.628936399999997}]
[6,1,0,-2.0969100130080562,26.553333333333331,1.1166666666666671,null,null,null,6,3.2,null,null,null,null,null,-2.0499999999999998,{"$f":"'GRAPHS FOR PAPER'!B$20+'GRAPHS FOR PAPER'!B$21*'DATA COLLATED'!Q7+'GRAPHS FOR PAPER'!B$22*'DATA COLLATED'!Q7*'DATA COLLATED'!Q7","v":1.1149974750000002},{"$f":"'GRAPHS FOR PAPER'!B$25+'GRAPHS FOR PAPER'!B$26*'DATA COLLATED'!Q7","v":26.622926999999997}]
[7,2,0.08,-1.0969100130080565,28.22,1.7166666666666668,null,null,null,7,8,null,null,null,null,null,-2.04,{"$f":"'GRAPHS FOR PAPER'!B$20+'GRAPHS FOR PAPER'!B$21*'DATA COLLATED'!Q8+'GRAPHS FOR PAPER'!B$22*'DATA COLLATED'!Q8*'DATA COLLATED'!Q8","v":1.1204332640000003},{"$f":"'GRAPHS FOR PAPER'!B$25+'GRAPHS FOR PAPER'!B$26*'DATA COLLATED'!Q8","v":26.616917599999997}]
[8,4,0.51,-0.29242982390206362,29.49666666666667,2.0249999999999995,null,null,null,8,20,null,null,null,null,null,-2.0299999999999998,{"$f":"'GRAPHS FOR PAPER'!B$20+'GRAPHS FOR PAPER'!B$21*'DATA COLLATED'!Q9+'GRAPHS FOR PAPER'!B$22*'DATA COLLATED'!Q9*'DATA COLLATED'!Q9","v":1.1258374110000002},{"$f":"'GRAPHS FOR PAPER'!B$25+'GRAPHS FOR PAPER'!B$26*'DATA COLLATED'!Q9","v":26.610908199999997}]
[9,9,50,1.6989700043360187,24.755555555555556,0.64999999999999947,null,null,null,9,50,null,null,null,null,null,-2.02,{"$f":"'GRAPHS FOR PAPER'!B$20+'GRAPHS FOR PAPER'!B$21*'DATA COLLATED'!Q10+'GRAPHS FOR PAPER'!B$22*'DATA COLLATED'!Q10*'DATA COLLATED'!Q10","v":1.131209916},{"$f":"'GRAPHS FOR PAPER'!B$25+'GRAPHS FOR PAPER'!B$26*'DATA COLLATED'!Q10","v":26.604898799999997}]
[10,3,0.2,-0.69897000433601875,25.411111111111111,1.6749999999999998,null,null,null,10,125,null,null,null,null,null,-2.0099999999999998,{"$f":"'GRAPHS FOR PAPER'!B$20+'GRAPHS FOR PAPER'!B$21*'DATA COLLATED'!Q11+'GRAPHS FOR PAPER'!B$22*'DATA COLLATED'!Q11*'DATA COLLATED'!Q11","v":1.1365507790000002},{"$f":"'GRAPHS FOR PAPER'!B$25+'GRAPHS FOR PAPER'!B$26*'DATA COLLATED'!Q11","v":26.598889399999997}]
[11,3,0.2,-0.69897000433601875,23.793333333333333,1.6166666666666671,null,null,null,null,null,null,null,null,null,null,-2,{"$f":"'GRAPHS FOR PAPER'!B$20+'GRAPHS FOR PAPER'!B$21*'DATA COLLATED'!Q12+'GRAPHS FOR PAPER'!B$22*'DATA COLLATED'!Q12*'DATA COLLATED'!Q12","v":1.1418600000000003},{"$f":"'GRAPHS FOR PAPER'!B$25+'GRAPHS FOR PAPER'!B$26*'DATA COLLATED'!Q12","v":26.592879999999997}]
[12,4,0.51,-0.29242982390206362,26,1.5750000000000002,null,null,null,null,null,null,null,null,null,null,-1.99,{"$f":"'GRAPHS FOR PAPER'!B$20+'GRAPHS FOR PAPER'!B$21*'DATA COLLATED'!Q13+'GRAPHS FOR PAPER'!B$22*'DATA COLLATED'!Q13*'DATA COLLATED'!Q13","v":1.147137579},{"$f":"'GRAPHS FOR PAPER'!B$25+'GRAPHS FOR PAPER'!B$26*'DATA COLLATED'!Q13","v":26.586870599999997}]
[13,9,50,1.6989700043360187,24.386666666666663,1.4666666666666668,null,null,null,null,null,null,null,null,null,null,-1.98,{"$f":"'GRAPHS FOR PAPER'!B$20+'GRAPHS FOR PAPER'!B$21*'DATA COLLATED'!Q14+'GRAPHS FOR PAPER'!B$22*'DATA COLLATED'!Q14*'DATA COLLATED'!Q14","v":1.1523835160000002},{"$f":"'GRAPHS FOR PAPER'!B$25+'GRAPHS FOR PAPER'!B$26*'DATA COLLATED'!Q14","v":26.580861199999998}]
[14,4,0.51,-0.29242982390206362,26.153333333333336,0.875,null,null,null,null,null,null,null,null,null,null,-1.97,{"$f":"'GRAPHS FOR PAPER'!B$20+'GRAPHS FOR PAPER'!B$21*'DATA COLLATED'!Q15+'GRAPHS FOR PAPER'!B$22*'DATA COLLATED'!Q15*'DATA COLLATED'!Q15","v":1.157597811},{"$f":"'GRAPHS FOR PAPER'!B$25+'GRAPHS FOR PAPER'!B$26*'DATA COLLATED'!Q15","v":26.574851799999998}]
[15,5,1.28,0.10720996964786837,26.761111111111109,2.1833333333333327,null,null,null,null,"denotes 1st experiment",null,null,null,null,null,-1.96,{"$f":"'GRAPHS FOR PAPER'!B$20+'GRAPHS FOR PAPER'!B$21*'DATA COLLATED'!Q16+'GRAPHS FOR PAPER'!B$22*'DATA COLLATED'!Q16*'DATA COLLATED'!Q16","v":1.1627804640000003},{"$f":"'GRAPHS FOR PAPER'!B$25+'GRAPHS FOR PAPER'!B$26*'DATA COLLATED'!Q16","v":26.568842399999998}]
[16,2,0.08,-1.0969100130080565,24.873333333333335,1.5500000000000025,null,null,null,null,null,null,null,null,null,null,-1.95,{"$f":"'GRAPHS FOR PAPER'!B$20+'GRAPHS FOR PAPER'!B$21*'DATA COLLATED'!Q17+'GRAPHS FOR PAPER'!B$22*'DATA COLLATED'!Q17*'DATA COLLATED'!Q17","v":1.1679314750000001},{"$f":"'GRAPHS FOR PAPER'!B$25+'GRAPHS FOR PAPER'!B$26*'DATA COLLATED'!Q17","v":26.562832999999998}]
[17,7,8,0.90308998699194354,26.877777777777776,1.3666666666666663,null,null,null,null,null,null,null,null,null,null,-1.94,{"$f":"'GRAPHS FOR PAPER'!B$20+'GRAPHS FOR PAPER'!B$21*'DATA COLLATED'!Q18+'GRAPHS FOR PAPER'!B$22*'DATA COLLATED'!Q18*'DATA COLLATED'!Q18","v":1.1730508440000003},{"$f":"'GRAPHS FOR PAPER'!B$25+'GRAPHS FOR PAPER'!B$26*'DATA COLLATED'!Q18","v":26.556823599999998}]
[19,6,3.2,0.50514997831990605,26.355555555555554,0.83333333333333326,null,null,null,null,null,null,null,null,null,null,-1.93,{"$f":"'GRAPHS FOR PAPER'!B$20+'GRAPHS FOR PAPER'!B$21*'DATA COLLATED'!Q19+'GRAPHS FOR PAPER'!B$22*'DATA COLLATED'!Q19*'DATA COLLATED'!Q19","v":1.1781385710000001},{"$f":"'GRAPHS FOR PAPER'!B$25+'GRAPHS FOR PAPER'!B$26*'DATA COLLATED'!Q19","v":26.550814199999998}]
[20,2,0.08,-1.0969100130080565,25.246666666666663,1.5333333333333332,null,null,null,null,null,null,null,null,null,null,-1.92,{"$f":"'GRAPHS FOR PAPER'!B$20+'GRAPHS FOR PAPER'!B$21*'DATA COLLATED'!Q20+'GRAPHS FOR PAPER'!B$22*'DATA COLLATED'!Q20*'DATA COLLATED'!Q20","v":1.1831946560000002},{"$f":"'GRAPHS FOR PAPER'!B$25+'GRAPHS FOR PAPER'!B$26*'DATA COLLATED'!Q20","v":26.544804799999998}]
[21,1,0,-2.0969100130080562,24.833333333333332,1.0166666666666657,null,null,null,null,null,null,null,null,null,null,-1.91,{"$f":"'GRAPHS FOR PAPER'!B$20+'GRAPHS FOR PAPER'!B$21*'DATA COLLATED'!Q21+'GRAPHS FOR PAPER'!B$22*'DATA COLLATED'!Q21*'DATA COLLATED'!Q21","v":1.1882190989999999},{"$f":"'GRAPHS FOR PAPER'!B$25+'GRAPHS FOR PAPER'!B$26*'DATA COLLATED'!Q21","v":26.538795399999998}]
[22,10,125,2.0969100130080562,24.373333333333335,0.64999999999999858,null,null,null,null,null,null,null,null,null,null,-1.9,{"$f":"'GRAPHS FOR PAPER'!B$20+'GRAPHS FOR PAPER'!B$21*'DATA COLLATED'!Q22+'GRAPHS FOR PAPER'!B$22*'DATA COLLATED'!Q22*'DATA COLLATED'!Q22","v":1.1932119000000001},{"$f":"'GRAPHS FOR PAPER'!B$25+'GRAPHS FOR PAPER'!B$26*'DATA COLLATED'!Q22","v":26.532785999999998}]
["23",7,8,0.90308998699194354,24.7,0.86666666666666892,null,null,null,null,null,null,null,null,null,null,-1.89,{"$f":"'GRAPHS FOR PAPER'!B$20+'GRAPHS FOR PAPER'!B$21*'DATA COLLATED'!Q23+'GRAPHS FOR PAPER'!B$22*'DATA COLLATED'!Q23*'DATA COLLATED'!Q23","v":1.1981730590000002},{"$f":"'GRAPHS FOR PAPER'!B$25+'GRAPHS FOR PAPER'!B$26*'DATA COLLATED'!Q23","v":26.526776599999998}]
[24,8,20,1.3010299956639813,25.094444444444445,2.0833166666666667,null,null,null,null,null,null,null,null,null,null,-1.88,{"$f":"'GRAPHS FOR PAPER'!B$20+'GRAPHS FOR PAPER'!B$21*'DATA COLLATED'!Q24+'GRAPHS FOR PAPER'!B$22*'DATA COLLATED'!Q24*'DATA COLLATED'!Q24","v":1.2031025760000003},{"$f":"'GRAPHS FOR PAPER'!B$25+'GRAPHS FOR PAPER'!B$26*'DATA COLLATED'!Q24","v":26.520767199999998}]
["25",6,3.2,0.50514997831990605,26.223809523809525,2.403731164793113,null,null,null,null,null,null,null,null,null,null,-1.8699999999999899,{"$f":"'GRAPHS FOR PAPER'!B$20+'GRAPHS FOR PAPER'!B$21*'DATA COLLATED'!Q25+'GRAPHS FOR PAPER'!B$22*'DATA COLLATED'!Q25*'DATA COLLATED'!Q25","v":1.2080004510000051},{"$f":"'GRAPHS FOR PAPER'!B$25+'GRAPHS FOR PAPER'!B$26*'DATA COLLATED'!Q25","v":26.514757799999991}]
["26",8,20,1.3010299956639813,24.25,0.31666111111111067,null,null,null,null,null,null,null,null,null,null,-1.8599999999999901,{"$f":"'GRAPHS FOR PAPER'!B$20+'GRAPHS FOR PAPER'!B$21*'DATA COLLATED'!Q26+'GRAPHS FOR PAPER'!B$22*'DATA COLLATED'!Q26*'DATA COLLATED'!Q26","v":1.2128666840000046},{"$f":"'GRAPHS FOR PAPER'!B$25+'GRAPHS FOR PAPER'!B$26*'DATA COLLATED'!Q26","v":26.508748399999991}]
["27",10,125,2.0969100130080562,23.733333333333334,0.55000000000000071,null,null,null,null,null,null,null,null,null,null,-1.8499999999999901,{"$f":"'GRAPHS FOR PAPER'!B$20+'GRAPHS FOR PAPER'!B$21*'DATA COLLATED'!Q27+'GRAPHS FOR PAPER'!B$22*'DATA COLLATED'!Q27*'DATA COLLATED'!Q27","v":1.2177012750000049},{"$f":"'GRAPHS FOR PAPER'!B$25+'GRAPHS FOR PAPER'!B$26*'DATA COLLATED'!Q27","v":26.502738999999991}]
[28,5,1.28,0.10720996964786837,27.8,2.2249999999999996,null,null,null,null,null,null,null,null,null,null,-1.8399999999999901,{"$f":"'GRAPHS FOR PAPER'!B$20+'GRAPHS FOR PAPER'!B$21*'DATA COLLATED'!Q28+'GRAPHS FOR PAPER'!B$22*'DATA COLLATED'!Q28*'DATA COLLATED'!Q28","v":1.222504224000005},{"$f":"'GRAPHS FOR PAPER'!B$25+'GRAPHS FOR PAPER'!B$26*'DATA COLLATED'!Q28","v":26.496729599999991}]
[29,6,3.2,0.50514997831990605,25.578333333333333,0.65000000000000036,null,null,null,null,null,null,null,null,null,null,-1.8299999999999901,{"$f":"'GRAPHS FOR PAPER'!B$20+'GRAPHS FOR PAPER'!B$21*'DATA COLLATED'!Q29+'GRAPHS FOR PAPER'!B$22*'DATA COLLATED'!Q29*'DATA COLLATED'!Q29","v":1.227275531000005},{"$f":"'GRAPHS FOR PAPER'!B$25+'GRAPHS FOR PAPER'!B$26*'DATA COLLATED'!Q29","v":26.490720199999991}]
["1-1",1,0,-2.0969100130080562,29.026666666666664,1.0666666666666664,null,null,null,null,null,null,null,null,null,null,-1.8199999999999901,{"$f":"'GRAPHS FOR PAPER'!B$20+'GRAPHS FOR PAPER'!B$21*'DATA COLLATED'!Q30+'GRAPHS FOR PAPER'!B$22*'DATA COLLATED'!Q30*'DATA COLLATED'!Q30","v":1.2320151960000048},{"$f":"'GRAPHS FOR PAPER'!B$25+'GRAPHS FOR PAPER'!B$26*'DATA COLLATED'!Q30","v":26.484710799999991}]
["1-2",1,0,-2.0969100130080562,31.473333333333336,1.0166666666666675,null,null,null,null,null,null,null,null,null,null,-1.8099999999999901,{"$f":"'GRAPHS FOR PAPER'!B$20+'GRAPHS FOR PAPER'!B$21*'DATA COLLATED'!Q31+'GRAPHS FOR PAPER'!B$22*'DATA COLLATED'!Q31*'DATA COLLATED'!Q31","v":1.2367232190000048},{"$f":"'GRAPHS FOR PAPER'!B$25+'GRAPHS FOR PAPER'!B$26*'DATA COLLATED'!Q31","v":26.478701399999991}]
["1-4",1,0,-2.0969100130080562,29.32,1.4500000000000002,null,null,null,null,null,null,null,null,null,null,-1.7999999999999901,{"$f":"'GRAPHS FOR PAPER'!B$20+'GRAPHS FOR PAPER'!B$21*'DATA COLLATED'!Q32+'GRAPHS FOR PAPER'!B$22*'DATA COLLATED'!Q32*'DATA COLLATED'!Q32","v":1.2413996000000047},{"$f":"'GRAPHS FOR PAPER'!B$25+'GRAPHS FOR PAPER'!B$26*'DATA COLLATED'!Q32","v":26.472691999999991}]
["1-5",1,0,-2.0969100130080562,null,0.82916666666666572,null,null,null,null,null,null,null,null,null,null,-1.78999999999999,{"$f":"'GRAPHS FOR PAPER'!B$20+'GRAPHS FOR PAPER'!B$21*'DATA COLLATED'!Q33+'GRAPHS FOR PAPER'!B$22*'DATA COLLATED'!Q33*'DATA COLLATED'!Q33","v":1.2460443390000047},{"$f":"'GRAPHS FOR PAPER'!B$25+'GRAPHS FOR PAPER'!B$26*'DATA COLLATED'!Q33","v":26.466682599999992}]
["2-1",2,0.08,-1.0969100130080565,26.411111111111111,1.2999999999999998,null,null,null,null,null,null,null,null,null,null,-1.77999999999999,{"$f":"'GRAPHS FOR PAPER'!B$20+'GRAPHS FOR PAPER'!B$21*'DATA COLLATED'!Q34+'GRAPHS FOR PAPER'!B$22*'DATA COLLATED'!Q34*'DATA COLLATED'!Q34","v":1.2506574360000047},{"$f":"'GRAPHS FOR PAPER'!B$25+'GRAPHS FOR PAPER'!B$26*'DATA COLLATED'!Q34","v":26.460673199999992}]
["2-2",2,0.08,-1.0969100130080565,23.450000000000003,2.0166666666666693,null,null,null,null,null,null,null,null,null,null,-1.76999999999999,{"$f":"'GRAPHS FOR PAPER'!B$20+'GRAPHS FOR PAPER'!B$21*'DATA COLLATED'!Q35+'GRAPHS FOR PAPER'!B$22*'DATA COLLATED'!Q35*'DATA COLLATED'!Q35","v":1.2552388910000047},{"$f":"'GRAPHS FOR PAPER'!B$25+'GRAPHS FOR PAPER'!B$26*'DATA COLLATED'!Q35","v":26.454663799999992}]
["2-3",2,0.08,-1.0969100130080565,24.939999999999998,0.98333333333333339,null,null,null,null,null,null,null,null,null,null,-1.75999999999999,{"$f":"'GRAPHS FOR PAPER'!B$20+'GRAPHS FOR PAPER'!B$21*'DATA COLLATED'!Q36+'GRAPHS FOR PAPER'!B$22*'DATA COLLATED'!Q36*'DATA COLLATED'!Q36","v":1.2597887040000046},{"$f":"'GRAPHS FOR PAPER'!B$25+'GRAPHS FOR PAPER'!B$26*'DATA COLLATED'!Q36","v":26.448654399999992}]
["2-4",2,0.08,-1.0969100130080565,25.338888888888892,2.3333333333333321,null,null,null,null,null,null,null,null,null,null,-1.74999999999999,{"$f":"'GRAPHS FOR PAPER'!B$20+'GRAPHS FOR PAPER'!B$21*'DATA COLLATED'!Q37+'GRAPHS FOR PAPER'!B$22*'DATA COLLATED'!Q37*'DATA COLLATED'!Q37","v":1.2643068750000046},{"$f":"'GRAPHS FOR PAPER'!B$25+'GRAPHS FOR PAPER'!B$26*'DATA COLLATED'!Q37","v":26.442644999999992}]
["3-5",3,0.2,-0.69897000433601875,24.561111111111114,1.9000000000000004,null,null,null,null,null,null,null,null,null,null,-1.73999999999999,{"$f":"'GRAPHS FOR PAPER'!B$20+'GRAPHS FOR PAPER'!B$21*'DATA COLLATED'!Q38+'GRAPHS FOR PAPER'!B$22*'DATA COLLATED'!Q38*'DATA COLLATED'!Q38","v":1.2687934040000046},{"$f":"'GRAPHS FOR PAPER'!B$25+'GRAPHS FOR PAPER'!B$26*'DATA COLLATED'!Q38","v":26.436635599999992}]
["3-1",3,0.2,-0.69897000433601875,25.894444444444446,2.25,null,null,null,null,null,null,null,null,null,null,-1.72999999999999,{"$f":"'GRAPHS FOR PAPER'!B$20+'GRAPHS FOR PAPER'!B$21*'DATA COLLATED'!Q39+'GRAPHS FOR PAPER'!B$22*'DATA COLLATED'!Q39*'DATA COLLATED'!Q39","v":1.2732482910000045},{"$f":"'GRAPHS FOR PAPER'!B$25+'GRAPHS FOR PAPER'!B$26*'DATA COLLATED'!Q39","v":26.430626199999992}]
["3-2",3,0.2,-0.69897000433601875,25.255555555555556,2.041666666666667,null,null,null,null,null,null,null,null,null,null,-1.71999999999999,{"$f":"'GRAPHS FOR PAPER'!B$20+'GRAPHS FOR PAPER'!B$21*'DATA COLLATED'!Q40+'GRAPHS FOR PAPER'!B$22*'DATA COLLATED'!Q40*'DATA COLLATED'!Q40","v":1.2776715360000046},{"$f":"'GRAPHS FOR PAPER'!B$25+'GRAPHS FOR PAPER'!B$26*'DATA COLLATED'!Q40","v":26.424616799999992}]
["3-3",3,0.2,-0.69897000433601875,23.316666666666666,0.70000000000000018,null,null,null,null,null,null,null,null,null,null,-1.70999999999999,{"$f":"'GRAPHS FOR PAPER'!B$20+'GRAPHS FOR PAPER'!B$21*'DATA COLLATED'!Q41+'GRAPHS FOR PAPER'!B$22*'DATA COLLATED'!Q41*'DATA COLLATED'!Q41","v":1.2820631390000046},{"$f":"'GRAPHS FOR PAPER'!B$25+'GRAPHS FOR PAPER'!B$26*'DATA COLLATED'!Q41","v":26.418607399999992}]
["3-4",3,0.2,-0.69897000433601875,24.600000000000005,0.54916666666666547,null,null,null,null,null,null,null,null,null,null,-1.69999999999999,{"$f":"'GRAPHS FOR PAPER'!B$20+'GRAPHS FOR PAPER'!B$21*'DATA COLLATED'!Q42+'GRAPHS FOR PAPER'!B$22*'DATA COLLATED'!Q42*'DATA COLLATED'!Q42","v":1.2864231000000044},{"$f":"'GRAPHS FOR PAPER'!B$25+'GRAPHS FOR PAPER'!B$26*'DATA COLLATED'!Q42","v":26.412597999999992}]
["4-1",4,0.51,-0.29242982390206362,26.555555555555557,1.6999999999999993,null,null,null,null,null,null,null,null,null,null,-1.68999999999999,{"$f":"'GRAPHS FOR PAPER'!B$20+'GRAPHS FOR PAPER'!B$21*'DATA COLLATED'!Q43+'GRAPHS FOR PAPER'!B$22*'DATA COLLATED'!Q43*'DATA COLLATED'!Q43","v":1.2907514190000045},{"$f":"'GRAPHS FOR PAPER'!B$25+'GRAPHS FOR PAPER'!B$26*'DATA COLLATED'!Q43","v":26.406588599999992}]
["4-2",4,0.51,-0.29242982390206362,23.966666666666669,1,null,null,null,null,null,null,null,null,null,null,-1.6799999999999899,{"$f":"'GRAPHS FOR PAPER'!B$20+'GRAPHS FOR PAPER'!B$21*'DATA COLLATED'!Q44+'GRAPHS FOR PAPER'!B$22*'DATA COLLATED'!Q44*'DATA COLLATED'!Q44","v":1.2950480960000044},{"$f":"'GRAPHS FOR PAPER'!B$25+'GRAPHS FOR PAPER'!B$26*'DATA COLLATED'!Q44","v":26.400579199999992}]
["4-3",4,0.51,-0.29242982390206362,27.274999999999995,1.2333333333333334,null,null,null,null,null,null,null,null,null,null,-1.6699999999999899,{"$f":"'GRAPHS FOR PAPER'!B$20+'GRAPHS FOR PAPER'!B$21*'DATA COLLATED'!Q45+'GRAPHS FOR PAPER'!B$22*'DATA COLLATED'!Q45*'DATA COLLATED'!Q45","v":1.2993131310000043},{"$f":"'GRAPHS FOR PAPER'!B$25+'GRAPHS FOR PAPER'!B$26*'DATA COLLATED'!Q45","v":26.394569799999992}]
["4-4",4,0.51,-0.29242982390206362,24.527777777777775,2.2500000000000018,null,null,null,null,null,null,null,null,null,null,-1.6599999999999899,{"$f":"'GRAPHS FOR PAPER'!B$20+'GRAPHS FOR PAPER'!B$21*'DATA COLLATED'!Q46+'GRAPHS FOR PAPER'!B$22*'DATA COLLATED'!Q46*'DATA COLLATED'!Q46","v":1.3035465240000044},{"$f":"'GRAPHS FOR PAPER'!B$25+'GRAPHS FOR PAPER'!B$26*'DATA COLLATED'!Q46","v":26.388560399999992}]
["5-1",5,1.28,0.10720996964786837,23.166666666666668,0.7166666666666659,null,null,null,null,null,null,null,null,null,null,-1.6499999999999899,{"$f":"'GRAPHS FOR PAPER'!B$20+'GRAPHS FOR PAPER'!B$21*'DATA COLLATED'!Q47+'GRAPHS FOR PAPER'!B$22*'DATA COLLATED'!Q47*'DATA COLLATED'!Q47","v":1.3077482750000042},{"$f":"'GRAPHS FOR PAPER'!B$25+'GRAPHS FOR PAPER'!B$26*'DATA COLLATED'!Q47","v":26.382550999999992}]
["5-2",5,1.28,0.10720996964786837,24.461111110000001,1.3000000000000007,null,null,null,null,null,null,null,null,null,null,-1.6399999999999899,{"$f":"'GRAPHS FOR PAPER'!B$20+'GRAPHS FOR PAPER'!B$21*'DATA COLLATED'!Q48+'GRAPHS FOR PAPER'!B$22*'DATA COLLATED'!Q48*'DATA COLLATED'!Q48","v":1.3119183840000042},{"$f":"'GRAPHS FOR PAPER'!B$25+'GRAPHS FOR PAPER'!B$26*'DATA COLLATED'!Q48","v":26.376541599999992}]
["5-3",5,1.28,0.10720996964786837,25.25,1.4416666674999998,null,null,null,null,null,null,null,null,null,null,-1.6299999999999899,{"$f":"'GRAPHS FOR PAPER'!B$20+'GRAPHS FOR PAPER'!B$21*'DATA COLLATED'!Q49+'GRAPHS FOR PAPER'!B$22*'DATA COLLATED'!Q49*'DATA COLLATED'!Q49","v":1.3160568510000044},{"$f":"'GRAPHS FOR PAPER'!B$25+'GRAPHS FOR PAPER'!B$26*'DATA COLLATED'!Q49","v":26.370532199999992}]
["5-4",5,1.28,0.10720996964786837,23.494444445000003,2.416666665000001,null,null,null,null,null,null,null,null,null,null,-1.6199999999999899,{"$f":"'GRAPHS FOR PAPER'!B$20+'GRAPHS FOR PAPER'!B$21*'DATA COLLATED'!Q50+'GRAPHS FOR PAPER'!B$22*'DATA COLLATED'!Q50*'DATA COLLATED'!Q50","v":1.3201636760000042},{"$f":"'GRAPHS FOR PAPER'!B$25+'GRAPHS FOR PAPER'!B$26*'DATA COLLATED'!Q50","v":26.364522799999992}]
["6-1",6,3.2,0.50514997831990605,23.672222222222221,1.2166666666666668,null,null,null,null,null,null,null,null,null,null,-1.6099999999999901,{"$f":"'GRAPHS FOR PAPER'!B$20+'GRAPHS FOR PAPER'!B$21*'DATA COLLATED'!Q51+'GRAPHS FOR PAPER'!B$22*'DATA COLLATED'!Q51*'DATA COLLATED'!Q51","v":1.3242388590000043},{"$f":"'GRAPHS FOR PAPER'!B$25+'GRAPHS FOR PAPER'!B$26*'DATA COLLATED'!Q51","v":26.358513399999993}]
["6-2",6,3.2,0.50514997831990605,26.046666666666663,1.3250000000000011,null,null,null,null,null,null,null,null,null,null,-1.5999999999999901,{"$f":"'GRAPHS FOR PAPER'!B$20+'GRAPHS FOR PAPER'!B$21*'DATA COLLATED'!Q52+'GRAPHS FOR PAPER'!B$22*'DATA COLLATED'!Q52*'DATA COLLATED'!Q52","v":1.328282400000004},{"$f":"'GRAPHS FOR PAPER'!B$25+'GRAPHS FOR PAPER'!B$26*'DATA COLLATED'!Q52","v":26.352503999999993}]
["6-3",6,3.2,0.50514997831990605,26.266666666666662,1.7666666666666675,null,null,null,null,null,null,null,null,null,null,-1.5899999999999901,{"$f":"'GRAPHS FOR PAPER'!B$20+'GRAPHS FOR PAPER'!B$21*'DATA COLLATED'!Q53+'GRAPHS FOR PAPER'!B$22*'DATA COLLATED'!Q53*'DATA COLLATED'!Q53","v":1.332294299000004},{"$f":"'GRAPHS FOR PAPER'!B$25+'GRAPHS FOR PAPER'!B$26*'DATA COLLATED'!Q53","v":26.346494599999993}]
["6-4",6,3.2,0.50514997831990605,23.066666666666666,1.7333333333333334,null,null,null,null,null,null,null,null,null,null,-1.5799999999999901,{"$f":"'GRAPHS FOR PAPER'!B$20+'GRAPHS FOR PAPER'!B$21*'DATA COLLATED'!Q54+'GRAPHS FOR PAPER'!B$22*'DATA COLLATED'!Q54*'DATA COLLATED'!Q54","v":1.3362745560000042},{"$f":"'GRAPHS FOR PAPER'!B$25+'GRAPHS FOR PAPER'!B$26*'DATA COLLATED'!Q54","v":26.340485199999993}]
["7-1",7,8,0.90308998699194354,24.933333333333334,0.87500000000000089,null,null,null,null,null,null,null,null,null,null,-1.5699999999999901,{"$f":"'GRAPHS FOR PAPER'!B$20+'GRAPHS FOR PAPER'!B$21*'DATA COLLATED'!Q55+'GRAPHS FOR PAPER'!B$22*'DATA COLLATED'!Q55*'DATA COLLATED'!Q55","v":1.3402231710000039},{"$f":"'GRAPHS FOR PAPER'!B$25+'GRAPHS FOR PAPER'!B$26*'DATA COLLATED'!Q55","v":26.334475799999993}]
["7-2",7,8,0.90308998699194354,26.133333333333329,1.1833333333333329,null,null,null,null,null,null,null,null,null,null,-1.5599999999999901,{"$f":"'GRAPHS FOR PAPER'!B$20+'GRAPHS FOR PAPER'!B$21*'DATA COLLATED'!Q56+'GRAPHS FOR PAPER'!B$22*'DATA COLLATED'!Q56*'DATA COLLATED'!Q56","v":1.344140144000004},{"$f":"'GRAPHS FOR PAPER'!B$25+'GRAPHS FOR PAPER'!B$26*'DATA COLLATED'!Q56","v":26.328466399999993}]
["7-3",7,8,0.90308998699194354,24.377777777777776,1.0000000000000018,null,null,null,null,null,null,null,null,null,null,-1.5499999999999901,{"$f":"'GRAPHS FOR PAPER'!B$20+'GRAPHS FOR PAPER'!B$21*'DATA COLLATED'!Q57+'GRAPHS FOR PAPER'!B$22*'DATA COLLATED'!Q57*'DATA COLLATED'!Q57","v":1.348025475000004},{"$f":"'GRAPHS FOR PAPER'!B$25+'GRAPHS FOR PAPER'!B$26*'DATA COLLATED'!Q57","v":26.322456999999993}]
["7-4",7,8,0.90308998699194354,23.033333333333331,2.0750000000000002,null,null,null,null,null,null,null,null,null,null,-1.53999999999999,{"$f":"'GRAPHS FOR PAPER'!B$20+'GRAPHS FOR PAPER'!B$21*'DATA COLLATED'!Q58+'GRAPHS FOR PAPER'!B$22*'DATA COLLATED'!Q58*'DATA COLLATED'!Q58","v":1.3518791640000041},{"$f":"'GRAPHS FOR PAPER'!B$25+'GRAPHS FOR PAPER'!B$26*'DATA COLLATED'!Q58","v":26.316447599999993}]
["7-5",7,8,0.90308998699194354,24.149999999999995,1.8166666666666664,null,null,null,null,null,null,null,null,null,null,-1.52999999999999,{"$f":"'GRAPHS FOR PAPER'!B$20+'GRAPHS FOR PAPER'!B$21*'DATA COLLATED'!Q59+'GRAPHS FOR PAPER'!B$22*'DATA COLLATED'!Q59*'DATA COLLATED'!Q59","v":1.355701211000004},{"$f":"'GRAPHS FOR PAPER'!B$25+'GRAPHS FOR PAPER'!B$26*'DATA COLLATED'!Q59","v":26.310438199999993}]
["8-1",8,20,1.3010299956639813,23.233333333333334,0.51666666666666572,null,null,null,null,null,null,null,null,null,null,-1.51999999999999,{"$f":"'GRAPHS FOR PAPER'!B$20+'GRAPHS FOR PAPER'!B$21*'DATA COLLATED'!Q60+'GRAPHS FOR PAPER'!B$22*'DATA COLLATED'!Q60*'DATA COLLATED'!Q60","v":1.3594916160000039},{"$f":"'GRAPHS FOR PAPER'!B$25+'GRAPHS FOR PAPER'!B$26*'DATA COLLATED'!Q60","v":26.304428799999993}]
["8-2",8,20,1.3010299956639813,28.161111111111111,1.5111111111111111,null,null,null,null,null,null,null,null,null,null,-1.50999999999999,{"$f":"'GRAPHS FOR PAPER'!B$20+'GRAPHS FOR PAPER'!B$21*'DATA COLLATED'!Q61+'GRAPHS FOR PAPER'!B$22*'DATA COLLATED'!Q61*'DATA COLLATED'!Q61","v":1.3632503790000037},{"$f":"'GRAPHS FOR PAPER'!B$25+'GRAPHS FOR PAPER'!B$26*'DATA COLLATED'!Q61","v":26.298419399999993}]
["8-3",8,20,1.3010299956639813,24.146666666666668,0.41666666666666696,null,null,null,null,null,null,null,null,null,null,-1.49999999999999,{"$f":"'GRAPHS FOR PAPER'!B$20+'GRAPHS FOR PAPER'!B$21*'DATA COLLATED'!Q62+'GRAPHS FOR PAPER'!B$22*'DATA COLLATED'!Q62*'DATA COLLATED'!Q62","v":1.366977500000004},{"$f":"'GRAPHS FOR PAPER'!B$25+'GRAPHS FOR PAPER'!B$26*'DATA COLLATED'!Q62","v":26.292409999999993}]
["8-4",8,20,1.3010299956639813,23.3,1.7333333333333343,null,null,null,null,null,null,null,null,null,null,-1.48999999999999,{"$f":"'GRAPHS FOR PAPER'!B$20+'GRAPHS FOR PAPER'!B$21*'DATA COLLATED'!Q63+'GRAPHS FOR PAPER'!B$22*'DATA COLLATED'!Q63*'DATA COLLATED'!Q63","v":1.3706729790000036},{"$f":"'GRAPHS FOR PAPER'!B$25+'GRAPHS FOR PAPER'!B$26*'DATA COLLATED'!Q63","v":26.286400599999993}]
["8-5",8,20,1.3010299956639813,24.161111111111111,1.7166666666666659,null,null,null,null,null,null,null,null,null,null,-1.47999999999999,{"$f":"'GRAPHS FOR PAPER'!B$20+'GRAPHS FOR PAPER'!B$21*'DATA COLLATED'!Q64+'GRAPHS FOR PAPER'!B$22*'DATA COLLATED'!Q64*'DATA COLLATED'!Q64","v":1.3743368160000038},{"$f":"'GRAPHS FOR PAPER'!B$25+'GRAPHS FOR PAPER'!B$26*'DATA COLLATED'!Q64","v":26.280391199999993}]
["9-1",9,50,1.6989700043360187,null,0.52499999999999947,null,null,null,null,null,null,null,null,null,null,-1.46999999999999,{"$f":"'GRAPHS FOR PAPER'!B$20+'GRAPHS FOR PAPER'!B$21*'DATA COLLATED'!Q65+'GRAPHS FOR PAPER'!B$22*'DATA COLLATED'!Q65*'DATA COLLATED'!Q65","v":1.3779690110000036},{"$f":"'GRAPHS FOR PAPER'!B$25+'GRAPHS FOR PAPER'!B$26*'DATA COLLATED'!Q65","v":26.274381799999993}]
["9-2",9,50,1.6989700043360187,25.788888888333336,1.6666666699999997,null,null,null,null,null,null,null,null,null,null,-1.45999999999999,{"$f":"'GRAPHS FOR PAPER'!B$20+'GRAPHS FOR PAPER'!B$21*'DATA COLLATED'!Q66+'GRAPHS FOR PAPER'!B$22*'DATA COLLATED'!Q66*'DATA COLLATED'!Q66","v":1.3815695640000036},{"$f":"'GRAPHS FOR PAPER'!B$25+'GRAPHS FOR PAPER'!B$26*'DATA COLLATED'!Q66","v":26.268372399999993}]
["9-3",9,50,1.6989700043360187,23.63888888833333,0.89999999999999947,null,null,null,null,null,null,null,null,null,null,-1.44999999999999,{"$f":"'GRAPHS FOR PAPER'!B$20+'GRAPHS FOR PAPER'!B$21*'DATA COLLATED'!Q67+'GRAPHS FOR PAPER'!B$22*'DATA COLLATED'!Q67*'DATA COLLATED'!Q67","v":1.3851384750000038},{"$f":"'GRAPHS FOR PAPER'!B$25+'GRAPHS FOR PAPER'!B$26*'DATA COLLATED'!Q67","v":26.262362999999993}]
["9-4",9,50,1.6989700043360187,23.308333333333334,0.40000000000000036,null,null,null,null,null,null,null,null,null,null,-1.43999999999999,{"$f":"'GRAPHS FOR PAPER'!B$20+'GRAPHS FOR PAPER'!B$21*'DATA COLLATED'!Q68+'GRAPHS FOR PAPER'!B$22*'DATA COLLATED'!Q68*'DATA COLLATED'!Q68","v":1.3886757440000037},{"$f":"'GRAPHS FOR PAPER'!B$25+'GRAPHS FOR PAPER'!B$26*'DATA COLLATED'!Q68","v":26.256353599999994}]
["9-5",9,50,1.6989700043360187,24.333333333333336,1.0416666666666661,null,null,null,null,null,null,null,null,null,null,-1.4299999999999899,{"$f":"'GRAPHS FOR PAPER'!B$20+'GRAPHS FOR PAPER'!B$21*'DATA COLLATED'!Q69+'GRAPHS FOR PAPER'!B$22*'DATA COLLATED'!Q69*'DATA COLLATED'!Q69","v":1.3921813710000035},{"$f":"'GRAPHS FOR PAPER'!B$25+'GRAPHS FOR PAPER'!B$26*'DATA COLLATED'!Q69","v":26.250344199999994}]
["10-1",10,125,2.0969100130080562,24.053333333333335,0.57500000000000018,null,null,null,null,null,null,null,null,null,null,-1.4199999999999799,{"$f":"'GRAPHS FOR PAPER'!B$20+'GRAPHS FOR PAPER'!B$21*'DATA COLLATED'!Q70+'GRAPHS FOR PAPER'!B$22*'DATA COLLATED'!Q70*'DATA COLLATED'!Q70","v":1.3956553560000069},{"$f":"'GRAPHS FOR PAPER'!B$25+'GRAPHS FOR PAPER'!B$26*'DATA COLLATED'!Q70","v":26.244334799999987}]
["10-2",10,125,2.0969100130080562,24.146666666666668,1.1829999999999998,null,null,null,null,null,null,null,null,null,null,-1.4099999999999799,{"$f":"'GRAPHS FOR PAPER'!B$20+'GRAPHS FOR PAPER'!B$21*'DATA COLLATED'!Q71+'GRAPHS FOR PAPER'!B$22*'DATA COLLATED'!Q71*'DATA COLLATED'!Q71","v":1.399097699000007},{"$f":"'GRAPHS FOR PAPER'!B$25+'GRAPHS FOR PAPER'!B$26*'DATA COLLATED'!Q71","v":26.238325399999987}]
["10-3",10,125,2.0969100130080562,25.166666666666668,0.4666666666666659,null,null,null,null,null,null,null,null,null,null,-1.3999999999999799,{"$f":"'GRAPHS FOR PAPER'!B$20+'GRAPHS FOR PAPER'!B$21*'DATA COLLATED'!Q72+'GRAPHS FOR PAPER'!B$22*'DATA COLLATED'!Q72*'DATA COLLATED'!Q72","v":1.4025084000000068},{"$f":"'GRAPHS FOR PAPER'!B$25+'GRAPHS FOR PAPER'!B$26*'DATA COLLATED'!Q72","v":26.232315999999987}]
["10-4",10,125,2.0969100130080562,23.508333332500001,0.4458291662499998,null,null,null,null,null,null,null,null,null,null,-1.3899999999999799,{"$f":"'GRAPHS FOR PAPER'!B$20+'GRAPHS FOR PAPER'!B$21*'DATA COLLATED'!Q73+'GRAPHS FOR PAPER'!B$22*'DATA COLLATED'!Q73*'DATA COLLATED'!Q73","v":1.4058874590000068},{"$f":"'GRAPHS FOR PAPER'!B$25+'GRAPHS FOR PAPER'!B$26*'DATA COLLATED'!Q73","v":26.226306599999987}]
[null,null,null,null,null,null,null,null,null,null,null,null,null,null,null,null,-1.3799999999999799,{"$f":"'GRAPHS FOR PAPER'!B$20+'GRAPHS FOR PAPER'!B$21*'DATA COLLATED'!Q74+'GRAPHS FOR PAPER'!B$22*'DATA COLLATED'!Q74*'DATA COLLATED'!Q74","v":1.4092348760000069},{"$f":"'GRAPHS FOR PAPER'!B$25+'GRAPHS FOR PAPER'!B$26*'DATA COLLATED'!Q74","v":26.220297199999987}]
[null,null,null,null,null,null,null,null,null,null,null,null,null,null,null,null,-1.3699999999999799,{"$f":"'GRAPHS FOR PAPER'!B$20+'GRAPHS FOR PAPER'!B$21*'DATA COLLATED'!Q75+'GRAPHS FOR PAPER'!B$22*'DATA COLLATED'!Q75*'DATA COLLATED'!Q75","v":1.4125506510000068},{"$f":"'GRAPHS FOR PAPER'!B$25+'GRAPHS FOR PAPER'!B$26*'DATA COLLATED'!Q75","v":26.214287799999987}]
[null,null,null,null,null,null,null,null,null,null,null,null,null,null,null,null,-1.3599999999999799,{"$f":"'GRAPHS FOR PAPER'!B$20+'GRAPHS FOR PAPER'!B$21*'DATA COLLATED'!Q76+'GRAPHS FOR PAPER'!B$22*'DATA COLLATED'!Q76*'DATA COLLATED'!Q76","v":1.4158347840000067},{"$f":"'GRAPHS FOR PAPER'!B$25+'GRAPHS FOR PAPER'!B$26*'DATA COLLATED'!Q76","v":26.208278399999987}]
[null,null,null,null,null,null,null,null,null,null,null,null,null,null,null,null,-1.3499999999999801,{"$f":"'GRAPHS FOR PAPER'!B$20+'GRAPHS FOR PAPER'!B$21*'DATA COLLATED'!Q77+'GRAPHS FOR PAPER'!B$22*'DATA COLLATED'!Q77*'DATA COLLATED'!Q77","v":1.4190872750000065},{"$f":"'GRAPHS FOR PAPER'!B$25+'GRAPHS FOR PAPER'!B$26*'DATA COLLATED'!Q77","v":26.202268999999987}]
[null,null,null,null,null,null,null,null,null,null,null,null,null,null,null,null,-1.3399999999999801,{"$f":"'GRAPHS FOR PAPER'!B$20+'GRAPHS FOR PAPER'!B$21*'DATA COLLATED'!Q78+'GRAPHS FOR PAPER'!B$22*'DATA COLLATED'!Q78*'DATA COLLATED'!Q78","v":1.4223081240000064},{"$f":"'GRAPHS FOR PAPER'!B$25+'GRAPHS FOR PAPER'!B$26*'DATA COLLATED'!Q78","v":26.196259599999987}]
[null,null,null,null,null,null,null,null,null,null,null,null,null,null,null,null,-1.3299999999999801,{"$f":"'GRAPHS FOR PAPER'!B$20+'GRAPHS FOR PAPER'!B$21*'DATA COLLATED'!Q79+'GRAPHS FOR PAPER'!B$22*'DATA COLLATED'!Q79*'DATA COLLATED'!Q79","v":1.4254973310000063},{"$f":"'GRAPHS FOR PAPER'!B$25+'GRAPHS FOR PAPER'!B$26*'DATA COLLATED'!Q79","v":26.190250199999987}]
[null,null,null,null,null,null,null,null,null,null,null,null,null,null,null,null,-1.3199999999999801,{"$f":"'GRAPHS FOR PAPER'!B$20+'GRAPHS FOR PAPER'!B$21*'DATA COLLATED'!Q80+'GRAPHS FOR PAPER'!B$22*'DATA COLLATED'!Q80*'DATA COLLATED'!Q80","v":1.4286548960000065},{"$f":"'GRAPHS FOR PAPER'!B$25+'GRAPHS FOR PAPER'!B$26*'DATA COLLATED'!Q80","v":26.184240799999987}]
[null,null,null,null,null,null,null,null,null,null,null,null,null,null,null,null,-1.3099999999999801,{"$f":"'GRAPHS FOR PAPER'!B$20+'GRAPHS FOR PAPER'!B$21*'DATA COLLATED'!Q81+'GRAPHS FOR PAPER'!B$22*'DATA COLLATED'!Q81*'DATA COLLATED'!Q81","v":1.4317808190000063},{"$f":"'GRAPHS FOR PAPER'!B$25+'GRAPHS FOR PAPER'!B$26*'DATA COLLATED'!Q81","v":26.178231399999987}]
[null,null,null,null,null,null,null,null,null,null,null,null,null,null,null,null,-1.2999999999999801,{"$f":"'GRAPHS FOR PAPER'!B$20+'GRAPHS FOR PAPER'!B$21*'DATA COLLATED'!Q82+'GRAPHS FOR PAPER'!B$22*'DATA COLLATED'!Q82*'DATA COLLATED'!Q82","v":1.4348751000000064},{"$f":"'GRAPHS FOR PAPER'!B$25+'GRAPHS FOR PAPER'!B$26*'DATA COLLATED'!Q82","v":26.172221999999987}]
[null,null,null,null,null,null,null,null,null,null,null,null,null,null,null,null,-1.2899999999999801,{"$f":"'GRAPHS FOR PAPER'!B$20+'GRAPHS FOR PAPER'!B$21*'DATA COLLATED'!Q83+'GRAPHS FOR PAPER'!B$22*'DATA COLLATED'!Q83*'DATA COLLATED'!Q83","v":1.4379377390000063},{"$f":"'GRAPHS FOR PAPER'!B$25+'GRAPHS FOR PAPER'!B$26*'DATA COLLATED'!Q83","v":26.166212599999987}]
[null,null,null,null,null,null,null,null,null,null,null,null,null,null,null,null,-1.27999999999998,{"$f":"'GRAPHS FOR PAPER'!B$20+'GRAPHS FOR PAPER'!B$21*'DATA COLLATED'!Q84+'GRAPHS FOR PAPER'!B$22*'DATA COLLATED'!Q84*'DATA COLLATED'!Q84","v":1.4409687360000061},{"$f":"'GRAPHS FOR PAPER'!B$25+'GRAPHS FOR PAPER'!B$26*'DATA COLLATED'!Q84","v":26.160203199999987}]
[null,null,null,null,null,null,null,null,null,null,null,null,null,null,null,null,-1.26999999999998,{"$f":"'GRAPHS FOR PAPER'!B$20+'GRAPHS FOR PAPER'!B$21*'DATA COLLATED'!Q85+'GRAPHS FOR PAPER'!B$22*'DATA COLLATED'!Q85*'DATA COLLATED'!Q85","v":1.4439680910000059},{"$f":"'GRAPHS FOR PAPER'!B$25+'GRAPHS FOR PAPER'!B$26*'DATA COLLATED'!Q85","v":26.154193799999987}]
[null,null,null,null,null,null,null,null,null,null,null,null,null,null,null,null,-1.25999999999998,{"$f":"'GRAPHS FOR PAPER'!B$20+'GRAPHS FOR PAPER'!B$21*'DATA COLLATED'!Q86+'GRAPHS FOR PAPER'!B$22*'DATA COLLATED'!Q86*'DATA COLLATED'!Q86","v":1.446935804000006},{"$f":"'GRAPHS FOR PAPER'!B$25+'GRAPHS FOR PAPER'!B$26*'DATA COLLATED'!Q86","v":26.148184399999987}]
[null,null,null,null,null,null,null,null,null,null,null,null,null,null,null,null,-1.24999999999998,{"$f":"'GRAPHS FOR PAPER'!B$20+'GRAPHS FOR PAPER'!B$21*'DATA COLLATED'!Q87+'GRAPHS FOR PAPER'!B$22*'DATA COLLATED'!Q87*'DATA COLLATED'!Q87","v":1.4498718750000061},{"$f":"'GRAPHS FOR PAPER'!B$25+'GRAPHS FOR PAPER'!B$26*'DATA COLLATED'!Q87","v":26.142174999999988}]
[null,null,null,null,null,null,null,null,null,null,null,null,null,null,null,null,-1.23999999999998,{"$f":"'GRAPHS FOR PAPER'!B$20+'GRAPHS FOR PAPER'!B$21*'DATA COLLATED'!Q88+'GRAPHS FOR PAPER'!B$22*'DATA COLLATED'!Q88*'DATA COLLATED'!Q88","v":1.4527763040000059},{"$f":"'GRAPHS FOR PAPER'!B$25+'GRAPHS FOR PAPER'!B$26*'DATA COLLATED'!Q88","v":26.136165599999988}]
[null,null,null,null,null,null,null,null,null,null,null,null,null,null,null,null,-1.22999999999998,{"$f":"'GRAPHS FOR PAPER'!B$20+'GRAPHS FOR PAPER'!B$21*'DATA COLLATED'!Q89+'GRAPHS FOR PAPER'!B$22*'DATA COLLATED'!Q89*'DATA COLLATED'!Q89","v":1.4556490910000059},{"$f":"'GRAPHS FOR PAPER'!B$25+'GRAPHS FOR PAPER'!B$26*'DATA COLLATED'!Q89","v":26.130156199999988}]
[null,null,null,null,null,null,null,null,null,null,null,null,null,null,null,null,-1.21999999999998,{"$f":"'GRAPHS FOR PAPER'!B$20+'GRAPHS FOR PAPER'!B$21*'DATA COLLATED'!Q90+'GRAPHS FOR PAPER'!B$22*'DATA COLLATED'!Q90*'DATA COLLATED'!Q90","v":1.4584902360000056},{"$f":"'GRAPHS FOR PAPER'!B$25+'GRAPHS FOR PAPER'!B$26*'DATA COLLATED'!Q90","v":26.124146799999988}]
[null,null,null,null,null,null,null,null,null,null,null,null,null,null,null,null,-1.20999999999998,{"$f":"'GRAPHS FOR PAPER'!B$20+'GRAPHS FOR PAPER'!B$21*'DATA COLLATED'!Q91+'GRAPHS FOR PAPER'!B$22*'DATA COLLATED'!Q91*'DATA COLLATED'!Q91","v":1.4612997390000058},{"$f":"'GRAPHS FOR PAPER'!B$25+'GRAPHS FOR PAPER'!B$26*'DATA COLLATED'!Q91","v":26.118137399999988}]
[null,null,null,null,null,null,null,null,null,null,null,null,null,null,null,null,-1.19999999999998,{"$f":"'GRAPHS FOR PAPER'!B$20+'GRAPHS FOR PAPER'!B$21*'DATA COLLATED'!Q92+'GRAPHS FOR PAPER'!B$22*'DATA COLLATED'!Q92*'DATA COLLATED'!Q92","v":1.4640776000000055},{"$f":"'GRAPHS FOR PAPER'!B$25+'GRAPHS FOR PAPER'!B$26*'DATA COLLATED'!Q92","v":26.112127999999988}]
[null,null,null,null,null,null,null,null,null,null,null,null,null,null,null,null,-1.18999999999998,{"$f":"'GRAPHS FOR PAPER'!B$20+'GRAPHS FOR PAPER'!B$21*'DATA COLLATED'!Q93+'GRAPHS FOR PAPER'!B$22*'DATA COLLATED'!Q93*'DATA COLLATED'!Q93","v":1.4668238190000056},{"$f":"'GRAPHS FOR PAPER'!B$25+'GRAPHS FOR PAPER'!B$26*'DATA COLLATED'!Q93","v":26.106118599999988}]
[null,null,null,null,null,null,null,null,null,null,null,null,null,null,null,null,-1.17999999999998,{"$f":"'GRAPHS FOR PAPER'!B$20+'GRAPHS FOR PAPER'!B$21*'DATA COLLATED'!Q94+'GRAPHS FOR PAPER'!B$22*'DATA COLLATED'!Q94*'DATA COLLATED'!Q94","v":1.4695383960000055},{"$f":"'GRAPHS FOR PAPER'!B$25+'GRAPHS FOR PAPER'!B$26*'DATA COLLATED'!Q94","v":26.100109199999988}]
[null,null,null,null,null,null,null,null,null,null,null,null,null,null,null,null,-1.1699999999999799,{"$f":"'GRAPHS FOR PAPER'!B$20+'GRAPHS FOR PAPER'!B$21*'DATA COLLATED'!Q95+'GRAPHS FOR PAPER'!B$22*'DATA COLLATED'!Q95*'DATA COLLATED'!Q95","v":1.4722213310000054},{"$f":"'GRAPHS FOR PAPER'!B$25+'GRAPHS FOR PAPER'!B$26*'DATA COLLATED'!Q95","v":26.094099799999988}]
[null,null,null,null,null,null,null,null,null,null,null,null,null,null,null,null,-1.1599999999999799,{"$f":"'GRAPHS FOR PAPER'!B$20+'GRAPHS FOR PAPER'!B$21*'DATA COLLATED'!Q96+'GRAPHS FOR PAPER'!B$22*'DATA COLLATED'!Q96*'DATA COLLATED'!Q96","v":1.4748726240000054},{"$f":"'GRAPHS FOR PAPER'!B$25+'GRAPHS FOR PAPER'!B$26*'DATA COLLATED'!Q96","v":26.088090399999984}]
[null,null,null,null,null,null,null,null,null,null,null,null,null,null,null,null,-1.1499999999999799,{"$f":"'GRAPHS FOR PAPER'!B$20+'GRAPHS FOR PAPER'!B$21*'DATA COLLATED'!Q97+'GRAPHS FOR PAPER'!B$22*'DATA COLLATED'!Q97*'DATA COLLATED'!Q97","v":1.4774922750000052},{"$f":"'GRAPHS FOR PAPER'!B$25+'GRAPHS FOR PAPER'!B$26*'DATA COLLATED'!Q97","v":26.082080999999985}]
[null,null,null,null,null,null,null,null,null,null,null,null,null,null,null,null,-1.1399999999999799,{"$f":"'GRAPHS FOR PAPER'!B$20+'GRAPHS FOR PAPER'!B$21*'DATA COLLATED'!Q98+'GRAPHS FOR PAPER'!B$22*'DATA COLLATED'!Q98*'DATA COLLATED'!Q98","v":1.4800802840000051},{"$f":"'GRAPHS FOR PAPER'!B$25+'GRAPHS FOR PAPER'!B$26*'DATA COLLATED'!Q98","v":26.076071599999985}]
[null,null,null,null,null,null,null,null,null,null,null,null,null,null,null,null,-1.1299999999999799,{"$f":"'GRAPHS FOR PAPER'!B$20+'GRAPHS FOR PAPER'!B$21*'DATA COLLATED'!Q99+'GRAPHS FOR PAPER'!B$22*'DATA COLLATED'!Q99*'DATA COLLATED'!Q99","v":1.4826366510000053},{"$f":"'GRAPHS FOR PAPER'!B$25+'GRAPHS FOR PAPER'!B$26*'DATA COLLATED'!Q99","v":26.070062199999985}]
[null,null,null,null,null,null,null,null,null,null,null,null,null,null,null,null,-1.1199999999999799,{"$f":"'GRAPHS FOR PAPER'!B$20+'GRAPHS FOR PAPER'!B$21*'DATA COLLATED'!Q100+'GRAPHS FOR PAPER'!B$22*'DATA COLLATED'!Q100*'DATA COLLATED'!Q100","v":1.4851613760000053},{"$f":"'GRAPHS FOR PAPER'!B$25+'GRAPHS FOR PAPER'!B$26*'DATA COLLATED'!Q100","v":26.064052799999985}]
[null,null,null,null,null,null,null,null,null,null,null,null,null,null,null,null,-1.1099999999999799,{"$f":"'GRAPHS FOR PAPER'!B$20+'GRAPHS FOR PAPER'!B$21*'DATA COLLATED'!Q101+'GRAPHS FOR PAPER'!B$22*'DATA COLLATED'!Q101*'DATA COLLATED'!Q101","v":1.4876544590000051},{"$f":"'GRAPHS FOR PAPER'!B$25+'GRAPHS FOR PAPER'!B$26*'DATA COLLATED'!Q101","v":26.058043399999985}]
[null,null,null,null,null,null,null,null,null,null,null,null,null,null,null,null,-1.0999999999999801,{"$f":"'GRAPHS FOR PAPER'!B$20+'GRAPHS FOR PAPER'!B$21*'DATA COLLATED'!Q102+'GRAPHS FOR PAPER'!B$22*'DATA COLLATED'!Q102*'DATA COLLATED'!Q102","v":1.490115900000005},{"$f":"'GRAPHS FOR PAPER'!B$25+'GRAPHS FOR PAPER'!B$26*'DATA COLLATED'!Q102","v":26.052033999999985}]
[null,null,null,null,null,null,null,null,null,null,null,null,null,null,null,null,-1.0899999999999801,{"$f":"'GRAPHS FOR PAPER'!B$20+'GRAPHS FOR PAPER'!B$21*'DATA COLLATED'!Q103+'GRAPHS FOR PAPER'!B$22*'DATA COLLATED'!Q103*'DATA COLLATED'!Q103","v":1.4925456990000048},{"$f":"'GRAPHS FOR PAPER'!B$25+'GRAPHS FOR PAPER'!B$26*'DATA COLLATED'!Q103","v":26.046024599999985}]
[null,null,null,null,null,null,null,null,null,null,null,null,null,null,null,null,-1.0799999999999801,{"$f":"'GRAPHS FOR PAPER'!B$20+'GRAPHS FOR PAPER'!B$21*'DATA COLLATED'!Q104+'GRAPHS FOR PAPER'!B$22*'DATA COLLATED'!Q104*'DATA COLLATED'!Q104","v":1.4949438560000048},{"$f":"'GRAPHS FOR PAPER'!B$25+'GRAPHS FOR PAPER'!B$26*'DATA COLLATED'!Q104","v":26.040015199999985}]
[null,null,null,null,null,null,null,null,null,null,null,null,null,null,null,null,-1.0699999999999801,{"$f":"'GRAPHS FOR PAPER'!B$20+'GRAPHS FOR PAPER'!B$21*'DATA COLLATED'!Q105+'GRAPHS FOR PAPER'!B$22*'DATA COLLATED'!Q105*'DATA COLLATED'!Q105","v":1.4973103710000046},{"$f":"'GRAPHS FOR PAPER'!B$25+'GRAPHS FOR PAPER'!B$26*'DATA COLLATED'!Q105","v":26.034005799999985}]
[null,null,null,null,null,null,null,null,null,null,null,null,null,null,null,null,-1.0599999999999801,{"$f":"'GRAPHS FOR PAPER'!B$20+'GRAPHS FOR PAPER'!B$21*'DATA COLLATED'!Q106+'GRAPHS FOR PAPER'!B$22*'DATA COLLATED'!Q106*'DATA COLLATED'!Q106","v":1.4996452440000048},{"$f":"'GRAPHS FOR PAPER'!B$25+'GRAPHS FOR PAPER'!B$26*'DATA COLLATED'!Q106","v":26.027996399999985}]
[null,null,null,null,null,null,null,null,null,null,null,null,null,null,null,null,-1.0499999999999801,{"$f":"'GRAPHS FOR PAPER'!B$20+'GRAPHS FOR PAPER'!B$21*'DATA COLLATED'!Q107+'GRAPHS FOR PAPER'!B$22*'DATA COLLATED'!Q107*'DATA COLLATED'!Q107","v":1.5019484750000045},{"$f":"'GRAPHS FOR PAPER'!B$25+'GRAPHS FOR PAPER'!B$26*'DATA COLLATED'!Q107","v":26.021986999999985}]
[null,null,null,null,null,null,null,null,null,null,null,null,null,null,null,null,-1.0399999999999801,{"$f":"'GRAPHS FOR PAPER'!B$20+'GRAPHS FOR PAPER'!B$21*'DATA COLLATED'!Q108+'GRAPHS FOR PAPER'!B$22*'DATA COLLATED'!Q108*'DATA COLLATED'!Q108","v":1.5042200640000045},{"$f":"'GRAPHS FOR PAPER'!B$25+'GRAPHS FOR PAPER'!B$26*'DATA COLLATED'!Q108","v":26.015977599999985}]
[null,null,null,null,null,null,null,null,null,null,null,null,null,null,null,null,-1.02999999999998,{"$f":"'GRAPHS FOR PAPER'!B$20+'GRAPHS FOR PAPER'!B$21*'DATA COLLATED'!Q109+'GRAPHS FOR PAPER'!B$22*'DATA COLLATED'!Q109*'DATA COLLATED'!Q109","v":1.5064600110000044},{"$f":"'GRAPHS FOR PAPER'!B$25+'GRAPHS FOR PAPER'!B$26*'DATA COLLATED'!Q109","v":26.009968199999985}]
[null,null,null,null,null,null,null,null,null,null,null,null,null,null,null,null,-1.01999999999998,{"$f":"'GRAPHS FOR PAPER'!B$20+'GRAPHS FOR PAPER'!B$21*'DATA COLLATED'!Q110+'GRAPHS FOR PAPER'!B$22*'DATA COLLATED'!Q110*'DATA COLLATED'!Q110","v":1.5086683160000045},{"$f":"'GRAPHS FOR PAPER'!B$25+'GRAPHS FOR PAPER'!B$26*'DATA COLLATED'!Q110","v":26.003958799999985}]
[null,null,null,null,null,null,null,null,null,null,null,null,null,null,null,null,-1.00999999999997,{"$f":"'GRAPHS FOR PAPER'!B$20+'GRAPHS FOR PAPER'!B$21*'DATA COLLATED'!Q111+'GRAPHS FOR PAPER'!B$22*'DATA COLLATED'!Q111*'DATA COLLATED'!Q111","v":1.5108449790000067},{"$f":"'GRAPHS FOR PAPER'!B$25+'GRAPHS FOR PAPER'!B$26*'DATA COLLATED'!Q111","v":25.997949399999982}]
[null,null,null,null,null,null,null,null,null,null,null,null,null,null,null,null,-0.99999999999997002,{"$f":"'GRAPHS FOR PAPER'!B$20+'GRAPHS FOR PAPER'!B$21*'DATA COLLATED'!Q112+'GRAPHS FOR PAPER'!B$22*'DATA COLLATED'!Q112*'DATA COLLATED'!Q112","v":1.5129900000000065},{"$f":"'GRAPHS FOR PAPER'!B$25+'GRAPHS FOR PAPER'!B$26*'DATA COLLATED'!Q112","v":25.991939999999982}]
[null,null,null,null,null,null,null,null,null,null,null,null,null,null,null,null,-0.98999999999997002,{"$f":"'GRAPHS FOR PAPER'!B$20+'GRAPHS FOR PAPER'!B$21*'DATA COLLATED'!Q113+'GRAPHS FOR PAPER'!B$22*'DATA COLLATED'!Q113*'DATA COLLATED'!Q113","v":1.5151033790000064},{"$f":"'GRAPHS FOR PAPER'!B$25+'GRAPHS FOR PAPER'!B$26*'DATA COLLATED'!Q113","v":25.985930599999982}]
[null,null,null,null,null,null,null,null,null,null,null,null,null,null,null,null,-0.97999999999997001,{"$f":"'GRAPHS FOR PAPER'!B$20+'GRAPHS FOR PAPER'!B$21*'DATA COLLATED'!Q114+'GRAPHS FOR PAPER'!B$22*'DATA COLLATED'!Q114*'DATA COLLATED'!Q114","v":1.5171851160000063},{"$f":"'GRAPHS FOR PAPER'!B$25+'GRAPHS FOR PAPER'!B$26*'DATA COLLATED'!Q114","v":25.979921199999982}]
[null,null,null,null,null,null,null,null,null,null,null,null,null,null,null,null,-0.96999999999997,{"$f":"'GRAPHS FOR PAPER'!B$20+'GRAPHS FOR PAPER'!B$21*'DATA COLLATED'!Q115+'GRAPHS FOR PAPER'!B$22*'DATA COLLATED'!Q115*'DATA COLLATED'!Q115","v":1.5192352110000062},{"$f":"'GRAPHS FOR PAPER'!B$25+'GRAPHS FOR PAPER'!B$26*'DATA COLLATED'!Q115","v":25.973911799999982}]
[null,null,null,null,null,null,null,null,null,null,null,null,null,null,null,null,-0.95999999999996999,{"$f":"'GRAPHS FOR PAPER'!B$20+'GRAPHS FOR PAPER'!B$21*'DATA COLLATED'!Q116+'GRAPHS FOR PAPER'!B$22*'DATA COLLATED'!Q116*'DATA COLLATED'!Q116","v":1.5212536640000063},{"$f":"'GRAPHS FOR PAPER'!B$25+'GRAPHS FOR PAPER'!B$26*'DATA COLLATED'!Q116","v":25.967902399999979}]
[null,null,null,null,null,null,null,null,null,null,null,null,null,null,null,null,-0.94999999999996998,{"$f":"'GRAPHS FOR PAPER'!B$20+'GRAPHS FOR PAPER'!B$21*'DATA COLLATED'!Q117+'GRAPHS FOR PAPER'!B$22*'DATA COLLATED'!Q117*'DATA COLLATED'!Q117","v":1.5232404750000059},{"$f":"'GRAPHS FOR PAPER'!B$25+'GRAPHS FOR PAPER'!B$26*'DATA COLLATED'!Q117","v":25.961892999999979}]
[null,null,null,null,null,null,null,null,null,null,null,null,null,null,null,null,-0.93999999999996997,{"$f":"'GRAPHS FOR PAPER'!B$20+'GRAPHS FOR PAPER'!B$21*'DATA COLLATED'!Q118+'GRAPHS FOR PAPER'!B$22*'DATA COLLATED'!Q118*'DATA COLLATED'!Q118","v":1.5251956440000061},{"$f":"'GRAPHS FOR PAPER'!B$25+'GRAPHS FOR PAPER'!B$26*'DATA COLLATED'!Q118","v":25.955883599999979}]
[null,null,null,null,null,null,null,null,null,null,null,null,null,null,null,null,-0.92999999999996996,{"$f":"'GRAPHS FOR PAPER'!B$20+'GRAPHS FOR PAPER'!B$21*'DATA COLLATED'!Q119+'GRAPHS FOR PAPER'!B$22*'DATA COLLATED'!Q119*'DATA COLLATED'!Q119","v":1.5271191710000058},{"$f":"'GRAPHS FOR PAPER'!B$25+'GRAPHS FOR PAPER'!B$26*'DATA COLLATED'!Q119","v":25.949874199999979}]
[null,null,null,null,null,null,null,null,null,null,null,null,null,null,null,null,-0.91999999999996995,{"$f":"'GRAPHS FOR PAPER'!B$20+'GRAPHS FOR PAPER'!B$21*'DATA COLLATED'!Q120+'GRAPHS FOR PAPER'!B$22*'DATA COLLATED'!Q120*'DATA COLLATED'!Q120","v":1.5290110560000059},{"$f":"'GRAPHS FOR PAPER'!B$25+'GRAPHS FOR PAPER'!B$26*'DATA COLLATED'!Q120","v":25.943864799999979}]
[null,null,null,null,null,null,null,null,null,null,null,null,null,null,null,null,-0.90999999999997006,{"$f":"'GRAPHS FOR PAPER'!B$20+'GRAPHS FOR PAPER'!B$21*'DATA COLLATED'!Q121+'GRAPHS FOR PAPER'!B$22*'DATA COLLATED'!Q121*'DATA COLLATED'!Q121","v":1.5308712990000055},{"$f":"'GRAPHS FOR PAPER'!B$25+'GRAPHS FOR PAPER'!B$26*'DATA COLLATED'!Q121","v":25.937855399999979}]
[null,null,null,null,null,null,null,null,null,null,null,null,null,null,null,null,-0.89999999999997005,{"$f":"'GRAPHS FOR PAPER'!B$20+'GRAPHS FOR PAPER'!B$21*'DATA COLLATED'!Q122+'GRAPHS FOR PAPER'!B$22*'DATA COLLATED'!Q122*'DATA COLLATED'!Q122","v":1.5326999000000057},{"$f":"'GRAPHS FOR PAPER'!B$25+'GRAPHS FOR PAPER'!B$26*'DATA COLLATED'!Q122","v":25.931845999999979}]
[null,null,null,null,null,null,null,null,null,null,null,null,null,null,null,null,-0.88999999999997004,{"$f":"'GRAPHS FOR PAPER'!B$20+'GRAPHS FOR PAPER'!B$21*'DATA COLLATED'!Q123+'GRAPHS FOR PAPER'!B$22*'DATA COLLATED'!Q123*'DATA COLLATED'!Q123","v":1.5344968590000054},{"$f":"'GRAPHS FOR PAPER'!B$25+'GRAPHS FOR PAPER'!B$26*'DATA COLLATED'!Q123","v":25.925836599999979}]
[null,null,null,null,null,null,null,null,null,null,null,null,null,null,null,null,-0.87999999999997003,{"$f":"'GRAPHS FOR PAPER'!B$20+'GRAPHS FOR PAPER'!B$21*'DATA COLLATED'!Q124+'GRAPHS FOR PAPER'!B$22*'DATA COLLATED'!Q124*'DATA COLLATED'!Q124","v":1.5362621760000055},{"$f":"'GRAPHS FOR PAPER'!B$25+'GRAPHS FOR PAPER'!B$26*'DATA COLLATED'!Q124","v":25.919827199999979}]
[null,null,null,null,null,null,null,null,null,null,null,null,null,null,null,null,-0.86999999999997002,{"$f":"'GRAPHS FOR PAPER'!B$20+'GRAPHS FOR PAPER'!B$21*'DATA COLLATED'!Q125+'GRAPHS FOR PAPER'!B$22*'DATA COLLATED'!Q125*'DATA COLLATED'!Q125","v":1.5379958510000051},{"$f":"'GRAPHS FOR PAPER'!B$25+'GRAPHS FOR PAPER'!B$26*'DATA COLLATED'!Q125","v":25.913817799999979}]
[null,null,null,null,null,null,null,null,null,null,null,null,null,null,null,null,-0.85999999999997001,{"$f":"'GRAPHS FOR PAPER'!B$20+'GRAPHS FOR PAPER'!B$21*'DATA COLLATED'!Q126+'GRAPHS FOR PAPER'!B$22*'DATA COLLATED'!Q126*'DATA COLLATED'!Q126","v":1.5396978840000051},{"$f":"'GRAPHS FOR PAPER'!B$25+'GRAPHS FOR PAPER'!B$26*'DATA COLLATED'!Q126","v":25.907808399999979}]
[null,null,null,null,null,null,null,null,null,null,null,null,null,null,null,null,-0.84999999999997,{"$f":"'GRAPHS FOR PAPER'!B$20+'GRAPHS FOR PAPER'!B$21*'DATA COLLATED'!Q127+'GRAPHS FOR PAPER'!B$22*'DATA COLLATED'!Q127*'DATA COLLATED'!Q127","v":1.5413682750000051},{"$f":"'GRAPHS FOR PAPER'!B$25+'GRAPHS FOR PAPER'!B$26*'DATA COLLATED'!Q127","v":25.901798999999979}]
[null,null,null,null,null,null,null,null,null,null,null,null,null,null,null,null,-0.83999999999996999,{"$f":"'GRAPHS FOR PAPER'!B$20+'GRAPHS FOR PAPER'!B$21*'DATA COLLATED'!Q128+'GRAPHS FOR PAPER'!B$22*'DATA COLLATED'!Q128*'DATA COLLATED'!Q128","v":1.5430070240000049},{"$f":"'GRAPHS FOR PAPER'!B$25+'GRAPHS FOR PAPER'!B$26*'DATA COLLATED'!Q128","v":25.895789599999979}]
[null,null,null,null,null,null,null,null,null,null,null,null,null,null,null,null,-0.82999999999996998,{"$f":"'GRAPHS FOR PAPER'!B$20+'GRAPHS FOR PAPER'!B$21*'DATA COLLATED'!Q129+'GRAPHS FOR PAPER'!B$22*'DATA COLLATED'!Q129*'DATA COLLATED'!Q129","v":1.5446141310000048},{"$f":"'GRAPHS FOR PAPER'!B$25+'GRAPHS FOR PAPER'!B$26*'DATA COLLATED'!Q129","v":25.889780199999979}]
[null,null,null,null,null,null,null,null,null,null,null,null,null,null,null,null,-0.81999999999996998,{"$f":"'GRAPHS FOR PAPER'!B$20+'GRAPHS FOR PAPER'!B$21*'DATA COLLATED'!Q130+'GRAPHS FOR PAPER'!B$22*'DATA COLLATED'!Q130*'DATA COLLATED'!Q130","v":1.5461895960000047},{"$f":"'GRAPHS FOR PAPER'!B$25+'GRAPHS FOR PAPER'!B$26*'DATA COLLATED'!Q130","v":25.883770799999979}]
[null,null,null,null,null,null,null,null,null,null,null,null,null,null,null,null,-0.80999999999996997,{"$f":"'GRAPHS FOR PAPER'!B$20+'GRAPHS FOR PAPER'!B$21*'DATA COLLATED'!Q131+'GRAPHS FOR PAPER'!B$22*'DATA COLLATED'!Q131*'DATA COLLATED'!Q131","v":1.5477334190000045},{"$f":"'GRAPHS FOR PAPER'!B$25+'GRAPHS FOR PAPER'!B$26*'DATA COLLATED'!Q131","v":25.877761399999979}]
[null,null,null,null,null,null,null,null,null,null,null,null,null,null,null,null,-0.79999999999996996,{"$f":"'GRAPHS FOR PAPER'!B$20+'GRAPHS FOR PAPER'!B$21*'DATA COLLATED'!Q132+'GRAPHS FOR PAPER'!B$22*'DATA COLLATED'!Q132*'DATA COLLATED'!Q132","v":1.5492456000000046},{"$f":"'GRAPHS FOR PAPER'!B$25+'GRAPHS FOR PAPER'!B$26*'DATA COLLATED'!Q132","v":25.871751999999979}]
[null,null,null,null,null,null,null,null,null,null,null,null,null,null,null,null,-0.78999999999996995,{"$f":"'GRAPHS FOR PAPER'!B$20+'GRAPHS FOR PAPER'!B$21*'DATA COLLATED'!Q133+'GRAPHS FOR PAPER'!B$22*'DATA COLLATED'!Q133*'DATA COLLATED'!Q133","v":1.5507261390000047},{"$f":"'GRAPHS FOR PAPER'!B$25+'GRAPHS FOR PAPER'!B$26*'DATA COLLATED'!Q133","v":25.865742599999979}]
[null,null,null,null,null,null,null,null,null,null,null,null,null,null,null,null,-0.77999999999997005,{"$f":"'GRAPHS FOR PAPER'!B$20+'GRAPHS FOR PAPER'!B$21*'DATA COLLATED'!Q134+'GRAPHS FOR PAPER'!B$22*'DATA COLLATED'!Q134*'DATA COLLATED'!Q134","v":1.5521750360000044},{"$f":"'GRAPHS FOR PAPER'!B$25+'GRAPHS FOR PAPER'!B$26*'DATA COLLATED'!Q134","v":25.85973319999998}]
[null,null,null,null,null,null,null,null,null,null,null,null,null,null,null,null,-0.76999999999997004,{"$f":"'GRAPHS FOR PAPER'!B$20+'GRAPHS FOR PAPER'!B$21*'DATA COLLATED'!Q135+'GRAPHS FOR PAPER'!B$22*'DATA COLLATED'!Q135*'DATA COLLATED'!Q135","v":1.5535922910000044},{"$f":"'GRAPHS FOR PAPER'!B$25+'GRAPHS FOR PAPER'!B$26*'DATA COLLATED'!Q135","v":25.85372379999998}]
[null,null,null,null,null,null,null,null,null,null,null,null,null,null,null,null,-0.75999999999997003,{"$f":"'GRAPHS FOR PAPER'!B$20+'GRAPHS FOR PAPER'!B$21*'DATA COLLATED'!Q136+'GRAPHS FOR PAPER'!B$22*'DATA COLLATED'!Q136*'DATA COLLATED'!Q136","v":1.5549779040000042},{"$f":"'GRAPHS FOR PAPER'!B$25+'GRAPHS FOR PAPER'!B$26*'DATA COLLATED'!Q136","v":25.84771439999998}]
[null,null,null,null,null,null,null,null,null,null,null,null,null,null,null,null,-0.74999999999997002,{"$f":"'GRAPHS FOR PAPER'!B$20+'GRAPHS FOR PAPER'!B$21*'DATA COLLATED'!Q137+'GRAPHS FOR PAPER'!B$22*'DATA COLLATED'!Q137*'DATA COLLATED'!Q137","v":1.5563318750000041},{"$f":"'GRAPHS FOR PAPER'!B$25+'GRAPHS FOR PAPER'!B$26*'DATA COLLATED'!Q137","v":25.84170499999998}]
[null,null,null,null,null,null,null,null,null,null,null,null,null,null,null,null,-0.73999999999997002,{"$f":"'GRAPHS FOR PAPER'!B$20+'GRAPHS FOR PAPER'!B$21*'DATA COLLATED'!Q138+'GRAPHS FOR PAPER'!B$22*'DATA COLLATED'!Q138*'DATA COLLATED'!Q138","v":1.5576542040000039},{"$f":"'GRAPHS FOR PAPER'!B$25+'GRAPHS FOR PAPER'!B$26*'DATA COLLATED'!Q138","v":25.83569559999998}]
[null,null,null,null,null,null,null,null,null,null,null,null,null,null,null,null,-0.72999999999997001,{"$f":"'GRAPHS FOR PAPER'!B$20+'GRAPHS FOR PAPER'!B$21*'DATA COLLATED'!Q139+'GRAPHS FOR PAPER'!B$22*'DATA COLLATED'!Q139*'DATA COLLATED'!Q139","v":1.5589448910000039},{"$f":"'GRAPHS FOR PAPER'!B$25+'GRAPHS FOR PAPER'!B$26*'DATA COLLATED'!Q139","v":25.82968619999998}]
[null,null,null,null,null,null,null,null,null,null,null,null,null,null,null,null,-0.71999999999997,{"$f":"'GRAPHS FOR PAPER'!B$20+'GRAPHS FOR PAPER'!B$21*'DATA COLLATED'!Q140+'GRAPHS FOR PAPER'!B$22*'DATA COLLATED'!Q140*'DATA COLLATED'!Q140","v":1.5602039360000037},{"$f":"'GRAPHS FOR PAPER'!B$25+'GRAPHS FOR PAPER'!B$26*'DATA COLLATED'!Q140","v":25.82367679999998}]
[null,null,null,null,null,null,null,null,null,null,null,null,null,null,null,null,-0.70999999999996999,{"$f":"'GRAPHS FOR PAPER'!B$20+'GRAPHS FOR PAPER'!B$21*'DATA COLLATED'!Q141+'GRAPHS FOR PAPER'!B$22*'DATA COLLATED'!Q141*'DATA COLLATED'!Q141","v":1.5614313390000039},{"$f":"'GRAPHS FOR PAPER'!B$25+'GRAPHS FOR PAPER'!B$26*'DATA COLLATED'!Q141","v":25.81766739999998}]
[null,null,null,null,null,null,null,null,null,null,null,null,null,null,null,null,-0.69999999999996998,{"$f":"'GRAPHS FOR PAPER'!B$20+'GRAPHS FOR PAPER'!B$21*'DATA COLLATED'!Q142+'GRAPHS FOR PAPER'!B$22*'DATA COLLATED'!Q142*'DATA COLLATED'!Q142","v":1.5626271000000036},{"$f":"'GRAPHS FOR PAPER'!B$25+'GRAPHS FOR PAPER'!B$26*'DATA COLLATED'!Q142","v":25.81165799999998}]
[null,null,null,null,null,null,null,null,null,null,null,null,null,null,null,null,-0.68999999999996997,{"$f":"'GRAPHS FOR PAPER'!B$20+'GRAPHS FOR PAPER'!B$21*'DATA COLLATED'!Q143+'GRAPHS FOR PAPER'!B$22*'DATA COLLATED'!Q143*'DATA COLLATED'!Q143","v":1.5637912190000036},{"$f":"'GRAPHS FOR PAPER'!B$25+'GRAPHS FOR PAPER'!B$26*'DATA COLLATED'!Q143","v":25.80564859999998}]
[null,null,null,null,null,null,null,null,null,null,null,null,null,null,null,null,-0.67999999999996996,{"$f":"'GRAPHS FOR PAPER'!B$20+'GRAPHS FOR PAPER'!B$21*'DATA COLLATED'!Q144+'GRAPHS FOR PAPER'!B$22*'DATA COLLATED'!Q144*'DATA COLLATED'!Q144","v":1.5649236960000033},{"$f":"'GRAPHS FOR PAPER'!B$25+'GRAPHS FOR PAPER'!B$26*'DATA COLLATED'!Q144","v":25.79963919999998}]
[null,null,null,null,null,null,null,null,null,null,null,null,null,null,null,null,-0.66999999999996995,{"$f":"'GRAPHS FOR PAPER'!B$20+'GRAPHS FOR PAPER'!B$21*'DATA COLLATED'!Q145+'GRAPHS FOR PAPER'!B$22*'DATA COLLATED'!Q145*'DATA COLLATED'!Q145","v":1.5660245310000034},{"$f":"'GRAPHS FOR PAPER'!B$25+'GRAPHS FOR PAPER'!B$26*'DATA COLLATED'!Q145","v":25.79362979999998}]
[null,null,null,null,null,null,null,null,null,null,null,null,null,null,null,null,-0.65999999999997006,{"$f":"'GRAPHS FOR PAPER'!B$20+'GRAPHS FOR PAPER'!B$21*'DATA COLLATED'!Q146+'GRAPHS FOR PAPER'!B$22*'DATA COLLATED'!Q146*'DATA COLLATED'!Q146","v":1.5670937240000034},{"$f":"'GRAPHS FOR PAPER'!B$25+'GRAPHS FOR PAPER'!B$26*'DATA COLLATED'!Q146","v":25.78762039999998}]
[null,null,null,null,null,null,null,null,null,null,null,null,null,null,null,null,-0.64999999999997005,{"$f":"'GRAPHS FOR PAPER'!B$20+'GRAPHS FOR PAPER'!B$21*'DATA COLLATED'!Q147+'GRAPHS FOR PAPER'!B$22*'DATA COLLATED'!Q147*'DATA COLLATED'!Q147","v":1.5681312750000032},{"$f":"'GRAPHS FOR PAPER'!B$25+'GRAPHS FOR PAPER'!B$26*'DATA COLLATED'!Q147","v":25.78161099999998}]
[null,null,null,null,null,null,null,null,null,null,null,null,null,null,null,null,-0.63999999999997004,{"$f":"'GRAPHS FOR PAPER'!B$20+'GRAPHS FOR PAPER'!B$21*'DATA COLLATED'!Q148+'GRAPHS FOR PAPER'!B$22*'DATA COLLATED'!Q148*'DATA COLLATED'!Q148","v":1.5691371840000032},{"$f":"'GRAPHS FOR PAPER'!B$25+'GRAPHS FOR PAPER'!B$26*'DATA COLLATED'!Q148","v":25.77560159999998}]
[null,null,null,null,null,null,null,null,null,null,null,null,null,null,null,null,-0.62999999999997003,{"$f":"'GRAPHS FOR PAPER'!B$20+'GRAPHS FOR PAPER'!B$21*'DATA COLLATED'!Q149+'GRAPHS FOR PAPER'!B$22*'DATA COLLATED'!Q149*'DATA COLLATED'!Q149","v":1.5701114510000029},{"$f":"'GRAPHS FOR PAPER'!B$25+'GRAPHS FOR PAPER'!B$26*'DATA COLLATED'!Q149","v":25.76959219999998}]
[null,null,null,null,null,null,null,null,null,null,null,null,null,null,null,null,-0.61999999999997002,{"$f":"'GRAPHS FOR PAPER'!B$20+'GRAPHS FOR PAPER'!B$21*'DATA COLLATED'!Q150+'GRAPHS FOR PAPER'!B$22*'DATA COLLATED'!Q150*'DATA COLLATED'!Q150","v":1.5710540760000029},{"$f":"'GRAPHS FOR PAPER'!B$25+'GRAPHS FOR PAPER'!B$26*'DATA COLLATED'!Q150","v":25.76358279999998}]
[null,null,null,null,null,null,null,null,null,null,null,null,null,null,null,null,-0.60999999999997001,{"$f":"'GRAPHS FOR PAPER'!B$20+'GRAPHS FOR PAPER'!B$21*'DATA COLLATED'!Q151+'GRAPHS FOR PAPER'!B$22*'DATA COLLATED'!Q151*'DATA COLLATED'!Q151","v":1.5719650590000027},{"$f":"'GRAPHS FOR PAPER'!B$25+'GRAPHS FOR PAPER'!B$26*'DATA COLLATED'!Q151","v":25.757573399999981}]
[null,null,null,null,null,null,null,null,null,null,null,null,null,null,null,null,-0.59999999999997,{"$f":"'GRAPHS FOR PAPER'!B$20+'GRAPHS FOR PAPER'!B$21*'DATA COLLATED'!Q152+'GRAPHS FOR PAPER'!B$22*'DATA COLLATED'!Q152*'DATA COLLATED'!Q152","v":1.5728444000000028},{"$f":"'GRAPHS FOR PAPER'!B$25+'GRAPHS FOR PAPER'!B$26*'DATA COLLATED'!Q152","v":25.751563999999981}]
[null,null,null,null,null,null,null,null,null,null,null,null,null,null,null,null,-0.58999999999996999,{"$f":"'GRAPHS FOR PAPER'!B$20+'GRAPHS FOR PAPER'!B$21*'DATA COLLATED'!Q153+'GRAPHS FOR PAPER'!B$22*'DATA COLLATED'!Q153*'DATA COLLATED'!Q153","v":1.5736920990000025},{"$f":"'GRAPHS FOR PAPER'!B$25+'GRAPHS FOR PAPER'!B$26*'DATA COLLATED'!Q153","v":25.745554599999981}]
[null,null,null,null,null,null,null,null,null,null,null,null,null,null,null,null,-0.57999999999995999,{"$f":"'GRAPHS FOR PAPER'!B$20+'GRAPHS FOR PAPER'!B$21*'DATA COLLATED'!Q154+'GRAPHS FOR PAPER'!B$22*'DATA COLLATED'!Q154*'DATA COLLATED'!Q154","v":1.5745081560000032},{"$f":"'GRAPHS FOR PAPER'!B$25+'GRAPHS FOR PAPER'!B$26*'DATA COLLATED'!Q154","v":25.739545199999974}]
[null,null,null,null,null,null,null,null,null,null,null,null,null,null,null,null,-0.56999999999995998,{"$f":"'GRAPHS FOR PAPER'!B$20+'GRAPHS FOR PAPER'!B$21*'DATA COLLATED'!Q155+'GRAPHS FOR PAPER'!B$22*'DATA COLLATED'!Q155*'DATA COLLATED'!Q155","v":1.5752925710000032},{"$f":"'GRAPHS FOR PAPER'!B$25+'GRAPHS FOR PAPER'!B$26*'DATA COLLATED'!Q155","v":25.733535799999974}]
[null,null,null,null,null,null,null,null,null,null,null,null,null,null,null,null,-0.55999999999995997,{"$f":"'GRAPHS FOR PAPER'!B$20+'GRAPHS FOR PAPER'!B$21*'DATA COLLATED'!Q156+'GRAPHS FOR PAPER'!B$22*'DATA COLLATED'!Q156*'DATA COLLATED'!Q156","v":1.5760453440000031},{"$f":"'GRAPHS FOR PAPER'!B$25+'GRAPHS FOR PAPER'!B$26*'DATA COLLATED'!Q156","v":25.727526399999974}]
[null,null,null,null,null,null,null,null,null,null,null,null,null,null,null,null,-0.54999999999995997,{"$f":"'GRAPHS FOR PAPER'!B$20+'GRAPHS FOR PAPER'!B$21*'DATA COLLATED'!Q157+'GRAPHS FOR PAPER'!B$22*'DATA COLLATED'!Q157*'DATA COLLATED'!Q157","v":1.576766475000003},{"$f":"'GRAPHS FOR PAPER'!B$25+'GRAPHS FOR PAPER'!B$26*'DATA COLLATED'!Q157","v":25.721516999999974}]
[null,null,null,null,null,null,null,null,null,null,null,null,null,null,null,null,-0.53999999999995996,{"$f":"'GRAPHS FOR PAPER'!B$20+'GRAPHS FOR PAPER'!B$21*'DATA COLLATED'!Q158+'GRAPHS FOR PAPER'!B$22*'DATA COLLATED'!Q158*'DATA COLLATED'!Q158","v":1.5774559640000028},{"$f":"'GRAPHS FOR PAPER'!B$25+'GRAPHS FOR PAPER'!B$26*'DATA COLLATED'!Q158","v":25.715507599999974}]
[null,null,null,null,null,null,null,null,null,null,null,null,null,null,null,null,-0.52999999999995995,{"$f":"'GRAPHS FOR PAPER'!B$20+'GRAPHS FOR PAPER'!B$21*'DATA COLLATED'!Q159+'GRAPHS FOR PAPER'!B$22*'DATA COLLATED'!Q159*'DATA COLLATED'!Q159","v":1.5781138110000026},{"$f":"'GRAPHS FOR PAPER'!B$25+'GRAPHS FOR PAPER'!B$26*'DATA COLLATED'!Q159","v":25.709498199999974}]
[null,null,null,null,null,null,null,null,null,null,null,null,null,null,null,null,-0.51999999999996005,{"$f":"'GRAPHS FOR PAPER'!B$20+'GRAPHS FOR PAPER'!B$21*'DATA COLLATED'!Q160+'GRAPHS FOR PAPER'!B$22*'DATA COLLATED'!Q160*'DATA COLLATED'!Q160","v":1.5787400160000025},{"$f":"'GRAPHS FOR PAPER'!B$25+'GRAPHS FOR PAPER'!B$26*'DATA COLLATED'!Q160","v":25.703488799999974}]
[null,null,null,null,null,null,null,null,null,null,null,null,null,null,null,null,-0.50999999999996004,{"$f":"'GRAPHS FOR PAPER'!B$20+'GRAPHS FOR PAPER'!B$21*'DATA COLLATED'!Q161+'GRAPHS FOR PAPER'!B$22*'DATA COLLATED'!Q161*'DATA COLLATED'!Q161","v":1.5793345790000024},{"$f":"'GRAPHS FOR PAPER'!B$25+'GRAPHS FOR PAPER'!B$26*'DATA COLLATED'!Q161","v":25.697479399999974}]
[null,null,null,null,null,null,null,null,null,null,null,null,null,null,null,null,-0.49999999999995998,{"$f":"'GRAPHS FOR PAPER'!B$20+'GRAPHS FOR PAPER'!B$21*'DATA COLLATED'!Q162+'GRAPHS FOR PAPER'!B$22*'DATA COLLATED'!Q162*'DATA COLLATED'!Q162","v":1.5798975000000024},{"$f":"'GRAPHS FOR PAPER'!B$25+'GRAPHS FOR PAPER'!B$26*'DATA COLLATED'!Q162","v":25.691469999999974}]
[null,null,null,null,null,null,null,null,null,null,null,null,null,null,null,null,-0.48999999999996002,{"$f":"'GRAPHS FOR PAPER'!B$20+'GRAPHS FOR PAPER'!B$21*'DATA COLLATED'!Q163+'GRAPHS FOR PAPER'!B$22*'DATA COLLATED'!Q163*'DATA COLLATED'!Q163","v":1.5804287790000022},{"$f":"'GRAPHS FOR PAPER'!B$25+'GRAPHS FOR PAPER'!B$26*'DATA COLLATED'!Q163","v":25.685460599999974}]
[null,null,null,null,null,null,null,null,null,null,null,null,null,null,null,null,-0.47999999999996001,{"$f":"'GRAPHS FOR PAPER'!B$20+'GRAPHS FOR PAPER'!B$21*'DATA COLLATED'!Q164+'GRAPHS FOR PAPER'!B$22*'DATA COLLATED'!Q164*'DATA COLLATED'!Q164","v":1.5809284160000021},{"$f":"'GRAPHS FOR PAPER'!B$25+'GRAPHS FOR PAPER'!B$26*'DATA COLLATED'!Q164","v":25.679451199999974}]
[null,null,null,null,null,null,null,null,null,null,null,null,null,null,null,null,-0.46999999999996001,{"$f":"'GRAPHS FOR PAPER'!B$20+'GRAPHS FOR PAPER'!B$21*'DATA COLLATED'!Q165+'GRAPHS FOR PAPER'!B$22*'DATA COLLATED'!Q165*'DATA COLLATED'!Q165","v":1.5813964110000018},{"$f":"'GRAPHS FOR PAPER'!B$25+'GRAPHS FOR PAPER'!B$26*'DATA COLLATED'!Q165","v":25.673441799999974}]
[null,null,null,null,null,null,null,null,null,null,null,null,null,null,null,null,-0.45999999999996,{"$f":"'GRAPHS FOR PAPER'!B$20+'GRAPHS FOR PAPER'!B$21*'DATA COLLATED'!Q166+'GRAPHS FOR PAPER'!B$22*'DATA COLLATED'!Q166*'DATA COLLATED'!Q166","v":1.5818327640000018},{"$f":"'GRAPHS FOR PAPER'!B$25+'GRAPHS FOR PAPER'!B$26*'DATA COLLATED'!Q166","v":25.667432399999974}]
[null,null,null,null,null,null,null,null,null,null,null,null,null,null,null,null,-0.44999999999995999,{"$f":"'GRAPHS FOR PAPER'!B$20+'GRAPHS FOR PAPER'!B$21*'DATA COLLATED'!Q167+'GRAPHS FOR PAPER'!B$22*'DATA COLLATED'!Q167*'DATA COLLATED'!Q167","v":1.5822374750000017},{"$f":"'GRAPHS FOR PAPER'!B$25+'GRAPHS FOR PAPER'!B$26*'DATA COLLATED'!Q167","v":25.661422999999974}]
[null,null,null,null,null,null,null,null,null,null,null,null,null,null,null,null,-0.43999999999995998,{"$f":"'GRAPHS FOR PAPER'!B$20+'GRAPHS FOR PAPER'!B$21*'DATA COLLATED'!Q168+'GRAPHS FOR PAPER'!B$22*'DATA COLLATED'!Q168*'DATA COLLATED'!Q168","v":1.5826105440000016},{"$f":"'GRAPHS FOR PAPER'!B$25+'GRAPHS FOR PAPER'!B$26*'DATA COLLATED'!Q168","v":25.655413599999974}]
[null,null,null,null,null,null,null,null,null,null,null,null,null,null,null,null,-0.42999999999996003,{"$f":"'GRAPHS FOR PAPER'!B$20+'GRAPHS FOR PAPER'!B$21*'DATA COLLATED'!Q169+'GRAPHS FOR PAPER'!B$22*'DATA COLLATED'!Q169*'DATA COLLATED'!Q169","v":1.5829519710000013},{"$f":"'GRAPHS FOR PAPER'!B$25+'GRAPHS FOR PAPER'!B$26*'DATA COLLATED'!Q169","v":25.649404199999974}]
[null,null,null,null,null,null,null,null,null,null,null,null,null,null,null,null,-0.41999999999996002,{"$f":"'GRAPHS FOR PAPER'!B$20+'GRAPHS FOR PAPER'!B$21*'DATA COLLATED'!Q170+'GRAPHS FOR PAPER'!B$22*'DATA COLLATED'!Q170*'DATA COLLATED'!Q170","v":1.5832617560000013},{"$f":"'GRAPHS FOR PAPER'!B$25+'GRAPHS FOR PAPER'!B$26*'DATA COLLATED'!Q170","v":25.643394799999975}]
[null,null,null,null,null,null,null,null,null,null,null,null,null,null,null,null,-0.40999999999996001,{"$f":"'GRAPHS FOR PAPER'!B$20+'GRAPHS FOR PAPER'!B$21*'DATA COLLATED'!Q171+'GRAPHS FOR PAPER'!B$22*'DATA COLLATED'!Q171*'DATA COLLATED'!Q171","v":1.5835398990000011},{"$f":"'GRAPHS FOR PAPER'!B$25+'GRAPHS FOR PAPER'!B$26*'DATA COLLATED'!Q171","v":25.637385399999975}]
[null,null,null,null,null,null,null,null,null,null,null,null,null,null,null,null,-0.39999999999996,{"$f":"'GRAPHS FOR PAPER'!B$20+'GRAPHS FOR PAPER'!B$21*'DATA COLLATED'!Q172+'GRAPHS FOR PAPER'!B$22*'DATA COLLATED'!Q172*'DATA COLLATED'!Q172","v":1.583786400000001},{"$f":"'GRAPHS FOR PAPER'!B$25+'GRAPHS FOR PAPER'!B$26*'DATA COLLATED'!Q172","v":25.631375999999975}]
[null,null,null,null,null,null,null,null,null,null,null,null,null,null,null,null,-0.38999999999995999,{"$f":"'GRAPHS FOR PAPER'!B$20+'GRAPHS FOR PAPER'!B$21*'DATA COLLATED'!Q173+'GRAPHS FOR PAPER'!B$22*'DATA COLLATED'!Q173*'DATA COLLATED'!Q173","v":1.5840012590000008},{"$f":"'GRAPHS FOR PAPER'!B$25+'GRAPHS FOR PAPER'!B$26*'DATA COLLATED'!Q173","v":25.625366599999975}]
[null,null,null,null,null,null,null,null,null,null,null,null,null,null,null,null,-0.37999999999995998,{"$f":"'GRAPHS FOR PAPER'!B$20+'GRAPHS FOR PAPER'!B$21*'DATA COLLATED'!Q174+'GRAPHS FOR PAPER'!B$22*'DATA COLLATED'!Q174*'DATA COLLATED'!Q174","v":1.5841844760000008},{"$f":"'GRAPHS FOR PAPER'!B$25+'GRAPHS FOR PAPER'!B$26*'DATA COLLATED'!Q174","v":25.619357199999975}]
[null,null,null,null,null,null,null,null,null,null,null,null,null,null,null,null,-0.36999999999996003,{"$f":"'GRAPHS FOR PAPER'!B$20+'GRAPHS FOR PAPER'!B$21*'DATA COLLATED'!Q175+'GRAPHS FOR PAPER'!B$22*'DATA COLLATED'!Q175*'DATA COLLATED'!Q175","v":1.5843360510000009},{"$f":"'GRAPHS FOR PAPER'!B$25+'GRAPHS FOR PAPER'!B$26*'DATA COLLATED'!Q175","v":25.613347799999975}]
[null,null,null,null,null,null,null,null,null,null,null,null,null,null,null,null,-0.35999999999996002,{"$f":"'GRAPHS FOR PAPER'!B$20+'GRAPHS FOR PAPER'!B$21*'DATA COLLATED'!Q176+'GRAPHS FOR PAPER'!B$22*'DATA COLLATED'!Q176*'DATA COLLATED'!Q176","v":1.5844559840000005},{"$f":"'GRAPHS FOR PAPER'!B$25+'GRAPHS FOR PAPER'!B$26*'DATA COLLATED'!Q176","v":25.607338399999975}]
[null,null,null,null,null,null,null,null,null,null,null,null,null,null,null,null,-0.34999999999996001,{"$f":"'GRAPHS FOR PAPER'!B$20+'GRAPHS FOR PAPER'!B$21*'DATA COLLATED'!Q177+'GRAPHS FOR PAPER'!B$22*'DATA COLLATED'!Q177*'DATA COLLATED'!Q177","v":1.5845442750000005},{"$f":"'GRAPHS FOR PAPER'!B$25+'GRAPHS FOR PAPER'!B$26*'DATA COLLATED'!Q177","v":25.601328999999975}]
[null,null,null,null,null,null,null,null,null,null,null,null,null,null,null,null,-0.33999999999996,{"$f":"'GRAPHS FOR PAPER'!B$20+'GRAPHS FOR PAPER'!B$21*'DATA COLLATED'!Q178+'GRAPHS FOR PAPER'!B$22*'DATA COLLATED'!Q178*'DATA COLLATED'!Q178","v":1.5846009240000003},{"$f":"'GRAPHS FOR PAPER'!B$25+'GRAPHS FOR PAPER'!B$26*'DATA COLLATED'!Q178","v":25.595319599999975}]
[null,null,null,null,null,null,null,null,null,null,null,null,null,null,null,null,-0.32999999999995999,{"$f":"'GRAPHS FOR PAPER'!B$20+'GRAPHS FOR PAPER'!B$21*'DATA COLLATED'!Q179+'GRAPHS FOR PAPER'!B$22*'DATA COLLATED'!Q179*'DATA COLLATED'!Q179","v":1.5846259310000002},{"$f":"'GRAPHS FOR PAPER'!B$25+'GRAPHS FOR PAPER'!B$26*'DATA COLLATED'!Q179","v":25.589310199999975}]
[null,null,null,null,null,null,null,null,null,null,null,null,null,null,null,null,-0.31999999999995998,{"$f":"'GRAPHS FOR PAPER'!B$20+'GRAPHS FOR PAPER'!B$21*'DATA COLLATED'!Q180+'GRAPHS FOR PAPER'!B$22*'DATA COLLATED'!Q180*'DATA COLLATED'!Q180","v":1.5846192960000001},{"$f":"'GRAPHS FOR PAPER'!B$25+'GRAPHS FOR PAPER'!B$26*'DATA COLLATED'!Q180","v":25.583300799999975}]
[null,null,null,null,null,null,null,null,null,null,null,null,null,null,null,null,-0.30999999999995997,{"$f":"'GRAPHS FOR PAPER'!B$20+'GRAPHS FOR PAPER'!B$21*'DATA COLLATED'!Q181+'GRAPHS FOR PAPER'!B$22*'DATA COLLATED'!Q181*'DATA COLLATED'!Q181","v":1.584581019},{"$f":"'GRAPHS FOR PAPER'!B$25+'GRAPHS FOR PAPER'!B$26*'DATA COLLATED'!Q181","v":25.577291399999975}]
[null,null,null,null,null,null,null,null,null,null,null,null,null,null,null,null,-0.29999999999996002,{"$f":"'GRAPHS FOR PAPER'!B$20+'GRAPHS FOR PAPER'!B$21*'DATA COLLATED'!Q182+'GRAPHS FOR PAPER'!B$22*'DATA COLLATED'!Q182*'DATA COLLATED'!Q182","v":1.5845110999999996},{"$f":"'GRAPHS FOR PAPER'!B$25+'GRAPHS FOR PAPER'!B$26*'DATA COLLATED'!Q182","v":25.571281999999975}]
[null,null,null,null,null,null,null,null,null,null,null,null,null,null,null,null,-0.28999999999996001,{"$f":"'GRAPHS FOR PAPER'!B$20+'GRAPHS FOR PAPER'!B$21*'DATA COLLATED'!Q183+'GRAPHS FOR PAPER'!B$22*'DATA COLLATED'!Q183*'DATA COLLATED'!Q183","v":1.5844095389999997},{"$f":"'GRAPHS FOR PAPER'!B$25+'GRAPHS FOR PAPER'!B$26*'DATA COLLATED'!Q183","v":25.565272599999975}]
[null,null,null,null,null,null,null,null,null,null,null,null,null,null,null,null,-0.27999999999996,{"$f":"'GRAPHS FOR PAPER'!B$20+'GRAPHS FOR PAPER'!B$21*'DATA COLLATED'!Q184+'GRAPHS FOR PAPER'!B$22*'DATA COLLATED'!Q184*'DATA COLLATED'!Q184","v":1.5842763359999994},{"$f":"'GRAPHS FOR PAPER'!B$25+'GRAPHS FOR PAPER'!B$26*'DATA COLLATED'!Q184","v":25.559263199999975}]
[null,null,null,null,null,null,null,null,null,null,null,null,null,null,null,null,-0.26999999999995999,{"$f":"'GRAPHS FOR PAPER'!B$20+'GRAPHS FOR PAPER'!B$21*'DATA COLLATED'!Q185+'GRAPHS FOR PAPER'!B$22*'DATA COLLATED'!Q185*'DATA COLLATED'!Q185","v":1.5841114909999994},{"$f":"'GRAPHS FOR PAPER'!B$25+'GRAPHS FOR PAPER'!B$26*'DATA COLLATED'!Q185","v":25.553253799999975}]
[null,null,null,null,null,null,null,null,null,null,null,null,null,null,null,null,-0.25999999999995999,{"$f":"'GRAPHS FOR PAPER'!B$20+'GRAPHS FOR PAPER'!B$21*'DATA COLLATED'!Q186+'GRAPHS FOR PAPER'!B$22*'DATA COLLATED'!Q186*'DATA COLLATED'!Q186","v":1.5839150039999992},{"$f":"'GRAPHS FOR PAPER'!B$25+'GRAPHS FOR PAPER'!B$26*'DATA COLLATED'!Q186","v":25.547244399999975}]
[null,null,null,null,null,null,null,null,null,null,null,null,null,null,null,null,-0.24999999999996,{"$f":"'GRAPHS FOR PAPER'!B$20+'GRAPHS FOR PAPER'!B$21*'DATA COLLATED'!Q187+'GRAPHS FOR PAPER'!B$22*'DATA COLLATED'!Q187*'DATA COLLATED'!Q187","v":1.5836868749999991},{"$f":"'GRAPHS FOR PAPER'!B$25+'GRAPHS FOR PAPER'!B$26*'DATA COLLATED'!Q187","v":25.541234999999975}]
[null,null,null,null,null,null,null,null,null,null,null,null,null,null,null,null,-0.23999999999996,{"$f":"'GRAPHS FOR PAPER'!B$20+'GRAPHS FOR PAPER'!B$21*'DATA COLLATED'!Q188+'GRAPHS FOR PAPER'!B$22*'DATA COLLATED'!Q188*'DATA COLLATED'!Q188","v":1.583427103999999},{"$f":"'GRAPHS FOR PAPER'!B$25+'GRAPHS FOR PAPER'!B$26*'DATA COLLATED'!Q188","v":25.535225599999976}]
[null,null,null,null,null,null,null,null,null,null,null,null,null,null,null,null,-0.22999999999995999,{"$f":"'GRAPHS FOR PAPER'!B$20+'GRAPHS FOR PAPER'!B$21*'DATA COLLATED'!Q189+'GRAPHS FOR PAPER'!B$22*'DATA COLLATED'!Q189*'DATA COLLATED'!Q189","v":1.583135690999999},{"$f":"'GRAPHS FOR PAPER'!B$25+'GRAPHS FOR PAPER'!B$26*'DATA COLLATED'!Q189","v":25.529216199999976}]
[null,null,null,null,null,null,null,null,null,null,null,null,null,null,null,null,-0.21999999999996001,{"$f":"'GRAPHS FOR PAPER'!B$20+'GRAPHS FOR PAPER'!B$21*'DATA COLLATED'!Q190+'GRAPHS FOR PAPER'!B$22*'DATA COLLATED'!Q190*'DATA COLLATED'!Q190","v":1.5828126359999988},{"$f":"'GRAPHS FOR PAPER'!B$25+'GRAPHS FOR PAPER'!B$26*'DATA COLLATED'!Q190","v":25.523206799999976}]
[null,null,null,null,null,null,null,null,null,null,null,null,null,null,null,null,-0.20999999999996,{"$f":"'GRAPHS FOR PAPER'!B$20+'GRAPHS FOR PAPER'!B$21*'DATA COLLATED'!Q191+'GRAPHS FOR PAPER'!B$22*'DATA COLLATED'!Q191*'DATA COLLATED'!Q191","v":1.5824579389999986},{"$f":"'GRAPHS FOR PAPER'!B$25+'GRAPHS FOR PAPER'!B$26*'DATA COLLATED'!Q191","v":25.517197399999976}]
[null,null,null,null,null,null,null,null,null,null,null,null,null,null,null,null,-0.19999999999995999,{"$f":"'GRAPHS FOR PAPER'!B$20+'GRAPHS FOR PAPER'!B$21*'DATA COLLATED'!Q192+'GRAPHS FOR PAPER'!B$22*'DATA COLLATED'!Q192*'DATA COLLATED'!Q192","v":1.5820715999999986},{"$f":"'GRAPHS FOR PAPER'!B$25+'GRAPHS FOR PAPER'!B$26*'DATA COLLATED'!Q192","v":25.511187999999976}]
[null,null,null,null,null,null,null,null,null,null,null,null,null,null,null,null,-0.18999999999996001,{"$f":"'GRAPHS FOR PAPER'!B$20+'GRAPHS FOR PAPER'!B$21*'DATA COLLATED'!Q193+'GRAPHS FOR PAPER'!B$22*'DATA COLLATED'!Q193*'DATA COLLATED'!Q193","v":1.5816536189999983},{"$f":"'GRAPHS FOR PAPER'!B$25+'GRAPHS FOR PAPER'!B$26*'DATA COLLATED'!Q193","v":25.505178599999976}]
[null,null,null,null,null,null,null,null,null,null,null,null,null,null,null,null,-0.17999999999996,{"$f":"'GRAPHS FOR PAPER'!B$20+'GRAPHS FOR PAPER'!B$21*'DATA COLLATED'!Q194+'GRAPHS FOR PAPER'!B$22*'DATA COLLATED'!Q194*'DATA COLLATED'!Q194","v":1.5812039959999984},{"$f":"'GRAPHS FOR PAPER'!B$25+'GRAPHS FOR PAPER'!B$26*'DATA COLLATED'!Q194","v":25.499169199999976}]
[null,null,null,null,null,null,null,null,null,null,null,null,null,null,null,null,-0.16999999999995999,{"$f":"'GRAPHS FOR PAPER'!B$20+'GRAPHS FOR PAPER'!B$21*'DATA COLLATED'!Q195+'GRAPHS FOR PAPER'!B$22*'DATA COLLATED'!Q195*'DATA COLLATED'!Q195","v":1.580722730999998},{"$f":"'GRAPHS FOR PAPER'!B$25+'GRAPHS FOR PAPER'!B$26*'DATA COLLATED'!Q195","v":25.493159799999976}]
[null,null,null,null,null,null,null,null,null,null,null,null,null,null,null,null,-0.15999999999996001,{"$f":"'GRAPHS FOR PAPER'!B$20+'GRAPHS FOR PAPER'!B$21*'DATA COLLATED'!Q196+'GRAPHS FOR PAPER'!B$22*'DATA COLLATED'!Q196*'DATA COLLATED'!Q196","v":1.580209823999998},{"$f":"'GRAPHS FOR PAPER'!B$25+'GRAPHS FOR PAPER'!B$26*'DATA COLLATED'!Q196","v":25.487150399999972}]
[null,null,null,null,null,null,null,null,null,null,null,null,null,null,null,null,-0.14999999999995001,{"$f":"'GRAPHS FOR PAPER'!B$20+'GRAPHS FOR PAPER'!B$21*'DATA COLLATED'!Q197+'GRAPHS FOR PAPER'!B$22*'DATA COLLATED'!Q197*'DATA COLLATED'!Q197","v":1.5796652749999973},{"$f":"'GRAPHS FOR PAPER'!B$25+'GRAPHS FOR PAPER'!B$26*'DATA COLLATED'!Q197","v":25.481140999999969}]
[null,null,null,null,null,null,null,null,null,null,null,null,null,null,null,null,-0.13999999999995,{"$f":"'GRAPHS FOR PAPER'!B$20+'GRAPHS FOR PAPER'!B$21*'DATA COLLATED'!Q198+'GRAPHS FOR PAPER'!B$22*'DATA COLLATED'!Q198*'DATA COLLATED'!Q198","v":1.5790890839999971},{"$f":"'GRAPHS FOR PAPER'!B$25+'GRAPHS FOR PAPER'!B$26*'DATA COLLATED'!Q198","v":25.475131599999969}]
[null,null,null,null,null,null,null,null,null,null,null,null,null,null,null,null,-0.12999999999994999,{"$f":"'GRAPHS FOR PAPER'!B$20+'GRAPHS FOR PAPER'!B$21*'DATA COLLATED'!Q199+'GRAPHS FOR PAPER'!B$22*'DATA COLLATED'!Q199*'DATA COLLATED'!Q199","v":1.578481250999997},{"$f":"'GRAPHS FOR PAPER'!B$25+'GRAPHS FOR PAPER'!B$26*'DATA COLLATED'!Q199","v":25.469122199999969}]
[null,null,null,null,null,null,null,null,null,null,null,null,null,null,null,null,-0.11999999999994999,{"$f":"'GRAPHS FOR PAPER'!B$20+'GRAPHS FOR PAPER'!B$21*'DATA COLLATED'!Q200+'GRAPHS FOR PAPER'!B$22*'DATA COLLATED'!Q200*'DATA COLLATED'!Q200","v":1.5778417759999968},{"$f":"'GRAPHS FOR PAPER'!B$25+'GRAPHS FOR PAPER'!B$26*'DATA COLLATED'!Q200","v":25.463112799999969}]
[null,null,null,null,null,null,null,null,null,null,null,null,null,null,null,null,-0.10999999999995,{"$f":"'GRAPHS FOR PAPER'!B$20+'GRAPHS FOR PAPER'!B$21*'DATA COLLATED'!Q201+'GRAPHS FOR PAPER'!B$22*'DATA COLLATED'!Q201*'DATA COLLATED'!Q201","v":1.5771706589999968},{"$f":"'GRAPHS FOR PAPER'!B$25+'GRAPHS FOR PAPER'!B$26*'DATA COLLATED'!Q201","v":25.457103399999969}]
[null,null,null,null,null,null,null,null,null,null,null,null,null,null,null,null,-9.9999999999949907E-2,{"$f":"'GRAPHS FOR PAPER'!B$20+'GRAPHS FOR PAPER'!B$21*'DATA COLLATED'!Q202+'GRAPHS FOR PAPER'!B$22*'DATA COLLATED'!Q202*'DATA COLLATED'!Q202","v":1.5764678999999964},{"$f":"'GRAPHS FOR PAPER'!B$25+'GRAPHS FOR PAPER'!B$26*'DATA COLLATED'!Q202","v":25.451093999999969}]
[null,null,null,null,null,null,null,null,null,null,null,null,null,null,null,null,-8.9999999999950106E-2,{"$f":"'GRAPHS FOR PAPER'!B$20+'GRAPHS FOR PAPER'!B$21*'DATA COLLATED'!Q203+'GRAPHS FOR PAPER'!B$22*'DATA COLLATED'!Q203*'DATA COLLATED'!Q203","v":1.5757334989999963},{"$f":"'GRAPHS FOR PAPER'!B$25+'GRAPHS FOR PAPER'!B$26*'DATA COLLATED'!Q203","v":25.445084599999969}]
[null,null,null,null,null,null,null,null,null,null,null,null,null,null,null,null,-7.9999999999949903E-2,{"$f":"'GRAPHS FOR PAPER'!B$20+'GRAPHS FOR PAPER'!B$21*'DATA COLLATED'!Q204+'GRAPHS FOR PAPER'!B$22*'DATA COLLATED'!Q204*'DATA COLLATED'!Q204","v":1.574967455999996},{"$f":"'GRAPHS FOR PAPER'!B$25+'GRAPHS FOR PAPER'!B$26*'DATA COLLATED'!Q204","v":25.439075199999969}]
[null,null,null,null,null,null,null,null,null,null,null,null,null,null,null,null,-6.9999999999950102E-2,{"$f":"'GRAPHS FOR PAPER'!B$20+'GRAPHS FOR PAPER'!B$21*'DATA COLLATED'!Q205+'GRAPHS FOR PAPER'!B$22*'DATA COLLATED'!Q205*'DATA COLLATED'!Q205","v":1.574169770999996},{"$f":"'GRAPHS FOR PAPER'!B$25+'GRAPHS FOR PAPER'!B$26*'DATA COLLATED'!Q205","v":25.433065799999969}]
[null,null,null,null,null,null,null,null,null,null,null,null,null,null,null,null,-5.9999999999949899E-2,{"$f":"'GRAPHS FOR PAPER'!B$20+'GRAPHS FOR PAPER'!B$21*'DATA COLLATED'!Q206+'GRAPHS FOR PAPER'!B$22*'DATA COLLATED'!Q206*'DATA COLLATED'!Q206","v":1.5733404439999958},{"$f":"'GRAPHS FOR PAPER'!B$25+'GRAPHS FOR PAPER'!B$26*'DATA COLLATED'!Q206","v":25.427056399999969}]
[null,null,null,null,null,null,null,null,null,null,null,null,null,null,null,null,-4.9999999999950098E-2,{"$f":"'GRAPHS FOR PAPER'!B$20+'GRAPHS FOR PAPER'!B$21*'DATA COLLATED'!Q207+'GRAPHS FOR PAPER'!B$22*'DATA COLLATED'!Q207*'DATA COLLATED'!Q207","v":1.5724794749999957},{"$f":"'GRAPHS FOR PAPER'!B$25+'GRAPHS FOR PAPER'!B$26*'DATA COLLATED'!Q207","v":25.42104699999997}]
[null,null,null,null,null,null,null,null,null,null,null,null,null,null,null,null,-3.9999999999950298E-2,{"$f":"'GRAPHS FOR PAPER'!B$20+'GRAPHS FOR PAPER'!B$21*'DATA COLLATED'!Q208+'GRAPHS FOR PAPER'!B$22*'DATA COLLATED'!Q208*'DATA COLLATED'!Q208","v":1.5715868639999957},{"$f":"'GRAPHS FOR PAPER'!B$25+'GRAPHS FOR PAPER'!B$26*'DATA COLLATED'!Q208","v":25.41503759999997}]
[null,null,null,null,null,null,null,null,null,null,null,null,null,null,null,null,-2.9999999999950101E-2,{"$f":"'GRAPHS FOR PAPER'!B$20+'GRAPHS FOR PAPER'!B$21*'DATA COLLATED'!Q209+'GRAPHS FOR PAPER'!B$22*'DATA COLLATED'!Q209*'DATA COLLATED'!Q209","v":1.5706626109999953},{"$f":"'GRAPHS FOR PAPER'!B$25+'GRAPHS FOR PAPER'!B$26*'DATA COLLATED'!Q209","v":25.40902819999997}]
[null,null,null,null,null,null,null,null,null,null,null,null,null,null,null,null,-1.9999999999950301E-2,{"$f":"'GRAPHS FOR PAPER'!B$20+'GRAPHS FOR PAPER'!B$21*'DATA COLLATED'!Q210+'GRAPHS FOR PAPER'!B$22*'DATA COLLATED'!Q210*'DATA COLLATED'!Q210","v":1.5697067159999953},{"$f":"'GRAPHS FOR PAPER'!B$25+'GRAPHS FOR PAPER'!B$26*'DATA COLLATED'!Q210","v":25.40301879999997}]
[null,null,null,null,null,null,null,null,null,null,null,null,null,null,null,null,-9.9999999999500506E-3,{"$f":"'GRAPHS FOR PAPER'!B$20+'GRAPHS FOR PAPER'!B$21*'DATA COLLATED'!Q211+'GRAPHS FOR PAPER'!B$22*'DATA COLLATED'!Q211*'DATA COLLATED'!Q211","v":1.568719178999995},{"$f":"'GRAPHS FOR PAPER'!B$25+'GRAPHS FOR PAPER'!B$26*'DATA COLLATED'!Q211","v":25.39700939999997}]
[null,null,null,null,null,null,null,null,null,null,null,null,null,null,null,null,4.9737991503207E-14,{"$f":"'GRAPHS FOR PAPER'!B$20+'GRAPHS FOR PAPER'!B$21*'DATA COLLATED'!Q212+'GRAPHS FOR PAPER'!B$22*'DATA COLLATED'!Q212*'DATA COLLATED'!Q212","v":1.567699999999995},{"$f":"'GRAPHS FOR PAPER'!B$25+'GRAPHS FOR PAPER'!B$26*'DATA COLLATED'!Q212","v":25.39099999999997}]
[null,null,null,null,null,null,null,null,null,null,null,null,null,null,null,null,1.000000000005E-2,{"$f":"'GRAPHS FOR PAPER'!B$20+'GRAPHS FOR PAPER'!B$21*'DATA COLLATED'!Q213+'GRAPHS FOR PAPER'!B$22*'DATA COLLATED'!Q213*'DATA COLLATED'!Q213","v":1.5666491789999948},{"$f":"'GRAPHS FOR PAPER'!B$25+'GRAPHS FOR PAPER'!B$26*'DATA COLLATED'!Q213","v":25.38499059999997}]
[null,null,null,null,null,null,null,null,null,null,null,null,null,null,null,null,2.0000000000049801E-2,{"$f":"'GRAPHS FOR PAPER'!B$20+'GRAPHS FOR PAPER'!B$21*'DATA COLLATED'!Q214+'GRAPHS FOR PAPER'!B$22*'DATA COLLATED'!Q214*'DATA COLLATED'!Q214","v":1.5655667159999946},{"$f":"'GRAPHS FOR PAPER'!B$25+'GRAPHS FOR PAPER'!B$26*'DATA COLLATED'!Q214","v":25.37898119999997}]
[null,null,null,null,null,null,null,null,null,null,null,null,null,null,null,null,3.0000000000050001E-2,{"$f":"'GRAPHS FOR PAPER'!B$20+'GRAPHS FOR PAPER'!B$21*'DATA COLLATED'!Q215+'GRAPHS FOR PAPER'!B$22*'DATA COLLATED'!Q215*'DATA COLLATED'!Q215","v":1.5644526109999943},{"$f":"'GRAPHS FOR PAPER'!B$25+'GRAPHS FOR PAPER'!B$26*'DATA COLLATED'!Q215","v":25.372971799999966}]
[null,null,null,null,null,null,null,null,null,null,null,null,null,null,null,null,4.0000000000049801E-2,{"$f":"'GRAPHS FOR PAPER'!B$20+'GRAPHS FOR PAPER'!B$21*'DATA COLLATED'!Q216+'GRAPHS FOR PAPER'!B$22*'DATA COLLATED'!Q216*'DATA COLLATED'!Q216","v":1.5633068639999943},{"$f":"'GRAPHS FOR PAPER'!B$25+'GRAPHS FOR PAPER'!B$26*'DATA COLLATED'!Q216","v":25.36696239999997}]
[null,null,null,null,null,null,null,null,null,null,null,null,null,null,null,null,5.0000000000049998E-2,{"$f":"'GRAPHS FOR PAPER'!B$20+'GRAPHS FOR PAPER'!B$21*'DATA COLLATED'!Q217+'GRAPHS FOR PAPER'!B$22*'DATA COLLATED'!Q217*'DATA COLLATED'!Q217","v":1.5621294749999941},{"$f":"'GRAPHS FOR PAPER'!B$25+'GRAPHS FOR PAPER'!B$26*'DATA COLLATED'!Q217","v":25.360952999999967}]
[null,null,null,null,null,null,null,null,null,null,null,null,null,null,null,null,6.0000000000049798E-2,{"$f":"'GRAPHS FOR PAPER'!B$20+'GRAPHS FOR PAPER'!B$21*'DATA COLLATED'!Q218+'GRAPHS FOR PAPER'!B$22*'DATA COLLATED'!Q218*'DATA COLLATED'!Q218","v":1.560920443999994},{"$f":"'GRAPHS FOR PAPER'!B$25+'GRAPHS FOR PAPER'!B$26*'DATA COLLATED'!Q218","v":25.354943599999967}]
[null,null,null,null,null,null,null,null,null,null,null,null,null,null,null,null,7.0000000000049994E-2,{"$f":"'GRAPHS FOR PAPER'!B$20+'GRAPHS FOR PAPER'!B$21*'DATA COLLATED'!Q219+'GRAPHS FOR PAPER'!B$22*'DATA COLLATED'!Q219*'DATA COLLATED'!Q219","v":1.5596797709999937},{"$f":"'GRAPHS FOR PAPER'!B$25+'GRAPHS FOR PAPER'!B$26*'DATA COLLATED'!Q219","v":25.348934199999967}]
[null,null,null,null,null,null,null,null,null,null,null,null,null,null,null,null,8.0000000000049795E-2,{"$f":"'GRAPHS FOR PAPER'!B$20+'GRAPHS FOR PAPER'!B$21*'DATA COLLATED'!Q220+'GRAPHS FOR PAPER'!B$22*'DATA COLLATED'!Q220*'DATA COLLATED'!Q220","v":1.5584074559999936},{"$f":"'GRAPHS FOR PAPER'!B$25+'GRAPHS FOR PAPER'!B$26*'DATA COLLATED'!Q220","v":25.342924799999967}]
[null,null,null,null,null,null,null,null,null,null,null,null,null,null,null,null,9.0000000000049998E-2,{"$f":"'GRAPHS FOR PAPER'!B$20+'GRAPHS FOR PAPER'!B$21*'DATA COLLATED'!Q221+'GRAPHS FOR PAPER'!B$22*'DATA COLLATED'!Q221*'DATA COLLATED'!Q221","v":1.5571034989999937},{"$f":"'GRAPHS FOR PAPER'!B$25+'GRAPHS FOR PAPER'!B$26*'DATA COLLATED'!Q221","v":25.336915399999967}]
[null,null,null,null,null,null,null,null,null,null,null,null,null,null,null,null,0.10000000000004999,{"$f":"'GRAPHS FOR PAPER'!B$20+'GRAPHS FOR PAPER'!B$21*'DATA COLLATED'!Q222+'GRAPHS FOR PAPER'!B$22*'DATA COLLATED'!Q222*'DATA COLLATED'!Q222","v":1.5557678999999933},{"$f":"'GRAPHS FOR PAPER'!B$25+'GRAPHS FOR PAPER'!B$26*'DATA COLLATED'!Q222","v":25.330905999999967}]
[null,null,null,null,null,null,null,null,null,null,null,null,null,null,null,null,0.11000000000005,{"$f":"'GRAPHS FOR PAPER'!B$20+'GRAPHS FOR PAPER'!B$21*'DATA COLLATED'!Q223+'GRAPHS FOR PAPER'!B$22*'DATA COLLATED'!Q223*'DATA COLLATED'!Q223","v":1.5544006589999932},{"$f":"'GRAPHS FOR PAPER'!B$25+'GRAPHS FOR PAPER'!B$26*'DATA COLLATED'!Q223","v":25.324896599999967}]
[null,null,null,null,null,null,null,null,null,null,null,null,null,null,null,null,0.12000000000005,{"$f":"'GRAPHS FOR PAPER'!B$20+'GRAPHS FOR PAPER'!B$21*'DATA COLLATED'!Q224+'GRAPHS FOR PAPER'!B$22*'DATA COLLATED'!Q224*'DATA COLLATED'!Q224","v":1.553001775999993},{"$f":"'GRAPHS FOR PAPER'!B$25+'GRAPHS FOR PAPER'!B$26*'DATA COLLATED'!Q224","v":25.318887199999967}]
[null,null,null,null,null,null,null,null,null,null,null,null,null,null,null,null,0.13000000000004999,{"$f":"'GRAPHS FOR PAPER'!B$20+'GRAPHS FOR PAPER'!B$21*'DATA COLLATED'!Q225+'GRAPHS FOR PAPER'!B$22*'DATA COLLATED'!Q225*'DATA COLLATED'!Q225","v":1.551571250999993},{"$f":"'GRAPHS FOR PAPER'!B$25+'GRAPHS FOR PAPER'!B$26*'DATA COLLATED'!Q225","v":25.312877799999967}]
[null,null,null,null,null,null,null,null,null,null,null,null,null,null,null,null,0.14000000000005,{"$f":"'GRAPHS FOR PAPER'!B$20+'GRAPHS FOR PAPER'!B$21*'DATA COLLATED'!Q226+'GRAPHS FOR PAPER'!B$22*'DATA COLLATED'!Q226*'DATA COLLATED'!Q226","v":1.5501090839999927},{"$f":"'GRAPHS FOR PAPER'!B$25+'GRAPHS FOR PAPER'!B$26*'DATA COLLATED'!Q226","v":25.306868399999967}]
[null,null,null,null,null,null,null,null,null,null,null,null,null,null,null,null,0.15000000000005001,{"$f":"'GRAPHS FOR PAPER'!B$20+'GRAPHS FOR PAPER'!B$21*'DATA COLLATED'!Q227+'GRAPHS FOR PAPER'!B$22*'DATA COLLATED'!Q227*'DATA COLLATED'!Q227","v":1.5486152749999926},{"$f":"'GRAPHS FOR PAPER'!B$25+'GRAPHS FOR PAPER'!B$26*'DATA COLLATED'!Q227","v":25.300858999999967}]
[null,null,null,null,null,null,null,null,null,null,null,null,null,null,null,null,0.16000000000004999,{"$f":"'GRAPHS FOR PAPER'!B$20+'GRAPHS FOR PAPER'!B$21*'DATA COLLATED'!Q228+'GRAPHS FOR PAPER'!B$22*'DATA COLLATED'!Q228*'DATA COLLATED'!Q228","v":1.5470898239999924},{"$f":"'GRAPHS FOR PAPER'!B$25+'GRAPHS FOR PAPER'!B$26*'DATA COLLATED'!Q228","v":25.294849599999967}]
[null,null,null,null,null,null,null,null,null,null,null,null,null,null,null,null,0.17000000000005,{"$f":"'GRAPHS FOR PAPER'!B$20+'GRAPHS FOR PAPER'!B$21*'DATA COLLATED'!Q229+'GRAPHS FOR PAPER'!B$22*'DATA COLLATED'!Q229*'DATA COLLATED'!Q229","v":1.5455327309999922},{"$f":"'GRAPHS FOR PAPER'!B$25+'GRAPHS FOR PAPER'!B$26*'DATA COLLATED'!Q229","v":25.288840199999967}]
[null,null,null,null,null,null,null,null,null,null,null,null,null,null,null,null,0.18000000000005001,{"$f":"'GRAPHS FOR PAPER'!B$20+'GRAPHS FOR PAPER'!B$21*'DATA COLLATED'!Q230+'GRAPHS FOR PAPER'!B$22*'DATA COLLATED'!Q230*'DATA COLLATED'!Q230","v":1.5439439959999919},{"$f":"'GRAPHS FOR PAPER'!B$25+'GRAPHS FOR PAPER'!B$26*'DATA COLLATED'!Q230","v":25.282830799999967}]
[null,null,null,null,null,null,null,null,null,null,null,null,null,null,null,null,0.19000000000004999,{"$f":"'GRAPHS FOR PAPER'!B$20+'GRAPHS FOR PAPER'!B$21*'DATA COLLATED'!Q231+'GRAPHS FOR PAPER'!B$22*'DATA COLLATED'!Q231*'DATA COLLATED'!Q231","v":1.542323618999992},{"$f":"'GRAPHS FOR PAPER'!B$25+'GRAPHS FOR PAPER'!B$26*'DATA COLLATED'!Q231","v":25.276821399999967}]
[null,null,null,null,null,null,null,null,null,null,null,null,null,null,null,null,0.20000000000005,{"$f":"'GRAPHS FOR PAPER'!B$20+'GRAPHS FOR PAPER'!B$21*'DATA COLLATED'!Q232+'GRAPHS FOR PAPER'!B$22*'DATA COLLATED'!Q232*'DATA COLLATED'!Q232","v":1.5406715999999916},{"$f":"'GRAPHS FOR PAPER'!B$25+'GRAPHS FOR PAPER'!B$26*'DATA COLLATED'!Q232","v":25.270811999999967}]
[null,null,null,null,null,null,null,null,null,null,null,null,null,null,null,null,0.21000000000005001,{"$f":"'GRAPHS FOR PAPER'!B$20+'GRAPHS FOR PAPER'!B$21*'DATA COLLATED'!Q233+'GRAPHS FOR PAPER'!B$22*'DATA COLLATED'!Q233*'DATA COLLATED'!Q233","v":1.5389879389999916},{"$f":"'GRAPHS FOR PAPER'!B$25+'GRAPHS FOR PAPER'!B$26*'DATA COLLATED'!Q233","v":25.264802599999967}]
[null,null,null,null,null,null,null,null,null,null,null,null,null,null,null,null,0.22000000000004999,{"$f":"'GRAPHS FOR PAPER'!B$20+'GRAPHS FOR PAPER'!B$21*'DATA COLLATED'!Q234+'GRAPHS FOR PAPER'!B$22*'DATA COLLATED'!Q234*'DATA COLLATED'!Q234","v":1.5372726359999915},{"$f":"'GRAPHS FOR PAPER'!B$25+'GRAPHS FOR PAPER'!B$26*'DATA COLLATED'!Q234","v":25.258793199999968}]
[null,null,null,null,null,null,null,null,null,null,null,null,null,null,null,null,0.23000000000005,{"$f":"'GRAPHS FOR PAPER'!B$20+'GRAPHS FOR PAPER'!B$21*'DATA COLLATED'!Q235+'GRAPHS FOR PAPER'!B$22*'DATA COLLATED'!Q235*'DATA COLLATED'!Q235","v":1.5355256909999913},{"$f":"'GRAPHS FOR PAPER'!B$25+'GRAPHS FOR PAPER'!B$26*'DATA COLLATED'!Q235","v":25.252783799999968}]
[null,null,null,null,null,null,null,null,null,null,null,null,null,null,null,null,0.24000000000005001,{"$f":"'GRAPHS FOR PAPER'!B$20+'GRAPHS FOR PAPER'!B$21*'DATA COLLATED'!Q236+'GRAPHS FOR PAPER'!B$22*'DATA COLLATED'!Q236*'DATA COLLATED'!Q236","v":1.5337471039999913},{"$f":"'GRAPHS FOR PAPER'!B$25+'GRAPHS FOR PAPER'!B$26*'DATA COLLATED'!Q236","v":25.246774399999968}]
[null,null,null,null,null,null,null,null,null,null,null,null,null,null,null,null,0.25000000000005002,{"$f":"'GRAPHS FOR PAPER'!B$20+'GRAPHS FOR PAPER'!B$21*'DATA COLLATED'!Q237+'GRAPHS FOR PAPER'!B$22*'DATA COLLATED'!Q237*'DATA COLLATED'!Q237","v":1.5319368749999909},{"$f":"'GRAPHS FOR PAPER'!B$25+'GRAPHS FOR PAPER'!B$26*'DATA COLLATED'!Q237","v":25.240764999999968}]
[null,null,null,null,null,null,null,null,null,null,null,null,null,null,null,null,0.26000000000005002,{"$f":"'GRAPHS FOR PAPER'!B$20+'GRAPHS FOR PAPER'!B$21*'DATA COLLATED'!Q238+'GRAPHS FOR PAPER'!B$22*'DATA COLLATED'!Q238*'DATA COLLATED'!Q238","v":1.530095003999991},{"$f":"'GRAPHS FOR PAPER'!B$25+'GRAPHS FOR PAPER'!B$26*'DATA COLLATED'!Q238","v":25.234755599999968}]
[null,null,null,null,null,null,null,null,null,null,null,null,null,null,null,null,0.27000000000004998,{"$f":"'GRAPHS FOR PAPER'!B$20+'GRAPHS FOR PAPER'!B$21*'DATA COLLATED'!Q239+'GRAPHS FOR PAPER'!B$22*'DATA COLLATED'!Q239*'DATA COLLATED'!Q239","v":1.5282214909999907},{"$f":"'GRAPHS FOR PAPER'!B$25+'GRAPHS FOR PAPER'!B$26*'DATA COLLATED'!Q239","v":25.228746199999968}]
[null,null,null,null,null,null,null,null,null,null,null,null,null,null,null,null,0.28000000000004999,{"$f":"'GRAPHS FOR PAPER'!B$20+'GRAPHS FOR PAPER'!B$21*'DATA COLLATED'!Q240+'GRAPHS FOR PAPER'!B$22*'DATA COLLATED'!Q240*'DATA COLLATED'!Q240","v":1.5263163359999905},{"$f":"'GRAPHS FOR PAPER'!B$25+'GRAPHS FOR PAPER'!B$26*'DATA COLLATED'!Q240","v":25.222736799999968}]
[null,null,null,null,null,null,null,null,null,null,null,null,null,null,null,null,0.29000000000005999,{"$f":"'GRAPHS FOR PAPER'!B$20+'GRAPHS FOR PAPER'!B$21*'DATA COLLATED'!Q241+'GRAPHS FOR PAPER'!B$22*'DATA COLLATED'!Q241*'DATA COLLATED'!Q241","v":1.5243795389999886},{"$f":"'GRAPHS FOR PAPER'!B$25+'GRAPHS FOR PAPER'!B$26*'DATA COLLATED'!Q241","v":25.216727399999961}]
[null,null,null,null,null,null,null,null,null,null,null,null,null,null,null,null,0.30000000000006,{"$f":"'GRAPHS FOR PAPER'!B$20+'GRAPHS FOR PAPER'!B$21*'DATA COLLATED'!Q242+'GRAPHS FOR PAPER'!B$22*'DATA COLLATED'!Q242*'DATA COLLATED'!Q242","v":1.5224110999999882},{"$f":"'GRAPHS FOR PAPER'!B$25+'GRAPHS FOR PAPER'!B$26*'DATA COLLATED'!Q242","v":25.210717999999961}]
[null,null,null,null,null,null,null,null,null,null,null,null,null,null,null,null,0.31000000000006001,{"$f":"'GRAPHS FOR PAPER'!B$20+'GRAPHS FOR PAPER'!B$21*'DATA COLLATED'!Q243+'GRAPHS FOR PAPER'!B$22*'DATA COLLATED'!Q243*'DATA COLLATED'!Q243","v":1.520411018999988},{"$f":"'GRAPHS FOR PAPER'!B$25+'GRAPHS FOR PAPER'!B$26*'DATA COLLATED'!Q243","v":25.204708599999961}]
[null,null,null,null,null,null,null,null,null,null,null,null,null,null,null,null,0.32000000000006001,{"$f":"'GRAPHS FOR PAPER'!B$20+'GRAPHS FOR PAPER'!B$21*'DATA COLLATED'!Q244+'GRAPHS FOR PAPER'!B$22*'DATA COLLATED'!Q244*'DATA COLLATED'!Q244","v":1.5183792959999878},{"$f":"'GRAPHS FOR PAPER'!B$25+'GRAPHS FOR PAPER'!B$26*'DATA COLLATED'!Q244","v":25.198699199999961}]
[null,null,null,null,null,null,null,null,null,null,null,null,null,null,null,null,0.33000000000006002,{"$f":"'GRAPHS FOR PAPER'!B$20+'GRAPHS FOR PAPER'!B$21*'DATA COLLATED'!Q245+'GRAPHS FOR PAPER'!B$22*'DATA COLLATED'!Q245*'DATA COLLATED'!Q245","v":1.5163159309999876},{"$f":"'GRAPHS FOR PAPER'!B$25+'GRAPHS FOR PAPER'!B$26*'DATA COLLATED'!Q245","v":25.192689799999961}]
[null,null,null,null,null,null,null,null,null,null,null,null,null,null,null,null,0.34000000000005998,{"$f":"'GRAPHS FOR PAPER'!B$20+'GRAPHS FOR PAPER'!B$21*'DATA COLLATED'!Q246+'GRAPHS FOR PAPER'!B$22*'DATA COLLATED'!Q246*'DATA COLLATED'!Q246","v":1.5142209239999873},{"$f":"'GRAPHS FOR PAPER'!B$25+'GRAPHS FOR PAPER'!B$26*'DATA COLLATED'!Q246","v":25.186680399999961}]
[null,null,null,null,null,null,null,null,null,null,null,null,null,null,null,null,0.35000000000005999,{"$f":"'GRAPHS FOR PAPER'!B$20+'GRAPHS FOR PAPER'!B$21*'DATA COLLATED'!Q247+'GRAPHS FOR PAPER'!B$22*'DATA COLLATED'!Q247*'DATA COLLATED'!Q247","v":1.5120942749999873},{"$f":"'GRAPHS FOR PAPER'!B$25+'GRAPHS FOR PAPER'!B$26*'DATA COLLATED'!Q247","v":25.180670999999961}]
[null,null,null,null,null,null,null,null,null,null,null,null,null,null,null,null,0.36000000000005999,{"$f":"'GRAPHS FOR PAPER'!B$20+'GRAPHS FOR PAPER'!B$21*'DATA COLLATED'!Q248+'GRAPHS FOR PAPER'!B$22*'DATA COLLATED'!Q248*'DATA COLLATED'!Q248","v":1.5099359839999871},{"$f":"'GRAPHS FOR PAPER'!B$25+'GRAPHS FOR PAPER'!B$26*'DATA COLLATED'!Q248","v":25.174661599999961}]
[null,null,null,null,null,null,null,null,null,null,null,null,null,null,null,null,0.37000000000006,{"$f":"'GRAPHS FOR PAPER'!B$20+'GRAPHS FOR PAPER'!B$21*'DATA COLLATED'!Q249+'GRAPHS FOR PAPER'!B$22*'DATA COLLATED'!Q249*'DATA COLLATED'!Q249","v":1.5077460509999869},{"$f":"'GRAPHS FOR PAPER'!B$25+'GRAPHS FOR PAPER'!B$26*'DATA COLLATED'!Q249","v":25.168652199999961}]
[null,null,null,null,null,null,null,null,null,null,null,null,null,null,null,null,0.38000000000006001,{"$f":"'GRAPHS FOR PAPER'!B$20+'GRAPHS FOR PAPER'!B$21*'DATA COLLATED'!Q250+'GRAPHS FOR PAPER'!B$22*'DATA COLLATED'!Q250*'DATA COLLATED'!Q250","v":1.5055244759999866},{"$f":"'GRAPHS FOR PAPER'!B$25+'GRAPHS FOR PAPER'!B$26*'DATA COLLATED'!Q250","v":25.162642799999961}]
[null,null,null,null,null,null,null,null,null,null,null,null,null,null,null,null,0.39000000000006002,{"$f":"'GRAPHS FOR PAPER'!B$20+'GRAPHS FOR PAPER'!B$21*'DATA COLLATED'!Q251+'GRAPHS FOR PAPER'!B$22*'DATA COLLATED'!Q251*'DATA COLLATED'!Q251","v":1.5032712589999866},{"$f":"'GRAPHS FOR PAPER'!B$25+'GRAPHS FOR PAPER'!B$26*'DATA COLLATED'!Q251","v":25.156633399999961}]
[null,null,null,null,null,null,null,null,null,null,null,null,null,null,null,null,0.40000000000005997,{"$f":"'GRAPHS FOR PAPER'!B$20+'GRAPHS FOR PAPER'!B$21*'DATA COLLATED'!Q252+'GRAPHS FOR PAPER'!B$22*'DATA COLLATED'!Q252*'DATA COLLATED'!Q252","v":1.5009863999999864},{"$f":"'GRAPHS FOR PAPER'!B$25+'GRAPHS FOR PAPER'!B$26*'DATA COLLATED'!Q252","v":25.150623999999961}]
[null,null,null,null,null,null,null,null,null,null,null,null,null,null,null,null,0.41000000000005998,{"$f":"'GRAPHS FOR PAPER'!B$20+'GRAPHS FOR PAPER'!B$21*'DATA COLLATED'!Q253+'GRAPHS FOR PAPER'!B$22*'DATA COLLATED'!Q253*'DATA COLLATED'!Q253","v":1.498669898999986},{"$f":"'GRAPHS FOR PAPER'!B$25+'GRAPHS FOR PAPER'!B$26*'DATA COLLATED'!Q253","v":25.144614599999962}]
[null,null,null,null,null,null,null,null,null,null,null,null,null,null,null,null,0.42000000000005999,{"$f":"'GRAPHS FOR PAPER'!B$20+'GRAPHS FOR PAPER'!B$21*'DATA COLLATED'!Q254+'GRAPHS FOR PAPER'!B$22*'DATA COLLATED'!Q254*'DATA COLLATED'!Q254","v":1.496321755999986},{"$f":"'GRAPHS FOR PAPER'!B$25+'GRAPHS FOR PAPER'!B$26*'DATA COLLATED'!Q254","v":25.138605199999962}]
[null,null,null,null,null,null,null,null,null,null,null,null,null,null,null,null,0.43000000000006,{"$f":"'GRAPHS FOR PAPER'!B$20+'GRAPHS FOR PAPER'!B$21*'DATA COLLATED'!Q255+'GRAPHS FOR PAPER'!B$22*'DATA COLLATED'!Q255*'DATA COLLATED'!Q255","v":1.4939419709999857},{"$f":"'GRAPHS FOR PAPER'!B$25+'GRAPHS FOR PAPER'!B$26*'DATA COLLATED'!Q255","v":25.132595799999962}]
[null,null,null,null,null,null,null,null,null,null,null,null,null,null,null,null,0.44000000000006001,{"$f":"'GRAPHS FOR PAPER'!B$20+'GRAPHS FOR PAPER'!B$21*'DATA COLLATED'!Q256+'GRAPHS FOR PAPER'!B$22*'DATA COLLATED'!Q256*'DATA COLLATED'!Q256","v":1.4915305439999855},{"$f":"'GRAPHS FOR PAPER'!B$25+'GRAPHS FOR PAPER'!B$26*'DATA COLLATED'!Q256","v":25.126586399999962}]
[null,null,null,null,null,null,null,null,null,null,null,null,null,null,null,null,0.45000000000006002,{"$f":"'GRAPHS FOR PAPER'!B$20+'GRAPHS FOR PAPER'!B$21*'DATA COLLATED'!Q257+'GRAPHS FOR PAPER'!B$22*'DATA COLLATED'!Q257*'DATA COLLATED'!Q257","v":1.4890874749999854},{"$f":"'GRAPHS FOR PAPER'!B$25+'GRAPHS FOR PAPER'!B$26*'DATA COLLATED'!Q257","v":25.120576999999962}]
[null,null,null,null,null,null,null,null,null,null,null,null,null,null,null,null,0.46000000000006003,{"$f":"'GRAPHS FOR PAPER'!B$20+'GRAPHS FOR PAPER'!B$21*'DATA COLLATED'!Q258+'GRAPHS FOR PAPER'!B$22*'DATA COLLATED'!Q258*'DATA COLLATED'!Q258","v":1.4866127639999851},{"$f":"'GRAPHS FOR PAPER'!B$25+'GRAPHS FOR PAPER'!B$26*'DATA COLLATED'!Q258","v":25.114567599999962}]
[null,null,null,null,null,null,null,null,null,null,null,null,null,null,null,null,0.47000000000005998,{"$f":"'GRAPHS FOR PAPER'!B$20+'GRAPHS FOR PAPER'!B$21*'DATA COLLATED'!Q259+'GRAPHS FOR PAPER'!B$22*'DATA COLLATED'!Q259*'DATA COLLATED'!Q259","v":1.4841064109999849},{"$f":"'GRAPHS FOR PAPER'!B$25+'GRAPHS FOR PAPER'!B$26*'DATA COLLATED'!Q259","v":25.108558199999962}]
[null,null,null,null,null,null,null,null,null,null,null,null,null,null,null,null,0.48000000000005999,{"$f":"'GRAPHS FOR PAPER'!B$20+'GRAPHS FOR PAPER'!B$21*'DATA COLLATED'!Q260+'GRAPHS FOR PAPER'!B$22*'DATA COLLATED'!Q260*'DATA COLLATED'!Q260","v":1.4815684159999849},{"$f":"'GRAPHS FOR PAPER'!B$25+'GRAPHS FOR PAPER'!B$26*'DATA COLLATED'!Q260","v":25.102548799999962}]
[null,null,null,null,null,null,null,null,null,null,null,null,null,null,null,null,0.49000000000006,{"$f":"'GRAPHS FOR PAPER'!B$20+'GRAPHS FOR PAPER'!B$21*'DATA COLLATED'!Q261+'GRAPHS FOR PAPER'!B$22*'DATA COLLATED'!Q261*'DATA COLLATED'!Q261","v":1.4789987789999846},{"$f":"'GRAPHS FOR PAPER'!B$25+'GRAPHS FOR PAPER'!B$26*'DATA COLLATED'!Q261","v":25.096539399999962}]
[null,null,null,null,null,null,null,null,null,null,null,null,null,null,null,null,0.50000000000005995,{"$f":"'GRAPHS FOR PAPER'!B$20+'GRAPHS FOR PAPER'!B$21*'DATA COLLATED'!Q262+'GRAPHS FOR PAPER'!B$22*'DATA COLLATED'!Q262*'DATA COLLATED'!Q262","v":1.4763974999999845},{"$f":"'GRAPHS FOR PAPER'!B$25+'GRAPHS FOR PAPER'!B$26*'DATA COLLATED'!Q262","v":25.090529999999962}]
[null,null,null,null,null,null,null,null,null,null,null,null,null,null,null,null,0.51000000000005996,{"$f":"'GRAPHS FOR PAPER'!B$20+'GRAPHS FOR PAPER'!B$21*'DATA COLLATED'!Q263+'GRAPHS FOR PAPER'!B$22*'DATA COLLATED'!Q263*'DATA COLLATED'!Q263","v":1.473764578999984},{"$f":"'GRAPHS FOR PAPER'!B$25+'GRAPHS FOR PAPER'!B$26*'DATA COLLATED'!Q263","v":25.084520599999962}]
[null,null,null,null,null,null,null,null,null,null,null,null,null,null,null,null,0.52000000000005997,{"$f":"'GRAPHS FOR PAPER'!B$20+'GRAPHS FOR PAPER'!B$21*'DATA COLLATED'!Q264+'GRAPHS FOR PAPER'!B$22*'DATA COLLATED'!Q264*'DATA COLLATED'!Q264","v":1.4711000159999841},{"$f":"'GRAPHS FOR PAPER'!B$25+'GRAPHS FOR PAPER'!B$26*'DATA COLLATED'!Q264","v":25.078511199999962}]
[null,null,null,null,null,null,null,null,null,null,null,null,null,null,null,null,0.53000000000005998,{"$f":"'GRAPHS FOR PAPER'!B$20+'GRAPHS FOR PAPER'!B$21*'DATA COLLATED'!Q265+'GRAPHS FOR PAPER'!B$22*'DATA COLLATED'!Q265*'DATA COLLATED'!Q265","v":1.4684038109999837},{"$f":"'GRAPHS FOR PAPER'!B$25+'GRAPHS FOR PAPER'!B$26*'DATA COLLATED'!Q265","v":25.072501799999962}]
[null,null,null,null,null,null,null,null,null,null,null,null,null,null,null,null,0.54000000000005999,{"$f":"'GRAPHS FOR PAPER'!B$20+'GRAPHS FOR PAPER'!B$21*'DATA COLLATED'!Q266+'GRAPHS FOR PAPER'!B$22*'DATA COLLATED'!Q266*'DATA COLLATED'!Q266","v":1.4656759639999837},{"$f":"'GRAPHS FOR PAPER'!B$25+'GRAPHS FOR PAPER'!B$26*'DATA COLLATED'!Q266","v":25.066492399999962}]
[null,null,null,null,null,null,null,null,null,null,null,null,null,null,null,null,0.55000000000006,{"$f":"'GRAPHS FOR PAPER'!B$20+'GRAPHS FOR PAPER'!B$21*'DATA COLLATED'!Q267+'GRAPHS FOR PAPER'!B$22*'DATA COLLATED'!Q267*'DATA COLLATED'!Q267","v":1.4629164749999835},{"$f":"'GRAPHS FOR PAPER'!B$25+'GRAPHS FOR PAPER'!B$26*'DATA COLLATED'!Q267","v":25.060482999999962}]
[null,null,null,null,null,null,null,null,null,null,null,null,null,null,null,null,0.56000000000006001,{"$f":"'GRAPHS FOR PAPER'!B$20+'GRAPHS FOR PAPER'!B$21*'DATA COLLATED'!Q268+'GRAPHS FOR PAPER'!B$22*'DATA COLLATED'!Q268*'DATA COLLATED'!Q268","v":1.4601253439999833},{"$f":"'GRAPHS FOR PAPER'!B$25+'GRAPHS FOR PAPER'!B$26*'DATA COLLATED'!Q268","v":25.054473599999962}]
[null,null,null,null,null,null,null,null,null,null,null,null,null,null,null,null,0.57000000000006001,{"$f":"'GRAPHS FOR PAPER'!B$20+'GRAPHS FOR PAPER'!B$21*'DATA COLLATED'!Q269+'GRAPHS FOR PAPER'!B$22*'DATA COLLATED'!Q269*'DATA COLLATED'!Q269","v":1.4573025709999832},{"$f":"'GRAPHS FOR PAPER'!B$25+'GRAPHS FOR PAPER'!B$26*'DATA COLLATED'!Q269","v":25.048464199999962}]
[null,null,null,null,null,null,null,null,null,null,null,null,null,null,null,null,0.58000000000006002,{"$f":"'GRAPHS FOR PAPER'!B$20+'GRAPHS FOR PAPER'!B$21*'DATA COLLATED'!Q270+'GRAPHS FOR PAPER'!B$22*'DATA COLLATED'!Q270*'DATA COLLATED'!Q270","v":1.4544481559999829},{"$f":"'GRAPHS FOR PAPER'!B$25+'GRAPHS FOR PAPER'!B$26*'DATA COLLATED'!Q270","v":25.042454799999962}]
[null,null,null,null,null,null,null,null,null,null,null,null,null,null,null,null,0.59000000000006003,{"$f":"'GRAPHS FOR PAPER'!B$20+'GRAPHS FOR PAPER'!B$21*'DATA COLLATED'!Q271+'GRAPHS FOR PAPER'!B$22*'DATA COLLATED'!Q271*'DATA COLLATED'!Q271","v":1.4515620989999827},{"$f":"'GRAPHS FOR PAPER'!B$25+'GRAPHS FOR PAPER'!B$26*'DATA COLLATED'!Q271","v":25.036445399999963}]
[null,null,null,null,null,null,null,null,null,null,null,null,null,null,null,null,0.60000000000006004,{"$f":"'GRAPHS FOR PAPER'!B$20+'GRAPHS FOR PAPER'!B$21*'DATA COLLATED'!Q272+'GRAPHS FOR PAPER'!B$22*'DATA COLLATED'!Q272*'DATA COLLATED'!Q272","v":1.4486443999999825},{"$f":"'GRAPHS FOR PAPER'!B$25+'GRAPHS FOR PAPER'!B$26*'DATA COLLATED'!Q272","v":25.030435999999963}]
[null,null,null,null,null,null,null,null,null,null,null,null,null,null,null,null,0.61000000000006005,{"$f":"'GRAPHS FOR PAPER'!B$20+'GRAPHS FOR PAPER'!B$21*'DATA COLLATED'!Q273+'GRAPHS FOR PAPER'!B$22*'DATA COLLATED'!Q273*'DATA COLLATED'!Q273","v":1.4456950589999824},{"$f":"'GRAPHS FOR PAPER'!B$25+'GRAPHS FOR PAPER'!B$26*'DATA COLLATED'!Q273","v":25.024426599999963}]
[null,null,null,null,null,null,null,null,null,null,null,null,null,null,null,null,0.62000000000005995,{"$f":"'GRAPHS FOR PAPER'!B$20+'GRAPHS FOR PAPER'!B$21*'DATA COLLATED'!Q274+'GRAPHS FOR PAPER'!B$22*'DATA COLLATED'!Q274*'DATA COLLATED'!Q274","v":1.4427140759999821},{"$f":"'GRAPHS FOR PAPER'!B$25+'GRAPHS FOR PAPER'!B$26*'DATA COLLATED'!Q274","v":25.018417199999963}]
[null,null,null,null,null,null,null,null,null,null,null,null,null,null,null,null,0.63000000000005996,{"$f":"'GRAPHS FOR PAPER'!B$20+'GRAPHS FOR PAPER'!B$21*'DATA COLLATED'!Q275+'GRAPHS FOR PAPER'!B$22*'DATA COLLATED'!Q275*'DATA COLLATED'!Q275","v":1.4397014509999819},{"$f":"'GRAPHS FOR PAPER'!B$25+'GRAPHS FOR PAPER'!B$26*'DATA COLLATED'!Q275","v":25.012407799999963}]
[null,null,null,null,null,null,null,null,null,null,null,null,null,null,null,null,0.64000000000005997,{"$f":"'GRAPHS FOR PAPER'!B$20+'GRAPHS FOR PAPER'!B$21*'DATA COLLATED'!Q276+'GRAPHS FOR PAPER'!B$22*'DATA COLLATED'!Q276*'DATA COLLATED'!Q276","v":1.4366571839999818},{"$f":"'GRAPHS FOR PAPER'!B$25+'GRAPHS FOR PAPER'!B$26*'DATA COLLATED'!Q276","v":25.006398399999963}]
[null,null,null,null,null,null,null,null,null,null,null,null,null,null,null,null,0.65000000000005997,{"$f":"'GRAPHS FOR PAPER'!B$20+'GRAPHS FOR PAPER'!B$21*'DATA COLLATED'!Q277+'GRAPHS FOR PAPER'!B$22*'DATA COLLATED'!Q277*'DATA COLLATED'!Q277","v":1.4335812749999817},{"$f":"'GRAPHS FOR PAPER'!B$25+'GRAPHS FOR PAPER'!B$26*'DATA COLLATED'!Q277","v":25.000388999999963}]
[null,null,null,null,null,null,null,null,null,null,null,null,null,null,null,null,0.66000000000005998,{"$f":"'GRAPHS FOR PAPER'!B$20+'GRAPHS FOR PAPER'!B$21*'DATA COLLATED'!Q278+'GRAPHS FOR PAPER'!B$22*'DATA COLLATED'!Q278*'DATA COLLATED'!Q278","v":1.4304737239999812},{"$f":"'GRAPHS FOR PAPER'!B$25+'GRAPHS FOR PAPER'!B$26*'DATA COLLATED'!Q278","v":24.994379599999963}]
[null,null,null,null,null,null,null,null,null,null,null,null,null,null,null,null,0.67000000000005999,{"$f":"'GRAPHS FOR PAPER'!B$20+'GRAPHS FOR PAPER'!B$21*'DATA COLLATED'!Q279+'GRAPHS FOR PAPER'!B$22*'DATA COLLATED'!Q279*'DATA COLLATED'!Q279","v":1.4273345309999812},{"$f":"'GRAPHS FOR PAPER'!B$25+'GRAPHS FOR PAPER'!B$26*'DATA COLLATED'!Q279","v":24.988370199999963}]
[null,null,null,null,null,null,null,null,null,null,null,null,null,null,null,null,0.68000000000006,{"$f":"'GRAPHS FOR PAPER'!B$20+'GRAPHS FOR PAPER'!B$21*'DATA COLLATED'!Q280+'GRAPHS FOR PAPER'!B$22*'DATA COLLATED'!Q280*'DATA COLLATED'!Q280","v":1.424163695999981},{"$f":"'GRAPHS FOR PAPER'!B$25+'GRAPHS FOR PAPER'!B$26*'DATA COLLATED'!Q280","v":24.982360799999963}]
[null,null,null,null,null,null,null,null,null,null,null,null,null,null,null,null,0.69000000000006001,{"$f":"'GRAPHS FOR PAPER'!B$20+'GRAPHS FOR PAPER'!B$21*'DATA COLLATED'!Q281+'GRAPHS FOR PAPER'!B$22*'DATA COLLATED'!Q281*'DATA COLLATED'!Q281","v":1.4209612189999807},{"$f":"'GRAPHS FOR PAPER'!B$25+'GRAPHS FOR PAPER'!B$26*'DATA COLLATED'!Q281","v":24.976351399999963}]
[null,null,null,null,null,null,null,null,null,null,null,null,null,null,null,null,0.70000000000006002,{"$f":"'GRAPHS FOR PAPER'!B$20+'GRAPHS FOR PAPER'!B$21*'DATA COLLATED'!Q282+'GRAPHS FOR PAPER'!B$22*'DATA COLLATED'!Q282*'DATA COLLATED'!Q282","v":1.4177270999999807},{"$f":"'GRAPHS FOR PAPER'!B$25+'GRAPHS FOR PAPER'!B$26*'DATA COLLATED'!Q282","v":24.970341999999963}]
[null,null,null,null,null,null,null,null,null,null,null,null,null,null,null,null,0.71000000000006003,{"$f":"'GRAPHS FOR PAPER'!B$20+'GRAPHS FOR PAPER'!B$21*'DATA COLLATED'!Q283+'GRAPHS FOR PAPER'!B$22*'DATA COLLATED'!Q283*'DATA COLLATED'!Q283","v":1.4144613389999803},{"$f":"'GRAPHS FOR PAPER'!B$25+'GRAPHS FOR PAPER'!B$26*'DATA COLLATED'!Q283","v":24.964332599999963}]
[null,null,null,null,null,null,null,null,null,null,null,null,null,null,null,null,0.72000000000007003,{"$f":"'GRAPHS FOR PAPER'!B$20+'GRAPHS FOR PAPER'!B$21*'DATA COLLATED'!Q284+'GRAPHS FOR PAPER'!B$22*'DATA COLLATED'!Q284*'DATA COLLATED'!Q284","v":1.4111639359999768},{"$f":"'GRAPHS FOR PAPER'!B$25+'GRAPHS FOR PAPER'!B$26*'DATA COLLATED'!Q284","v":24.958323199999956}]
[null,null,null,null,null,null,null,null,null,null,null,null,null,null,null,null,0.73000000000007004,{"$f":"'GRAPHS FOR PAPER'!B$20+'GRAPHS FOR PAPER'!B$21*'DATA COLLATED'!Q285+'GRAPHS FOR PAPER'!B$22*'DATA COLLATED'!Q285*'DATA COLLATED'!Q285","v":1.4078348909999767},{"$f":"'GRAPHS FOR PAPER'!B$25+'GRAPHS FOR PAPER'!B$26*'DATA COLLATED'!Q285","v":24.952313799999956}]
[null,null,null,null,null,null,null,null,null,null,null,null,null,null,null,null,0.74000000000007005,{"$f":"'GRAPHS FOR PAPER'!B$20+'GRAPHS FOR PAPER'!B$21*'DATA COLLATED'!Q286+'GRAPHS FOR PAPER'!B$22*'DATA COLLATED'!Q286*'DATA COLLATED'!Q286","v":1.4044742039999765},{"$f":"'GRAPHS FOR PAPER'!B$25+'GRAPHS FOR PAPER'!B$26*'DATA COLLATED'!Q286","v":24.946304399999956}]
[null,null,null,null,null,null,null,null,null,null,null,null,null,null,null,null,0.75000000000007006,{"$f":"'GRAPHS FOR PAPER'!B$20+'GRAPHS FOR PAPER'!B$21*'DATA COLLATED'!Q287+'GRAPHS FOR PAPER'!B$22*'DATA COLLATED'!Q287*'DATA COLLATED'!Q287","v":1.4010818749999763},{"$f":"'GRAPHS FOR PAPER'!B$25+'GRAPHS FOR PAPER'!B$26*'DATA COLLATED'!Q287","v":24.940294999999956}]
[null,null,null,null,null,null,null,null,null,null,null,null,null,null,null,null,0.76000000000006995,{"$f":"'GRAPHS FOR PAPER'!B$20+'GRAPHS FOR PAPER'!B$21*'DATA COLLATED'!Q288+'GRAPHS FOR PAPER'!B$22*'DATA COLLATED'!Q288*'DATA COLLATED'!Q288","v":1.3976579039999759},{"$f":"'GRAPHS FOR PAPER'!B$25+'GRAPHS FOR PAPER'!B$26*'DATA COLLATED'!Q288","v":24.934285599999956}]
[null,null,null,null,null,null,null,null,null,null,null,null,null,null,null,null,0.77000000000006996,{"$f":"'GRAPHS FOR PAPER'!B$20+'GRAPHS FOR PAPER'!B$21*'DATA COLLATED'!Q289+'GRAPHS FOR PAPER'!B$22*'DATA COLLATED'!Q289*'DATA COLLATED'!Q289","v":1.3942022909999758},{"$f":"'GRAPHS FOR PAPER'!B$25+'GRAPHS FOR PAPER'!B$26*'DATA COLLATED'!Q289","v":24.928276199999956}]
[null,null,null,null,null,null,null,null,null,null,null,null,null,null,null,null,0.78000000000006997,{"$f":"'GRAPHS FOR PAPER'!B$20+'GRAPHS FOR PAPER'!B$21*'DATA COLLATED'!Q290+'GRAPHS FOR PAPER'!B$22*'DATA COLLATED'!Q290*'DATA COLLATED'!Q290","v":1.3907150359999756},{"$f":"'GRAPHS FOR PAPER'!B$25+'GRAPHS FOR PAPER'!B$26*'DATA COLLATED'!Q290","v":24.922266799999957}]
[null,null,null,null,null,null,null,null,null,null,null,null,null,null,null,null,0.79000000000006998,{"$f":"'GRAPHS FOR PAPER'!B$20+'GRAPHS FOR PAPER'!B$21*'DATA COLLATED'!Q291+'GRAPHS FOR PAPER'!B$22*'DATA COLLATED'!Q291*'DATA COLLATED'!Q291","v":1.3871961389999754},{"$f":"'GRAPHS FOR PAPER'!B$25+'GRAPHS FOR PAPER'!B$26*'DATA COLLATED'!Q291","v":24.916257399999957}]
[null,null,null,null,null,null,null,null,null,null,null,null,null,null,null,null,0.80000000000006999,{"$f":"'GRAPHS FOR PAPER'!B$20+'GRAPHS FOR PAPER'!B$21*'DATA COLLATED'!Q292+'GRAPHS FOR PAPER'!B$22*'DATA COLLATED'!Q292*'DATA COLLATED'!Q292","v":1.3836455999999751},{"$f":"'GRAPHS FOR PAPER'!B$25+'GRAPHS FOR PAPER'!B$26*'DATA COLLATED'!Q292","v":24.910247999999957}]
[null,null,null,null,null,null,null,null,null,null,null,null,null,null,null,null,0.81000000000007,{"$f":"'GRAPHS FOR PAPER'!B$20+'GRAPHS FOR PAPER'!B$21*'DATA COLLATED'!Q293+'GRAPHS FOR PAPER'!B$22*'DATA COLLATED'!Q293*'DATA COLLATED'!Q293","v":1.380063418999975},{"$f":"'GRAPHS FOR PAPER'!B$25+'GRAPHS FOR PAPER'!B$26*'DATA COLLATED'!Q293","v":24.904238599999957}]
[null,null,null,null,null,null,null,null,null,null,null,null,null,null,null,null,0.82000000000007001,{"$f":"'GRAPHS FOR PAPER'!B$20+'GRAPHS FOR PAPER'!B$21*'DATA COLLATED'!Q294+'GRAPHS FOR PAPER'!B$22*'DATA COLLATED'!Q294*'DATA COLLATED'!Q294","v":1.3764495959999745},{"$f":"'GRAPHS FOR PAPER'!B$25+'GRAPHS FOR PAPER'!B$26*'DATA COLLATED'!Q294","v":24.898229199999957}]
[null,null,null,null,null,null,null,null,null,null,null,null,null,null,null,null,0.83000000000007002,{"$f":"'GRAPHS FOR PAPER'!B$20+'GRAPHS FOR PAPER'!B$21*'DATA COLLATED'!Q295+'GRAPHS FOR PAPER'!B$22*'DATA COLLATED'!Q295*'DATA COLLATED'!Q295","v":1.3728041309999746},{"$f":"'GRAPHS FOR PAPER'!B$25+'GRAPHS FOR PAPER'!B$26*'DATA COLLATED'!Q295","v":24.892219799999957}]
[null,null,null,null,null,null,null,null,null,null,null,null,null,null,null,null,0.84000000000007002,{"$f":"'GRAPHS FOR PAPER'!B$20+'GRAPHS FOR PAPER'!B$21*'DATA COLLATED'!Q296+'GRAPHS FOR PAPER'!B$22*'DATA COLLATED'!Q296*'DATA COLLATED'!Q296","v":1.3691270239999742},{"$f":"'GRAPHS FOR PAPER'!B$25+'GRAPHS FOR PAPER'!B$26*'DATA COLLATED'!Q296","v":24.886210399999957}]
[null,null,null,null,null,null,null,null,null,null,null,null,null,null,null,null,0.85000000000007003,{"$f":"'GRAPHS FOR PAPER'!B$20+'GRAPHS FOR PAPER'!B$21*'DATA COLLATED'!Q297+'GRAPHS FOR PAPER'!B$22*'DATA COLLATED'!Q297*'DATA COLLATED'!Q297","v":1.3654182749999739},{"$f":"'GRAPHS FOR PAPER'!B$25+'GRAPHS FOR PAPER'!B$26*'DATA COLLATED'!Q297","v":24.880200999999957}]
[null,null,null,null,null,null,null,null,null,null,null,null,null,null,null,null,0.86000000000007004,{"$f":"'GRAPHS FOR PAPER'!B$20+'GRAPHS FOR PAPER'!B$21*'DATA COLLATED'!Q298+'GRAPHS FOR PAPER'!B$22*'DATA COLLATED'!Q298*'DATA COLLATED'!Q298","v":1.3616778839999737},{"$f":"'GRAPHS FOR PAPER'!B$25+'GRAPHS FOR PAPER'!B$26*'DATA COLLATED'!Q298","v":24.874191599999957}]
[null,null,null,null,null,null,null,null,null,null,null,null,null,null,null,null,0.87000000000007005,{"$f":"'GRAPHS FOR PAPER'!B$20+'GRAPHS FOR PAPER'!B$21*'DATA COLLATED'!Q299+'GRAPHS FOR PAPER'!B$22*'DATA COLLATED'!Q299*'DATA COLLATED'!Q299","v":1.3579058509999735},{"$f":"'GRAPHS FOR PAPER'!B$25+'GRAPHS FOR PAPER'!B$26*'DATA COLLATED'!Q299","v":24.868182199999957}]
[null,null,null,null,null,null,null,null,null,null,null,null,null,null,null,null,0.88000000000006995,{"$f":"'GRAPHS FOR PAPER'!B$20+'GRAPHS FOR PAPER'!B$21*'DATA COLLATED'!Q300+'GRAPHS FOR PAPER'!B$22*'DATA COLLATED'!Q300*'DATA COLLATED'!Q300","v":1.3541021759999734},{"$f":"'GRAPHS FOR PAPER'!B$25+'GRAPHS FOR PAPER'!B$26*'DATA COLLATED'!Q300","v":24.862172799999957}]
[null,null,null,null,null,null,null,null,null,null,null,null,null,null,null,null,0.89000000000006996,{"$f":"'GRAPHS FOR PAPER'!B$20+'GRAPHS FOR PAPER'!B$21*'DATA COLLATED'!Q301+'GRAPHS FOR PAPER'!B$22*'DATA COLLATED'!Q301*'DATA COLLATED'!Q301","v":1.3502668589999731},{"$f":"'GRAPHS FOR PAPER'!B$25+'GRAPHS FOR PAPER'!B$26*'DATA COLLATED'!Q301","v":24.856163399999957}]
[null,null,null,null,null,null,null,null,null,null,null,null,null,null,null,null,0.90000000000006997,{"$f":"'GRAPHS FOR PAPER'!B$20+'GRAPHS FOR PAPER'!B$21*'DATA COLLATED'!Q302+'GRAPHS FOR PAPER'!B$22*'DATA COLLATED'!Q302*'DATA COLLATED'!Q302","v":1.3463998999999731},{"$f":"'GRAPHS FOR PAPER'!B$25+'GRAPHS FOR PAPER'!B$26*'DATA COLLATED'!Q302","v":24.850153999999957}]
[null,null,null,null,null,null,null,null,null,null,null,null,null,null,null,null,0.91000000000006998,{"$f":"'GRAPHS FOR PAPER'!B$20+'GRAPHS FOR PAPER'!B$21*'DATA COLLATED'!Q303+'GRAPHS FOR PAPER'!B$22*'DATA COLLATED'!Q303*'DATA COLLATED'!Q303","v":1.3425012989999727},{"$f":"'GRAPHS FOR PAPER'!B$25+'GRAPHS FOR PAPER'!B$26*'DATA COLLATED'!Q303","v":24.844144599999957}]
[null,null,null,null,null,null,null,null,null,null,null,null,null,null,null,null,0.92000000000006998,{"$f":"'GRAPHS FOR PAPER'!B$20+'GRAPHS FOR PAPER'!B$21*'DATA COLLATED'!Q304+'GRAPHS FOR PAPER'!B$22*'DATA COLLATED'!Q304*'DATA COLLATED'!Q304","v":1.3385710559999726},{"$f":"'GRAPHS FOR PAPER'!B$25+'GRAPHS FOR PAPER'!B$26*'DATA COLLATED'!Q304","v":24.838135199999957}]
[null,null,null,null,null,null,null,null,null,null,null,null,null,null,null,null,0.93000000000006999,{"$f":"'GRAPHS FOR PAPER'!B$20+'GRAPHS FOR PAPER'!B$21*'DATA COLLATED'!Q305+'GRAPHS FOR PAPER'!B$22*'DATA COLLATED'!Q305*'DATA COLLATED'!Q305","v":1.3346091709999721},{"$f":"'GRAPHS FOR PAPER'!B$25+'GRAPHS FOR PAPER'!B$26*'DATA COLLATED'!Q305","v":24.832125799999957}]
[null,null,null,null,null,null,null,null,null,null,null,null,null,null,null,null,0.94000000000007,{"$f":"'GRAPHS FOR PAPER'!B$20+'GRAPHS FOR PAPER'!B$21*'DATA COLLATED'!Q306+'GRAPHS FOR PAPER'!B$22*'DATA COLLATED'!Q306*'DATA COLLATED'!Q306","v":1.3306156439999721},{"$f":"'GRAPHS FOR PAPER'!B$25+'GRAPHS FOR PAPER'!B$26*'DATA COLLATED'!Q306","v":24.826116399999957}]
[null,null,null,null,null,null,null,null,null,null,null,null,null,null,null,null,0.95000000000007001,{"$f":"'GRAPHS FOR PAPER'!B$20+'GRAPHS FOR PAPER'!B$21*'DATA COLLATED'!Q307+'GRAPHS FOR PAPER'!B$22*'DATA COLLATED'!Q307*'DATA COLLATED'!Q307","v":1.3265904749999717},{"$f":"'GRAPHS FOR PAPER'!B$25+'GRAPHS FOR PAPER'!B$26*'DATA COLLATED'!Q307","v":24.820106999999958}]
[null,null,null,null,null,null,null,null,null,null,null,null,null,null,null,null,0.96000000000007002,{"$f":"'GRAPHS FOR PAPER'!B$20+'GRAPHS FOR PAPER'!B$21*'DATA COLLATED'!Q308+'GRAPHS FOR PAPER'!B$22*'DATA COLLATED'!Q308*'DATA COLLATED'!Q308","v":1.3225336639999716},{"$f":"'GRAPHS FOR PAPER'!B$25+'GRAPHS FOR PAPER'!B$26*'DATA COLLATED'!Q308","v":24.814097599999958}]
[null,null,null,null,null,null,null,null,null,null,null,null,null,null,null,null,0.97000000000007003,{"$f":"'GRAPHS FOR PAPER'!B$20+'GRAPHS FOR PAPER'!B$21*'DATA COLLATED'!Q309+'GRAPHS FOR PAPER'!B$22*'DATA COLLATED'!Q309*'DATA COLLATED'!Q309","v":1.3184452109999714},{"$f":"'GRAPHS FOR PAPER'!B$25+'GRAPHS FOR PAPER'!B$26*'DATA COLLATED'!Q309","v":24.808088199999958}]
[null,null,null,null,null,null,null,null,null,null,null,null,null,null,null,null,0.98000000000007004,{"$f":"'GRAPHS FOR PAPER'!B$20+'GRAPHS FOR PAPER'!B$21*'DATA COLLATED'!Q310+'GRAPHS FOR PAPER'!B$22*'DATA COLLATED'!Q310*'DATA COLLATED'!Q310","v":1.3143251159999711},{"$f":"'GRAPHS FOR PAPER'!B$25+'GRAPHS FOR PAPER'!B$26*'DATA COLLATED'!Q310","v":24.802078799999958}]
[null,null,null,null,null,null,null,null,null,null,null,null,null,null,null,null,0.99000000000007005,{"$f":"'GRAPHS FOR PAPER'!B$20+'GRAPHS FOR PAPER'!B$21*'DATA COLLATED'!Q311+'GRAPHS FOR PAPER'!B$22*'DATA COLLATED'!Q311*'DATA COLLATED'!Q311","v":1.3101733789999708},{"$f":"'GRAPHS FOR PAPER'!B$25+'GRAPHS FOR PAPER'!B$26*'DATA COLLATED'!Q311","v":24.796069399999958}]
[null,null,null,null,null,null,null,null,null,null,null,null,null,null,null,null,1.0000000000000699,{"$f":"'GRAPHS FOR PAPER'!B$20+'GRAPHS FOR PAPER'!B$21*'DATA COLLATED'!Q312+'GRAPHS FOR PAPER'!B$22*'DATA COLLATED'!Q312*'DATA COLLATED'!Q312","v":1.3059899999999707},{"$f":"'GRAPHS FOR PAPER'!B$25+'GRAPHS FOR PAPER'!B$26*'DATA COLLATED'!Q312","v":24.790059999999958}]
[null,null,null,null,null,null,null,null,null,null,null,null,null,null,null,null,1.01000000000007,{"$f":"'GRAPHS FOR PAPER'!B$20+'GRAPHS FOR PAPER'!B$21*'DATA COLLATED'!Q313+'GRAPHS FOR PAPER'!B$22*'DATA COLLATED'!Q313*'DATA COLLATED'!Q313","v":1.3017749789999706},{"$f":"'GRAPHS FOR PAPER'!B$25+'GRAPHS FOR PAPER'!B$26*'DATA COLLATED'!Q313","v":24.784050599999958}]
[null,null,null,null,null,null,null,null,null,null,null,null,null,null,null,null,1.02000000000007,{"$f":"'GRAPHS FOR PAPER'!B$20+'GRAPHS FOR PAPER'!B$21*'DATA COLLATED'!Q314+'GRAPHS FOR PAPER'!B$22*'DATA COLLATED'!Q314*'DATA COLLATED'!Q314","v":1.2975283159999702},{"$f":"'GRAPHS FOR PAPER'!B$25+'GRAPHS FOR PAPER'!B$26*'DATA COLLATED'!Q314","v":24.778041199999954}]
[null,null,null,null,null,null,null,null,null,null,null,null,null,null,null,null,1.03000000000007,{"$f":"'GRAPHS FOR PAPER'!B$20+'GRAPHS FOR PAPER'!B$21*'DATA COLLATED'!Q315+'GRAPHS FOR PAPER'!B$22*'DATA COLLATED'!Q315*'DATA COLLATED'!Q315","v":1.2932500109999701},{"$f":"'GRAPHS FOR PAPER'!B$25+'GRAPHS FOR PAPER'!B$26*'DATA COLLATED'!Q315","v":24.772031799999958}]
[null,null,null,null,null,null,null,null,null,null,null,null,null,null,null,null,1.04000000000007,{"$f":"'GRAPHS FOR PAPER'!B$20+'GRAPHS FOR PAPER'!B$21*'DATA COLLATED'!Q316+'GRAPHS FOR PAPER'!B$22*'DATA COLLATED'!Q316*'DATA COLLATED'!Q316","v":1.2889400639999697},{"$f":"'GRAPHS FOR PAPER'!B$25+'GRAPHS FOR PAPER'!B$26*'DATA COLLATED'!Q316","v":24.766022399999954}]
[null,null,null,null,null,null,null,null,null,null,null,null,null,null,null,null,1.05000000000007,{"$f":"'GRAPHS FOR PAPER'!B$20+'GRAPHS FOR PAPER'!B$21*'DATA COLLATED'!Q317+'GRAPHS FOR PAPER'!B$22*'DATA COLLATED'!Q317*'DATA COLLATED'!Q317","v":1.2845984749999697},{"$f":"'GRAPHS FOR PAPER'!B$25+'GRAPHS FOR PAPER'!B$26*'DATA COLLATED'!Q317","v":24.760012999999955}]
[null,null,null,null,null,null,null,null,null,null,null,null,null,null,null,null,1.06000000000007,{"$f":"'GRAPHS FOR PAPER'!B$20+'GRAPHS FOR PAPER'!B$21*'DATA COLLATED'!Q318+'GRAPHS FOR PAPER'!B$22*'DATA COLLATED'!Q318*'DATA COLLATED'!Q318","v":1.2802252439999693},{"$f":"'GRAPHS FOR PAPER'!B$25+'GRAPHS FOR PAPER'!B$26*'DATA COLLATED'!Q318","v":24.754003599999955}]
[null,null,null,null,null,null,null,null,null,null,null,null,null,null,null,null,1.07000000000007,{"$f":"'GRAPHS FOR PAPER'!B$20+'GRAPHS FOR PAPER'!B$21*'DATA COLLATED'!Q319+'GRAPHS FOR PAPER'!B$22*'DATA COLLATED'!Q319*'DATA COLLATED'!Q319","v":1.2758203709999691},{"$f":"'GRAPHS FOR PAPER'!B$25+'GRAPHS FOR PAPER'!B$26*'DATA COLLATED'!Q319","v":24.747994199999955}]
[null,null,null,null,null,null,null,null,null,null,null,null,null,null,null,null,1.08000000000007,{"$f":"'GRAPHS FOR PAPER'!B$20+'GRAPHS FOR PAPER'!B$21*'DATA COLLATED'!Q320+'GRAPHS FOR PAPER'!B$22*'DATA COLLATED'!Q320*'DATA COLLATED'!Q320","v":1.2713838559999688},{"$f":"'GRAPHS FOR PAPER'!B$25+'GRAPHS FOR PAPER'!B$26*'DATA COLLATED'!Q320","v":24.741984799999955}]
[null,null,null,null,null,null,null,null,null,null,null,null,null,null,null,null,1.09000000000007,{"$f":"'GRAPHS FOR PAPER'!B$20+'GRAPHS FOR PAPER'!B$21*'DATA COLLATED'!Q321+'GRAPHS FOR PAPER'!B$22*'DATA COLLATED'!Q321*'DATA COLLATED'!Q321","v":1.2669156989999688},{"$f":"'GRAPHS FOR PAPER'!B$25+'GRAPHS FOR PAPER'!B$26*'DATA COLLATED'!Q321","v":24.735975399999955}]
[null,null,null,null,null,null,null,null,null,null,null,null,null,null,null,null,1.10000000000007,{"$f":"'GRAPHS FOR PAPER'!B$20+'GRAPHS FOR PAPER'!B$21*'DATA COLLATED'!Q322+'GRAPHS FOR PAPER'!B$22*'DATA COLLATED'!Q322*'DATA COLLATED'!Q322","v":1.2624158999999684},{"$f":"'GRAPHS FOR PAPER'!B$25+'GRAPHS FOR PAPER'!B$26*'DATA COLLATED'!Q322","v":24.729965999999955}]
[null,null,null,null,null,null,null,null,null,null,null,null,null,null,null,null,1.11000000000007,{"$f":"'GRAPHS FOR PAPER'!B$20+'GRAPHS FOR PAPER'!B$21*'DATA COLLATED'!Q323+'GRAPHS FOR PAPER'!B$22*'DATA COLLATED'!Q323*'DATA COLLATED'!Q323","v":1.2578844589999683},{"$f":"'GRAPHS FOR PAPER'!B$25+'GRAPHS FOR PAPER'!B$26*'DATA COLLATED'!Q323","v":24.723956599999955}]
[null,null,null,null,null,null,null,null,null,null,null,null,null,null,null,null,1.1200000000000701,{"$f":"'GRAPHS FOR PAPER'!B$20+'GRAPHS FOR PAPER'!B$21*'DATA COLLATED'!Q324+'GRAPHS FOR PAPER'!B$22*'DATA COLLATED'!Q324*'DATA COLLATED'!Q324","v":1.253321375999968},{"$f":"'GRAPHS FOR PAPER'!B$25+'GRAPHS FOR PAPER'!B$26*'DATA COLLATED'!Q324","v":24.717947199999955}]
[null,null,null,null,null,null,null,null,null,null,null,null,null,null,null,null,1.1300000000000701,{"$f":"'GRAPHS FOR PAPER'!B$20+'GRAPHS FOR PAPER'!B$21*'DATA COLLATED'!Q325+'GRAPHS FOR PAPER'!B$22*'DATA COLLATED'!Q325*'DATA COLLATED'!Q325","v":1.2487266509999677},{"$f":"'GRAPHS FOR PAPER'!B$25+'GRAPHS FOR PAPER'!B$26*'DATA COLLATED'!Q325","v":24.711937799999955}]
[null,null,null,null,null,null,null,null,null,null,null,null,null,null,null,null,1.1400000000000701,{"$f":"'GRAPHS FOR PAPER'!B$20+'GRAPHS FOR PAPER'!B$21*'DATA COLLATED'!Q326+'GRAPHS FOR PAPER'!B$22*'DATA COLLATED'!Q326*'DATA COLLATED'!Q326","v":1.2441002839999677},{"$f":"'GRAPHS FOR PAPER'!B$25+'GRAPHS FOR PAPER'!B$26*'DATA COLLATED'!Q326","v":24.705928399999955}]
[null,null,null,null,null,null,null,null,null,null,null,null,null,null,null,null,1.1500000000000801,{"$f":"'GRAPHS FOR PAPER'!B$20+'GRAPHS FOR PAPER'!B$21*'DATA COLLATED'!Q327+'GRAPHS FOR PAPER'!B$22*'DATA COLLATED'!Q327*'DATA COLLATED'!Q327","v":1.2394422749999625},{"$f":"'GRAPHS FOR PAPER'!B$25+'GRAPHS FOR PAPER'!B$26*'DATA COLLATED'!Q327","v":24.699918999999952}]
[null,null,null,null,null,null,null,null,null,null,null,null,null,null,null,null,1.1600000000000801,{"$f":"'GRAPHS FOR PAPER'!B$20+'GRAPHS FOR PAPER'!B$21*'DATA COLLATED'!Q328+'GRAPHS FOR PAPER'!B$22*'DATA COLLATED'!Q328*'DATA COLLATED'!Q328","v":1.2347526239999624},{"$f":"'GRAPHS FOR PAPER'!B$25+'GRAPHS FOR PAPER'!B$26*'DATA COLLATED'!Q328","v":24.693909599999952}]
[null,null,null,null,null,null,null,null,null,null,null,null,null,null,null,null,1.1700000000000801,{"$f":"'GRAPHS FOR PAPER'!B$20+'GRAPHS FOR PAPER'!B$21*'DATA COLLATED'!Q329+'GRAPHS FOR PAPER'!B$22*'DATA COLLATED'!Q329*'DATA COLLATED'!Q329","v":1.2300313309999622},{"$f":"'GRAPHS FOR PAPER'!B$25+'GRAPHS FOR PAPER'!B$26*'DATA COLLATED'!Q329","v":24.687900199999952}]
[null,null,null,null,null,null,null,null,null,null,null,null,null,null,null,null,1.1800000000000801,{"$f":"'GRAPHS FOR PAPER'!B$20+'GRAPHS FOR PAPER'!B$21*'DATA COLLATED'!Q330+'GRAPHS FOR PAPER'!B$22*'DATA COLLATED'!Q330*'DATA COLLATED'!Q330","v":1.225278395999962},{"$f":"'GRAPHS FOR PAPER'!B$25+'GRAPHS FOR PAPER'!B$26*'DATA COLLATED'!Q330","v":24.681890799999952}]
[null,null,null,null,null,null,null,null,null,null,null,null,null,null,null,null,1.1900000000000801,{"$f":"'GRAPHS FOR PAPER'!B$20+'GRAPHS FOR PAPER'!B$21*'DATA COLLATED'!Q331+'GRAPHS FOR PAPER'!B$22*'DATA COLLATED'!Q331*'DATA COLLATED'!Q331","v":1.2204938189999617},{"$f":"'GRAPHS FOR PAPER'!B$25+'GRAPHS FOR PAPER'!B$26*'DATA COLLATED'!Q331","v":24.675881399999952}]
[null,null,null,null,null,null,null,null,null,null,null,null,null,null,null,null,1.2000000000000799,{"$f":"'GRAPHS FOR PAPER'!B$20+'GRAPHS FOR PAPER'!B$21*'DATA COLLATED'!Q332+'GRAPHS FOR PAPER'!B$22*'DATA COLLATED'!Q332*'DATA COLLATED'!Q332","v":1.2156775999999614},{"$f":"'GRAPHS FOR PAPER'!B$25+'GRAPHS FOR PAPER'!B$26*'DATA COLLATED'!Q332","v":24.669871999999952}]
[null,null,null,null,null,null,null,null,null,null,null,null,null,null,null,null,1.2100000000000799,{"$f":"'GRAPHS FOR PAPER'!B$20+'GRAPHS FOR PAPER'!B$21*'DATA COLLATED'!Q333+'GRAPHS FOR PAPER'!B$22*'DATA COLLATED'!Q333*'DATA COLLATED'!Q333","v":1.2108297389999614},{"$f":"'GRAPHS FOR PAPER'!B$25+'GRAPHS FOR PAPER'!B$26*'DATA COLLATED'!Q333","v":24.663862599999952}]
[null,null,null,null,null,null,null,null,null,null,null,null,null,null,null,null,1.2200000000000799,{"$f":"'GRAPHS FOR PAPER'!B$20+'GRAPHS FOR PAPER'!B$21*'DATA COLLATED'!Q334+'GRAPHS FOR PAPER'!B$22*'DATA COLLATED'!Q334*'DATA COLLATED'!Q334","v":1.205950235999961},{"$f":"'GRAPHS FOR PAPER'!B$25+'GRAPHS FOR PAPER'!B$26*'DATA COLLATED'!Q334","v":24.657853199999948}]
[null,null,null,null,null,null,null,null,null,null,null,null,null,null,null,null,1.2300000000000799,{"$f":"'GRAPHS FOR PAPER'!B$20+'GRAPHS FOR PAPER'!B$21*'DATA COLLATED'!Q335+'GRAPHS FOR PAPER'!B$22*'DATA COLLATED'!Q335*'DATA COLLATED'!Q335","v":1.2010390909999609},{"$f":"'GRAPHS FOR PAPER'!B$25+'GRAPHS FOR PAPER'!B$26*'DATA COLLATED'!Q335","v":24.651843799999948}]
[null,null,null,null,null,null,null,null,null,null,null,null,null,null,null,null,1.2400000000000799,{"$f":"'GRAPHS FOR PAPER'!B$20+'GRAPHS FOR PAPER'!B$21*'DATA COLLATED'!Q336+'GRAPHS FOR PAPER'!B$22*'DATA COLLATED'!Q336*'DATA COLLATED'!Q336","v":1.1960963039999604},{"$f":"'GRAPHS FOR PAPER'!B$25+'GRAPHS FOR PAPER'!B$26*'DATA COLLATED'!Q336","v":24.645834399999949}]
[null,null,null,null,null,null,null,null,null,null,null,null,null,null,null,null,1.2500000000000799,{"$f":"'GRAPHS FOR PAPER'!B$20+'GRAPHS FOR PAPER'!B$21*'DATA COLLATED'!Q337+'GRAPHS FOR PAPER'!B$22*'DATA COLLATED'!Q337*'DATA COLLATED'!Q337","v":1.1911218749999604},{"$f":"'GRAPHS FOR PAPER'!B$25+'GRAPHS FOR PAPER'!B$26*'DATA COLLATED'!Q337","v":24.639824999999949}]
[null,null,null,null,null,null,null,null,null,null,null,null,null,null,null,null,1.2600000000000799,{"$f":"'GRAPHS FOR PAPER'!B$20+'GRAPHS FOR PAPER'!B$21*'DATA COLLATED'!Q338+'GRAPHS FOR PAPER'!B$22*'DATA COLLATED'!Q338*'DATA COLLATED'!Q338","v":1.18611580399996},{"$f":"'GRAPHS FOR PAPER'!B$25+'GRAPHS FOR PAPER'!B$26*'DATA COLLATED'!Q338","v":24.633815599999949}]
[null,null,null,null,null,null,null,null,null,null,null,null,null,null,null,null,1.27000000000008,{"$f":"'GRAPHS FOR PAPER'!B$20+'GRAPHS FOR PAPER'!B$21*'DATA COLLATED'!Q339+'GRAPHS FOR PAPER'!B$22*'DATA COLLATED'!Q339*'DATA COLLATED'!Q339","v":1.1810780909999596},{"$f":"'GRAPHS FOR PAPER'!B$25+'GRAPHS FOR PAPER'!B$26*'DATA COLLATED'!Q339","v":24.627806199999949}]
[null,null,null,null,null,null,null,null,null,null,null,null,null,null,null,null,1.28000000000008,{"$f":"'GRAPHS FOR PAPER'!B$20+'GRAPHS FOR PAPER'!B$21*'DATA COLLATED'!Q340+'GRAPHS FOR PAPER'!B$22*'DATA COLLATED'!Q340*'DATA COLLATED'!Q340","v":1.1760087359999594},{"$f":"'GRAPHS FOR PAPER'!B$25+'GRAPHS FOR PAPER'!B$26*'DATA COLLATED'!Q340","v":24.621796799999949}]
[null,null,null,null,null,null,null,null,null,null,null,null,null,null,null,null,1.29000000000008,{"$f":"'GRAPHS FOR PAPER'!B$20+'GRAPHS FOR PAPER'!B$21*'DATA COLLATED'!Q341+'GRAPHS FOR PAPER'!B$22*'DATA COLLATED'!Q341*'DATA COLLATED'!Q341","v":1.1709077389999591},{"$f":"'GRAPHS FOR PAPER'!B$25+'GRAPHS FOR PAPER'!B$26*'DATA COLLATED'!Q341","v":24.615787399999949}]
[null,null,null,null,null,null,null,null,null,null,null,null,null,null,null,null,1.30000000000008,{"$f":"'GRAPHS FOR PAPER'!B$20+'GRAPHS FOR PAPER'!B$21*'DATA COLLATED'!Q342+'GRAPHS FOR PAPER'!B$22*'DATA COLLATED'!Q342*'DATA COLLATED'!Q342","v":1.165775099999959},{"$f":"'GRAPHS FOR PAPER'!B$25+'GRAPHS FOR PAPER'!B$26*'DATA COLLATED'!Q342","v":24.609777999999949}]
[null,null,null,null,null,null,null,null,null,null,null,null,null,null,null,null,1.31000000000008,{"$f":"'GRAPHS FOR PAPER'!B$20+'GRAPHS FOR PAPER'!B$21*'DATA COLLATED'!Q343+'GRAPHS FOR PAPER'!B$22*'DATA COLLATED'!Q343*'DATA COLLATED'!Q343","v":1.1606108189999587},{"$f":"'GRAPHS FOR PAPER'!B$25+'GRAPHS FOR PAPER'!B$26*'DATA COLLATED'!Q343","v":24.603768599999949}]
[null,null,null,null,null,null,null,null,null,null,null,null,null,null,null,null,1.32000000000008,{"$f":"'GRAPHS FOR PAPER'!B$20+'GRAPHS FOR PAPER'!B$21*'DATA COLLATED'!Q344+'GRAPHS FOR PAPER'!B$22*'DATA COLLATED'!Q344*'DATA COLLATED'!Q344","v":1.1554148959999586},{"$f":"'GRAPHS FOR PAPER'!B$25+'GRAPHS FOR PAPER'!B$26*'DATA COLLATED'!Q344","v":24.597759199999949}]
[null,null,null,null,null,null,null,null,null,null,null,null,null,null,null,null,1.33000000000008,{"$f":"'GRAPHS FOR PAPER'!B$20+'GRAPHS FOR PAPER'!B$21*'DATA COLLATED'!Q345+'GRAPHS FOR PAPER'!B$22*'DATA COLLATED'!Q345*'DATA COLLATED'!Q345","v":1.1501873309999582},{"$f":"'GRAPHS FOR PAPER'!B$25+'GRAPHS FOR PAPER'!B$26*'DATA COLLATED'!Q345","v":24.591749799999949}]
[null,null,null,null,null,null,null,null,null,null,null,null,null,null,null,null,1.34000000000008,{"$f":"'GRAPHS FOR PAPER'!B$20+'GRAPHS FOR PAPER'!B$21*'DATA COLLATED'!Q346+'GRAPHS FOR PAPER'!B$22*'DATA COLLATED'!Q346*'DATA COLLATED'!Q346","v":1.144928123999958},{"$f":"'GRAPHS FOR PAPER'!B$25+'GRAPHS FOR PAPER'!B$26*'DATA COLLATED'!Q346","v":24.585740399999949}]
[null,null,null,null,null,null,null,null,null,null,null,null,null,null,null,null,1.35000000000008,{"$f":"'GRAPHS FOR PAPER'!B$20+'GRAPHS FOR PAPER'!B$21*'DATA COLLATED'!Q347+'GRAPHS FOR PAPER'!B$22*'DATA COLLATED'!Q347*'DATA COLLATED'!Q347","v":1.1396372749999577},{"$f":"'GRAPHS FOR PAPER'!B$25+'GRAPHS FOR PAPER'!B$26*'DATA COLLATED'!Q347","v":24.579730999999949}]
[null,null,null,null,null,null,null,null,null,null,null,null,null,null,null,null,1.36000000000008,{"$f":"'GRAPHS FOR PAPER'!B$20+'GRAPHS FOR PAPER'!B$21*'DATA COLLATED'!Q348+'GRAPHS FOR PAPER'!B$22*'DATA COLLATED'!Q348*'DATA COLLATED'!Q348","v":1.1343147839999574},{"$f":"'GRAPHS FOR PAPER'!B$25+'GRAPHS FOR PAPER'!B$26*'DATA COLLATED'!Q348","v":24.573721599999949}]
[null,null,null,null,null,null,null,null,null,null,null,null,null,null,null,null,1.37000000000008,{"$f":"'GRAPHS FOR PAPER'!B$20+'GRAPHS FOR PAPER'!B$21*'DATA COLLATED'!Q349+'GRAPHS FOR PAPER'!B$22*'DATA COLLATED'!Q349*'DATA COLLATED'!Q349","v":1.128960650999957},{"$f":"'GRAPHS FOR PAPER'!B$25+'GRAPHS FOR PAPER'!B$26*'DATA COLLATED'!Q349","v":24.567712199999949}]
[null,null,null,null,null,null,null,null,null,null,null,null,null,null,null,null,1.3800000000000801,{"$f":"'GRAPHS FOR PAPER'!B$20+'GRAPHS FOR PAPER'!B$21*'DATA COLLATED'!Q350+'GRAPHS FOR PAPER'!B$22*'DATA COLLATED'!Q350*'DATA COLLATED'!Q350","v":1.1235748759999569},{"$f":"'GRAPHS FOR PAPER'!B$25+'GRAPHS FOR PAPER'!B$26*'DATA COLLATED'!Q350","v":24.561702799999949}]
[null,null,null,null,null,null,null,null,null,null,null,null,null,null,null,null,1.3900000000000801,{"$f":"'GRAPHS FOR PAPER'!B$20+'GRAPHS FOR PAPER'!B$21*'DATA COLLATED'!Q351+'GRAPHS FOR PAPER'!B$22*'DATA COLLATED'!Q351*'DATA COLLATED'!Q351","v":1.1181574589999566},{"$f":"'GRAPHS FOR PAPER'!B$25+'GRAPHS FOR PAPER'!B$26*'DATA COLLATED'!Q351","v":24.555693399999949}]
[null,null,null,null,null,null,null,null,null,null,null,null,null,null,null,null,1.4000000000000801,{"$f":"'GRAPHS FOR PAPER'!B$20+'GRAPHS FOR PAPER'!B$21*'DATA COLLATED'!Q352+'GRAPHS FOR PAPER'!B$22*'DATA COLLATED'!Q352*'DATA COLLATED'!Q352","v":1.1127083999999563},{"$f":"'GRAPHS FOR PAPER'!B$25+'GRAPHS FOR PAPER'!B$26*'DATA COLLATED'!Q352","v":24.549683999999949}]
[null,null,null,null,null,null,null,null,null,null,null,null,null,null,null,null,1.4100000000000801,{"$f":"'GRAPHS FOR PAPER'!B$20+'GRAPHS FOR PAPER'!B$21*'DATA COLLATED'!Q353+'GRAPHS FOR PAPER'!B$22*'DATA COLLATED'!Q353*'DATA COLLATED'!Q353","v":1.1072276989999561},{"$f":"'GRAPHS FOR PAPER'!B$25+'GRAPHS FOR PAPER'!B$26*'DATA COLLATED'!Q353","v":24.543674599999949}]
[null,null,null,null,null,null,null,null,null,null,null,null,null,null,null,null,1.4200000000000801,{"$f":"'GRAPHS FOR PAPER'!B$20+'GRAPHS FOR PAPER'!B$21*'DATA COLLATED'!Q354+'GRAPHS FOR PAPER'!B$22*'DATA COLLATED'!Q354*'DATA COLLATED'!Q354","v":1.1017153559999557},{"$f":"'GRAPHS FOR PAPER'!B$25+'GRAPHS FOR PAPER'!B$26*'DATA COLLATED'!Q354","v":24.53766519999995}]
[null,null,null,null,null,null,null,null,null,null,null,null,null,null,null,null,1.4300000000000801,{"$f":"'GRAPHS FOR PAPER'!B$20+'GRAPHS FOR PAPER'!B$21*'DATA COLLATED'!Q355+'GRAPHS FOR PAPER'!B$22*'DATA COLLATED'!Q355*'DATA COLLATED'!Q355","v":1.0961713709999557},{"$f":"'GRAPHS FOR PAPER'!B$25+'GRAPHS FOR PAPER'!B$26*'DATA COLLATED'!Q355","v":24.53165579999995}]
[null,null,null,null,null,null,null,null,null,null,null,null,null,null,null,null,1.4400000000000801,{"$f":"'GRAPHS FOR PAPER'!B$20+'GRAPHS FOR PAPER'!B$21*'DATA COLLATED'!Q356+'GRAPHS FOR PAPER'!B$22*'DATA COLLATED'!Q356*'DATA COLLATED'!Q356","v":1.0905957439999554},{"$f":"'GRAPHS FOR PAPER'!B$25+'GRAPHS FOR PAPER'!B$26*'DATA COLLATED'!Q356","v":24.52564639999995}]
[null,null,null,null,null,null,null,null,null,null,null,null,null,null,null,null,1.4500000000000799,{"$f":"'GRAPHS FOR PAPER'!B$20+'GRAPHS FOR PAPER'!B$21*'DATA COLLATED'!Q357+'GRAPHS FOR PAPER'!B$22*'DATA COLLATED'!Q357*'DATA COLLATED'!Q357","v":1.0849884749999554},{"$f":"'GRAPHS FOR PAPER'!B$25+'GRAPHS FOR PAPER'!B$26*'DATA COLLATED'!Q357","v":24.51963699999995}]
[null,null,null,null,null,null,null,null,null,null,null,null,null,null,null,null,1.4600000000000799,{"$f":"'GRAPHS FOR PAPER'!B$20+'GRAPHS FOR PAPER'!B$21*'DATA COLLATED'!Q358+'GRAPHS FOR PAPER'!B$22*'DATA COLLATED'!Q358*'DATA COLLATED'!Q358","v":1.0793495639999549},{"$f":"'GRAPHS FOR PAPER'!B$25+'GRAPHS FOR PAPER'!B$26*'DATA COLLATED'!Q358","v":24.51362759999995}]
[null,null,null,null,null,null,null,null,null,null,null,null,null,null,null,null,1.4700000000000799,{"$f":"'GRAPHS FOR PAPER'!B$20+'GRAPHS FOR PAPER'!B$21*'DATA COLLATED'!Q359+'GRAPHS FOR PAPER'!B$22*'DATA COLLATED'!Q359*'DATA COLLATED'!Q359","v":1.0736790109999548},{"$f":"'GRAPHS FOR PAPER'!B$25+'GRAPHS FOR PAPER'!B$26*'DATA COLLATED'!Q359","v":24.50761819999995}]
[null,null,null,null,null,null,null,null,null,null,null,null,null,null,null,null,1.4800000000000799,{"$f":"'GRAPHS FOR PAPER'!B$20+'GRAPHS FOR PAPER'!B$21*'DATA COLLATED'!Q360+'GRAPHS FOR PAPER'!B$22*'DATA COLLATED'!Q360*'DATA COLLATED'!Q360","v":1.0679768159999543},{"$f":"'GRAPHS FOR PAPER'!B$25+'GRAPHS FOR PAPER'!B$26*'DATA COLLATED'!Q360","v":24.50160879999995}]
[null,null,null,null,null,null,null,null,null,null,null,null,null,null,null,null,1.4900000000000799,{"$f":"'GRAPHS FOR PAPER'!B$20+'GRAPHS FOR PAPER'!B$21*'DATA COLLATED'!Q361+'GRAPHS FOR PAPER'!B$22*'DATA COLLATED'!Q361*'DATA COLLATED'!Q361","v":1.0622429789999543},{"$f":"'GRAPHS FOR PAPER'!B$25+'GRAPHS FOR PAPER'!B$26*'DATA COLLATED'!Q361","v":24.49559939999995}]
[null,null,null,null,null,null,null,null,null,null,null,null,null,null,null,null,1.5000000000000799,{"$f":"'GRAPHS FOR PAPER'!B$20+'GRAPHS FOR PAPER'!B$21*'DATA COLLATED'!Q362+'GRAPHS FOR PAPER'!B$22*'DATA COLLATED'!Q362*'DATA COLLATED'!Q362","v":1.056477499999954},{"$f":"'GRAPHS FOR PAPER'!B$25+'GRAPHS FOR PAPER'!B$26*'DATA COLLATED'!Q362","v":24.48958999999995}]
[null,null,null,null,null,null,null,null,null,null,null,null,null,null,null,null,1.5100000000000799,{"$f":"'GRAPHS FOR PAPER'!B$20+'GRAPHS FOR PAPER'!B$21*'DATA COLLATED'!Q363+'GRAPHS FOR PAPER'!B$22*'DATA COLLATED'!Q363*'DATA COLLATED'!Q363","v":1.0506803789999537},{"$f":"'GRAPHS FOR PAPER'!B$25+'GRAPHS FOR PAPER'!B$26*'DATA COLLATED'!Q363","v":24.48358059999995}]
[null,null,null,null,null,null,null,null,null,null,null,null,null,null,null,null,1.52000000000008,{"$f":"'GRAPHS FOR PAPER'!B$20+'GRAPHS FOR PAPER'!B$21*'DATA COLLATED'!Q364+'GRAPHS FOR PAPER'!B$22*'DATA COLLATED'!Q364*'DATA COLLATED'!Q364","v":1.0448516159999532},{"$f":"'GRAPHS FOR PAPER'!B$25+'GRAPHS FOR PAPER'!B$26*'DATA COLLATED'!Q364","v":24.47757119999995}]
[null,null,null,null,null,null,null,null,null,null,null,null,null,null,null,null,1.53000000000008,{"$f":"'GRAPHS FOR PAPER'!B$20+'GRAPHS FOR PAPER'!B$21*'DATA COLLATED'!Q365+'GRAPHS FOR PAPER'!B$22*'DATA COLLATED'!Q365*'DATA COLLATED'!Q365","v":1.0389912109999533},{"$f":"'GRAPHS FOR PAPER'!B$25+'GRAPHS FOR PAPER'!B$26*'DATA COLLATED'!Q365","v":24.47156179999995}]
[null,null,null,null,null,null,null,null,null,null,null,null,null,null,null,null,1.54000000000008,{"$f":"'GRAPHS FOR PAPER'!B$20+'GRAPHS FOR PAPER'!B$21*'DATA COLLATED'!Q366+'GRAPHS FOR PAPER'!B$22*'DATA COLLATED'!Q366*'DATA COLLATED'!Q366","v":1.0330991639999527},{"$f":"'GRAPHS FOR PAPER'!B$25+'GRAPHS FOR PAPER'!B$26*'DATA COLLATED'!Q366","v":24.46555239999995}]
[null,null,null,null,null,null,null,null,null,null,null,null,null,null,null,null,1.55000000000008,{"$f":"'GRAPHS FOR PAPER'!B$20+'GRAPHS FOR PAPER'!B$21*'DATA COLLATED'!Q367+'GRAPHS FOR PAPER'!B$22*'DATA COLLATED'!Q367*'DATA COLLATED'!Q367","v":1.0271754749999527},{"$f":"'GRAPHS FOR PAPER'!B$25+'GRAPHS FOR PAPER'!B$26*'DATA COLLATED'!Q367","v":24.45954299999995}]
[null,null,null,null,null,null,null,null,null,null,null,null,null,null,null,null,1.56000000000008,{"$f":"'GRAPHS FOR PAPER'!B$20+'GRAPHS FOR PAPER'!B$21*'DATA COLLATED'!Q368+'GRAPHS FOR PAPER'!B$22*'DATA COLLATED'!Q368*'DATA COLLATED'!Q368","v":1.0212201439999524},{"$f":"'GRAPHS FOR PAPER'!B$25+'GRAPHS FOR PAPER'!B$26*'DATA COLLATED'!Q368","v":24.45353359999995}]
[null,null,null,null,null,null,null,null,null,null,null,null,null,null,null,null,1.57000000000008,{"$f":"'GRAPHS FOR PAPER'!B$20+'GRAPHS FOR PAPER'!B$21*'DATA COLLATED'!Q369+'GRAPHS FOR PAPER'!B$22*'DATA COLLATED'!Q369*'DATA COLLATED'!Q369","v":1.015233170999952},{"$f":"'GRAPHS FOR PAPER'!B$25+'GRAPHS FOR PAPER'!B$26*'DATA COLLATED'!Q369","v":24.44752419999995}]
[null,null,null,null,null,null,null,null,null,null,null,null,null,null,null,null,1.58000000000008,{"$f":"'GRAPHS FOR PAPER'!B$20+'GRAPHS FOR PAPER'!B$21*'DATA COLLATED'!Q370+'GRAPHS FOR PAPER'!B$22*'DATA COLLATED'!Q370*'DATA COLLATED'!Q370","v":1.0092145559999517},{"$f":"'GRAPHS FOR PAPER'!B$25+'GRAPHS FOR PAPER'!B$26*'DATA COLLATED'!Q370","v":24.44151479999995}]
[null,null,null,null,null,null,null,null,null,null,null,null,null,null,null,null,1.59000000000009,{"$f":"'GRAPHS FOR PAPER'!B$20+'GRAPHS FOR PAPER'!B$21*'DATA COLLATED'!Q371+'GRAPHS FOR PAPER'!B$22*'DATA COLLATED'!Q371*'DATA COLLATED'!Q371","v":1.0031642989999454},{"$f":"'GRAPHS FOR PAPER'!B$25+'GRAPHS FOR PAPER'!B$26*'DATA COLLATED'!Q371","v":24.435505399999943}]
[null,null,null,null,null,null,null,null,null,null,null,null,null,null,null,null,1.60000000000009,{"$f":"'GRAPHS FOR PAPER'!B$20+'GRAPHS FOR PAPER'!B$21*'DATA COLLATED'!Q372+'GRAPHS FOR PAPER'!B$22*'DATA COLLATED'!Q372*'DATA COLLATED'!Q372","v":0.99708239999994519},{"$f":"'GRAPHS FOR PAPER'!B$25+'GRAPHS FOR PAPER'!B$26*'DATA COLLATED'!Q372","v":24.429495999999943}]
[null,null,null,null,null,null,null,null,null,null,null,null,null,null,null,null,1.61000000000009,{"$f":"'GRAPHS FOR PAPER'!B$20+'GRAPHS FOR PAPER'!B$21*'DATA COLLATED'!Q373+'GRAPHS FOR PAPER'!B$22*'DATA COLLATED'!Q373*'DATA COLLATED'!Q373","v":0.9909688589999448},{"$f":"'GRAPHS FOR PAPER'!B$25+'GRAPHS FOR PAPER'!B$26*'DATA COLLATED'!Q373","v":24.423486599999944}]
[null,null,null,null,null,null,null,null,null,null,null,null,null,null,null,null,1.62000000000009,{"$f":"'GRAPHS FOR PAPER'!B$20+'GRAPHS FOR PAPER'!B$21*'DATA COLLATED'!Q374+'GRAPHS FOR PAPER'!B$22*'DATA COLLATED'!Q374*'DATA COLLATED'!Q374","v":0.98482367599994469},{"$f":"'GRAPHS FOR PAPER'!B$25+'GRAPHS FOR PAPER'!B$26*'DATA COLLATED'!Q374","v":24.417477199999944}]
[null,null,null,null,null,null,null,null,null,null,null,null,null,null,null,null,1.63000000000009,{"$f":"'GRAPHS FOR PAPER'!B$20+'GRAPHS FOR PAPER'!B$21*'DATA COLLATED'!Q375+'GRAPHS FOR PAPER'!B$22*'DATA COLLATED'!Q375*'DATA COLLATED'!Q375","v":0.97864685099994442},{"$f":"'GRAPHS FOR PAPER'!B$25+'GRAPHS FOR PAPER'!B$26*'DATA COLLATED'!Q375","v":24.411467799999944}]
[null,null,null,null,null,null,null,null,null,null,null,null,null,null,null,null,1.6400000000000901,{"$f":"'GRAPHS FOR PAPER'!B$20+'GRAPHS FOR PAPER'!B$21*'DATA COLLATED'!Q376+'GRAPHS FOR PAPER'!B$22*'DATA COLLATED'!Q376*'DATA COLLATED'!Q376","v":0.97243838399994398},{"$f":"'GRAPHS FOR PAPER'!B$25+'GRAPHS FOR PAPER'!B$26*'DATA COLLATED'!Q376","v":24.405458399999944}]
[null,null,null,null,null,null,null,null,null,null,null,null,null,null,null,null,1.6500000000000901,{"$f":"'GRAPHS FOR PAPER'!B$20+'GRAPHS FOR PAPER'!B$21*'DATA COLLATED'!Q377+'GRAPHS FOR PAPER'!B$22*'DATA COLLATED'!Q377*'DATA COLLATED'!Q377","v":0.96619827499994382},{"$f":"'GRAPHS FOR PAPER'!B$25+'GRAPHS FOR PAPER'!B$26*'DATA COLLATED'!Q377","v":24.399448999999944}]
[null,null,null,null,null,null,null,null,null,null,null,null,null,null,null,null,1.6600000000000901,{"$f":"'GRAPHS FOR PAPER'!B$20+'GRAPHS FOR PAPER'!B$21*'DATA COLLATED'!Q378+'GRAPHS FOR PAPER'!B$22*'DATA COLLATED'!Q378*'DATA COLLATED'!Q378","v":0.95992652399994349},{"$f":"'GRAPHS FOR PAPER'!B$25+'GRAPHS FOR PAPER'!B$26*'DATA COLLATED'!Q378","v":24.393439599999944}]
[null,null,null,null,null,null,null,null,null,null,null,null,null,null,null,null,1.6700000000000901,{"$f":"'GRAPHS FOR PAPER'!B$20+'GRAPHS FOR PAPER'!B$21*'DATA COLLATED'!Q379+'GRAPHS FOR PAPER'!B$22*'DATA COLLATED'!Q379*'DATA COLLATED'!Q379","v":0.95362313099994322},{"$f":"'GRAPHS FOR PAPER'!B$25+'GRAPHS FOR PAPER'!B$26*'DATA COLLATED'!Q379","v":24.387430199999944}]
[null,null,null,null,null,null,null,null,null,null,null,null,null,null,null,null,1.6800000000000901,{"$f":"'GRAPHS FOR PAPER'!B$20+'GRAPHS FOR PAPER'!B$21*'DATA COLLATED'!Q380+'GRAPHS FOR PAPER'!B$22*'DATA COLLATED'!Q380*'DATA COLLATED'!Q380","v":0.94728809599994279},{"$f":"'GRAPHS FOR PAPER'!B$25+'GRAPHS FOR PAPER'!B$26*'DATA COLLATED'!Q380","v":24.381420799999944}]
[null,null,null,null,null,null,null,null,null,null,null,null,null,null,null,null,1.6900000000000901,{"$f":"'GRAPHS FOR PAPER'!B$20+'GRAPHS FOR PAPER'!B$21*'DATA COLLATED'!Q381+'GRAPHS FOR PAPER'!B$22*'DATA COLLATED'!Q381*'DATA COLLATED'!Q381","v":0.94092141899994264},{"$f":"'GRAPHS FOR PAPER'!B$25+'GRAPHS FOR PAPER'!B$26*'DATA COLLATED'!Q381","v":24.375411399999944}]
[null,null,null,null,null,null,null,null,null,null,null,null,null,null,null,null,1.7000000000000901,{"$f":"'GRAPHS FOR PAPER'!B$20+'GRAPHS FOR PAPER'!B$21*'DATA COLLATED'!Q382+'GRAPHS FOR PAPER'!B$22*'DATA COLLATED'!Q382*'DATA COLLATED'!Q382","v":0.93452309999994232},{"$f":"'GRAPHS FOR PAPER'!B$25+'GRAPHS FOR PAPER'!B$26*'DATA COLLATED'!Q382","v":24.369401999999944}]
[null,null,null,null,null,null,null,null,null,null,null,null,null,null,null,null,1.7100000000000899,{"$f":"'GRAPHS FOR PAPER'!B$20+'GRAPHS FOR PAPER'!B$21*'DATA COLLATED'!Q383+'GRAPHS FOR PAPER'!B$22*'DATA COLLATED'!Q383*'DATA COLLATED'!Q383","v":0.92809313899994228},{"$f":"'GRAPHS FOR PAPER'!B$25+'GRAPHS FOR PAPER'!B$26*'DATA COLLATED'!Q383","v":24.363392599999944}]
[null,null,null,null,null,null,null,null,null,null,null,null,null,null,null,null,1.7200000000000899,{"$f":"'GRAPHS FOR PAPER'!B$20+'GRAPHS FOR PAPER'!B$21*'DATA COLLATED'!Q384+'GRAPHS FOR PAPER'!B$22*'DATA COLLATED'!Q384*'DATA COLLATED'!Q384","v":0.92163153599994185},{"$f":"'GRAPHS FOR PAPER'!B$25+'GRAPHS FOR PAPER'!B$26*'DATA COLLATED'!Q384","v":24.357383199999944}]
[null,null,null,null,null,null,null,null,null,null,null,null,null,null,null,null,1.7300000000000899,{"$f":"'GRAPHS FOR PAPER'!B$20+'GRAPHS FOR PAPER'!B$21*'DATA COLLATED'!Q385+'GRAPHS FOR PAPER'!B$22*'DATA COLLATED'!Q385*'DATA COLLATED'!Q385","v":0.91513829099994171},{"$f":"'GRAPHS FOR PAPER'!B$25+'GRAPHS FOR PAPER'!B$26*'DATA COLLATED'!Q385","v":24.351373799999944}]
[null,null,null,null,null,null,null,null,null,null,null,null,null,null,null,null,1.7400000000000899,{"$f":"'GRAPHS FOR PAPER'!B$20+'GRAPHS FOR PAPER'!B$21*'DATA COLLATED'!Q386+'GRAPHS FOR PAPER'!B$22*'DATA COLLATED'!Q386*'DATA COLLATED'!Q386","v":0.90861340399994117},{"$f":"'GRAPHS FOR PAPER'!B$25+'GRAPHS FOR PAPER'!B$26*'DATA COLLATED'!Q386","v":24.345364399999944}]
[null,null,null,null,null,null,null,null,null,null,null,null,null,null,null,null,1.7500000000000899,{"$f":"'GRAPHS FOR PAPER'!B$20+'GRAPHS FOR PAPER'!B$21*'DATA COLLATED'!Q387+'GRAPHS FOR PAPER'!B$22*'DATA COLLATED'!Q387*'DATA COLLATED'!Q387","v":0.90205687499994103},{"$f":"'GRAPHS FOR PAPER'!B$25+'GRAPHS FOR PAPER'!B$26*'DATA COLLATED'!Q387","v":24.339354999999944}]
[null,null,null,null,null,null,null,null,null,null,null,null,null,null,null,null,1.7600000000000899,{"$f":"'GRAPHS FOR PAPER'!B$20+'GRAPHS FOR PAPER'!B$21*'DATA COLLATED'!Q388+'GRAPHS FOR PAPER'!B$22*'DATA COLLATED'!Q388*'DATA COLLATED'!Q388","v":0.89546870399994083},{"$f":"'GRAPHS FOR PAPER'!B$25+'GRAPHS FOR PAPER'!B$26*'DATA COLLATED'!Q388","v":24.333345599999944}]
[null,null,null,null,null,null,null,null,null,null,null,null,null,null,null,null,1.7700000000000899,{"$f":"'GRAPHS FOR PAPER'!B$20+'GRAPHS FOR PAPER'!B$21*'DATA COLLATED'!Q389+'GRAPHS FOR PAPER'!B$22*'DATA COLLATED'!Q389*'DATA COLLATED'!Q389","v":0.88884889099994047},{"$f":"'GRAPHS FOR PAPER'!B$25+'GRAPHS FOR PAPER'!B$26*'DATA COLLATED'!Q389","v":24.327336199999944}]
[null,null,null,null,null,null,null,null,null,null,null,null,null,null,null,null,1.78000000000009,{"$f":"'GRAPHS FOR PAPER'!B$20+'GRAPHS FOR PAPER'!B$21*'DATA COLLATED'!Q390+'GRAPHS FOR PAPER'!B$22*'DATA COLLATED'!Q390*'DATA COLLATED'!Q390","v":0.88219743599994016},{"$f":"'GRAPHS FOR PAPER'!B$25+'GRAPHS FOR PAPER'!B$26*'DATA COLLATED'!Q390","v":24.321326799999945}]
[null,null,null,null,null,null,null,null,null,null,null,null,null,null,null,null,1.79000000000009,{"$f":"'GRAPHS FOR PAPER'!B$20+'GRAPHS FOR PAPER'!B$21*'DATA COLLATED'!Q391+'GRAPHS FOR PAPER'!B$22*'DATA COLLATED'!Q391*'DATA COLLATED'!Q391","v":0.8755143389999398},{"$f":"'GRAPHS FOR PAPER'!B$25+'GRAPHS FOR PAPER'!B$26*'DATA COLLATED'!Q391","v":24.315317399999945}]
[null,null,null,null,null,null,null,null,null,null,null,null,null,null,null,null,1.80000000000009,{"$f":"'GRAPHS FOR PAPER'!B$20+'GRAPHS FOR PAPER'!B$21*'DATA COLLATED'!Q392+'GRAPHS FOR PAPER'!B$22*'DATA COLLATED'!Q392*'DATA COLLATED'!Q392","v":0.86879959999993961},{"$f":"'GRAPHS FOR PAPER'!B$25+'GRAPHS FOR PAPER'!B$26*'DATA COLLATED'!Q392","v":24.309307999999945}]
[null,null,null,null,null,null,null,null,null,null,null,null,null,null,null,null,1.81000000000009,{"$f":"'GRAPHS FOR PAPER'!B$20+'GRAPHS FOR PAPER'!B$21*'DATA COLLATED'!Q393+'GRAPHS FOR PAPER'!B$22*'DATA COLLATED'!Q393*'DATA COLLATED'!Q393","v":0.86205321899993925},{"$f":"'GRAPHS FOR PAPER'!B$25+'GRAPHS FOR PAPER'!B$26*'DATA COLLATED'!Q393","v":24.303298599999945}]
[null,null,null,null,null,null,null,null,null,null,null,null,null,null,null,null,1.82000000000009,{"$f":"'GRAPHS FOR PAPER'!B$20+'GRAPHS FOR PAPER'!B$21*'DATA COLLATED'!Q394+'GRAPHS FOR PAPER'!B$22*'DATA COLLATED'!Q394*'DATA COLLATED'!Q394","v":0.85527519599993906},{"$f":"'GRAPHS FOR PAPER'!B$25+'GRAPHS FOR PAPER'!B$26*'DATA COLLATED'!Q394","v":24.297289199999945}]
[null,null,null,null,null,null,null,null,null,null,null,null,null,null,null,null,1.83000000000009,{"$f":"'GRAPHS FOR PAPER'!B$20+'GRAPHS FOR PAPER'!B$21*'DATA COLLATED'!Q395+'GRAPHS FOR PAPER'!B$22*'DATA COLLATED'!Q395*'DATA COLLATED'!Q395","v":0.8484655309999386},{"$f":"'GRAPHS FOR PAPER'!B$25+'GRAPHS FOR PAPER'!B$26*'DATA COLLATED'!Q395","v":24.291279799999945}]
[null,null,null,null,null,null,null,null,null,null,null,null,null,null,null,null,1.84000000000009,{"$f":"'GRAPHS FOR PAPER'!B$20+'GRAPHS FOR PAPER'!B$21*'DATA COLLATED'!Q396+'GRAPHS FOR PAPER'!B$22*'DATA COLLATED'!Q396*'DATA COLLATED'!Q396","v":0.84162422399993853},{"$f":"'GRAPHS FOR PAPER'!B$25+'GRAPHS FOR PAPER'!B$26*'DATA COLLATED'!Q396","v":24.285270399999945}]
[null,null,null,null,null,null,null,null,null,null,null,null,null,null,null,null,1.85000000000009,{"$f":"'GRAPHS FOR PAPER'!B$20+'GRAPHS FOR PAPER'!B$21*'DATA COLLATED'!Q397+'GRAPHS FOR PAPER'!B$22*'DATA COLLATED'!Q397*'DATA COLLATED'!Q397","v":0.83475127499993806},{"$f":"'GRAPHS FOR PAPER'!B$25+'GRAPHS FOR PAPER'!B$26*'DATA COLLATED'!Q397","v":24.279260999999945}]
[null,null,null,null,null,null,null,null,null,null,null,null,null,null,null,null,1.86000000000009,{"$f":"'GRAPHS FOR PAPER'!B$20+'GRAPHS FOR PAPER'!B$21*'DATA COLLATED'!Q398+'GRAPHS FOR PAPER'!B$22*'DATA COLLATED'!Q398*'DATA COLLATED'!Q398","v":0.82784668399993788},{"$f":"'GRAPHS FOR PAPER'!B$25+'GRAPHS FOR PAPER'!B$26*'DATA COLLATED'!Q398","v":24.273251599999945}]
[null,null,null,null,null,null,null,null,null,null,null,null,null,null,null,null,1.87000000000009,{"$f":"'GRAPHS FOR PAPER'!B$20+'GRAPHS FOR PAPER'!B$21*'DATA COLLATED'!Q399+'GRAPHS FOR PAPER'!B$22*'DATA COLLATED'!Q399*'DATA COLLATED'!Q399","v":0.82091045099993742},{"$f":"'GRAPHS FOR PAPER'!B$25+'GRAPHS FOR PAPER'!B$26*'DATA COLLATED'!Q399","v":24.267242199999945}]
[null,null,null,null,null,null,null,null,null,null,null,null,null,null,null,null,1.88000000000009,{"$f":"'GRAPHS FOR PAPER'!B$20+'GRAPHS FOR PAPER'!B$21*'DATA COLLATED'!Q400+'GRAPHS FOR PAPER'!B$22*'DATA COLLATED'!Q400*'DATA COLLATED'!Q400","v":0.81394257599993725},{"$f":"'GRAPHS FOR PAPER'!B$25+'GRAPHS FOR PAPER'!B$26*'DATA COLLATED'!Q400","v":24.261232799999945}]
[null,null,null,null,null,null,null,null,null,null,null,null,null,null,null,null,1.8900000000000901,{"$f":"'GRAPHS FOR PAPER'!B$20+'GRAPHS FOR PAPER'!B$21*'DATA COLLATED'!Q401+'GRAPHS FOR PAPER'!B$22*'DATA COLLATED'!Q401*'DATA COLLATED'!Q401","v":0.80694305899993701},{"$f":"'GRAPHS FOR PAPER'!B$25+'GRAPHS FOR PAPER'!B$26*'DATA COLLATED'!Q401","v":24.255223399999945}]
[null,null,null,null,null,null,null,null,null,null,null,null,null,null,null,null,1.9000000000000901,{"$f":"'GRAPHS FOR PAPER'!B$20+'GRAPHS FOR PAPER'!B$21*'DATA COLLATED'!Q402+'GRAPHS FOR PAPER'!B$22*'DATA COLLATED'!Q402*'DATA COLLATED'!Q402","v":0.79991189999993673},{"$f":"'GRAPHS FOR PAPER'!B$25+'GRAPHS FOR PAPER'!B$26*'DATA COLLATED'!Q402","v":24.249213999999945}]
[null,null,null,null,null,null,null,null,null,null,null,null,null,null,null,null,1.9100000000000901,{"$f":"'GRAPHS FOR PAPER'!B$20+'GRAPHS FOR PAPER'!B$21*'DATA COLLATED'!Q403+'GRAPHS FOR PAPER'!B$22*'DATA COLLATED'!Q403*'DATA COLLATED'!Q403","v":0.79284909899993627},{"$f":"'GRAPHS FOR PAPER'!B$25+'GRAPHS FOR PAPER'!B$26*'DATA COLLATED'!Q403","v":24.243204599999945}]
[null,null,null,null,null,null,null,null,null,null,null,null,null,null,null,null,1.9200000000000901,{"$f":"'GRAPHS FOR PAPER'!B$20+'GRAPHS FOR PAPER'!B$21*'DATA COLLATED'!Q404+'GRAPHS FOR PAPER'!B$22*'DATA COLLATED'!Q404*'DATA COLLATED'!Q404","v":0.7857546559999361},{"$f":"'GRAPHS FOR PAPER'!B$25+'GRAPHS FOR PAPER'!B$26*'DATA COLLATED'!Q404","v":24.237195199999945}]
[null,null,null,null,null,null,null,null,null,null,null,null,null,null,null,null,1.9300000000000901,{"$f":"'GRAPHS FOR PAPER'!B$20+'GRAPHS FOR PAPER'!B$21*'DATA COLLATED'!Q405+'GRAPHS FOR PAPER'!B$22*'DATA COLLATED'!Q405*'DATA COLLATED'!Q405","v":0.77862857099993588},{"$f":"'GRAPHS FOR PAPER'!B$25+'GRAPHS FOR PAPER'!B$26*'DATA COLLATED'!Q405","v":24.231185799999945}]
[null,null,null,null,null,null,null,null,null,null,null,null,null,null,null,null,1.9400000000000901,{"$f":"'GRAPHS FOR PAPER'!B$20+'GRAPHS FOR PAPER'!B$21*'DATA COLLATED'!Q406+'GRAPHS FOR PAPER'!B$22*'DATA COLLATED'!Q406*'DATA COLLATED'!Q406","v":0.77147084399993548},{"$f":"'GRAPHS FOR PAPER'!B$25+'GRAPHS FOR PAPER'!B$26*'DATA COLLATED'!Q406","v":24.225176399999945}]
[null,null,null,null,null,null,null,null,null,null,null,null,null,null,null,null,1.9500000000000901,{"$f":"'GRAPHS FOR PAPER'!B$20+'GRAPHS FOR PAPER'!B$21*'DATA COLLATED'!Q407+'GRAPHS FOR PAPER'!B$22*'DATA COLLATED'!Q407*'DATA COLLATED'!Q407","v":0.76428147499993526},{"$f":"'GRAPHS FOR PAPER'!B$25+'GRAPHS FOR PAPER'!B$26*'DATA COLLATED'!Q407","v":24.219166999999945}]
[null,null,null,null,null,null,null,null,null,null,null,null,null,null,null,null,1.9600000000000899,{"$f":"'GRAPHS FOR PAPER'!B$20+'GRAPHS FOR PAPER'!B$21*'DATA COLLATED'!Q408+'GRAPHS FOR PAPER'!B$22*'DATA COLLATED'!Q408*'DATA COLLATED'!Q408","v":0.7570604639999351},{"$f":"'GRAPHS FOR PAPER'!B$25+'GRAPHS FOR PAPER'!B$26*'DATA COLLATED'!Q408","v":24.213157599999946}]
[null,null,null,null,null,null,null,null,null,null,null,null,null,null,null,null,1.9700000000000899,{"$f":"'GRAPHS FOR PAPER'!B$20+'GRAPHS FOR PAPER'!B$21*'DATA COLLATED'!Q409+'GRAPHS FOR PAPER'!B$22*'DATA COLLATED'!Q409*'DATA COLLATED'!Q409","v":0.74980781099993477},{"$f":"'GRAPHS FOR PAPER'!B$25+'GRAPHS FOR PAPER'!B$26*'DATA COLLATED'!Q409","v":24.207148199999946}]
[null,null,null,null,null,null,null,null,null,null,null,null,null,null,null,null,1.9800000000000899,{"$f":"'GRAPHS FOR PAPER'!B$20+'GRAPHS FOR PAPER'!B$21*'DATA COLLATED'!Q410+'GRAPHS FOR PAPER'!B$22*'DATA COLLATED'!Q410*'DATA COLLATED'!Q410","v":0.74252351599993449},{"$f":"'GRAPHS FOR PAPER'!B$25+'GRAPHS FOR PAPER'!B$26*'DATA COLLATED'!Q410","v":24.201138799999946}]
[null,null,null,null,null,null,null,null,null,null,null,null,null,null,null,null,1.9900000000000899,{"$f":"'GRAPHS FOR PAPER'!B$20+'GRAPHS FOR PAPER'!B$21*'DATA COLLATED'!Q411+'GRAPHS FOR PAPER'!B$22*'DATA COLLATED'!Q411*'DATA COLLATED'!Q411","v":0.73520757899993416},{"$f":"'GRAPHS FOR PAPER'!B$25+'GRAPHS FOR PAPER'!B$26*'DATA COLLATED'!Q411","v":24.195129399999946}]
[null,null,null,null,null,null,null,null,null,null,null,null,null,null,null,null,2.0000000000000902,{"$f":"'GRAPHS FOR PAPER'!B$20+'GRAPHS FOR PAPER'!B$21*'DATA COLLATED'!Q412+'GRAPHS FOR PAPER'!B$22*'DATA COLLATED'!Q412*'DATA COLLATED'!Q412","v":0.72785999999993367},{"$f":"'GRAPHS FOR PAPER'!B$25+'GRAPHS FOR PAPER'!B$26*'DATA COLLATED'!Q412","v":24.189119999999946}]
[null,null,null,null,null,null,null,null,null,null,null,null,null,null,null,null,2.0100000000001002,{"$f":"'GRAPHS FOR PAPER'!B$20+'GRAPHS FOR PAPER'!B$21*'DATA COLLATED'!Q413+'GRAPHS FOR PAPER'!B$22*'DATA COLLATED'!Q413*'DATA COLLATED'!Q413","v":0.72048077899992602},{"$f":"'GRAPHS FOR PAPER'!B$25+'GRAPHS FOR PAPER'!B$26*'DATA COLLATED'!Q413","v":24.183110599999939}]
[null,null,null,null,null,null,null,null,null,null,null,null,null,null,null,null,2.0200000000000999,{"$f":"'GRAPHS FOR PAPER'!B$20+'GRAPHS FOR PAPER'!B$21*'DATA COLLATED'!Q414+'GRAPHS FOR PAPER'!B$22*'DATA COLLATED'!Q414*'DATA COLLATED'!Q414","v":0.71306991599992597},{"$f":"'GRAPHS FOR PAPER'!B$25+'GRAPHS FOR PAPER'!B$26*'DATA COLLATED'!Q414","v":24.177101199999939}]
[null,null,null,null,null,null,null,null,null,null,null,null,null,null,null,null,2.03000000000009,{"$f":"'GRAPHS FOR PAPER'!B$20+'GRAPHS FOR PAPER'!B$21*'DATA COLLATED'!Q415+'GRAPHS FOR PAPER'!B$22*'DATA COLLATED'!Q415*'DATA COLLATED'!Q415","v":0.70562741099993298},{"$f":"'GRAPHS FOR PAPER'!B$25+'GRAPHS FOR PAPER'!B$26*'DATA COLLATED'!Q415","v":24.171091799999942}]
[null,null,null,null,null,null,null,null,null,null,null,null,null,null,null,null,2.0400000000001,{"$f":"'GRAPHS FOR PAPER'!B$20+'GRAPHS FOR PAPER'!B$21*'DATA COLLATED'!Q416+'GRAPHS FOR PAPER'!B$22*'DATA COLLATED'!Q416*'DATA COLLATED'!Q416","v":0.69815326399992528},{"$f":"'GRAPHS FOR PAPER'!B$25+'GRAPHS FOR PAPER'!B$26*'DATA COLLATED'!Q416","v":24.165082399999939}]
[null,null,null,null,null,null,null,null,null,null,null,null,null,null,null,null,2.0500000000001002,{"$f":"'GRAPHS FOR PAPER'!B$20+'GRAPHS FOR PAPER'!B$21*'DATA COLLATED'!Q417+'GRAPHS FOR PAPER'!B$22*'DATA COLLATED'!Q417*'DATA COLLATED'!Q417","v":0.69064747499992474},{"$f":"'GRAPHS FOR PAPER'!B$25+'GRAPHS FOR PAPER'!B$26*'DATA COLLATED'!Q417","v":24.159072999999939}]
[null,null,null,null,null,null,null,null,null,null,null,null,null,null,null,null,2.0600000000001,{"$f":"'GRAPHS FOR PAPER'!B$20+'GRAPHS FOR PAPER'!B$21*'DATA COLLATED'!Q418+'GRAPHS FOR PAPER'!B$22*'DATA COLLATED'!Q418*'DATA COLLATED'!Q418","v":0.68311004399992459},{"$f":"'GRAPHS FOR PAPER'!B$25+'GRAPHS FOR PAPER'!B$26*'DATA COLLATED'!Q418","v":24.153063599999939}]
[null,null,null,null,null,null,null,null,null,null,null,null,null,null,null,null,2.0700000000001002,{"$f":"'GRAPHS FOR PAPER'!B$20+'GRAPHS FOR PAPER'!B$21*'DATA COLLATED'!Q419+'GRAPHS FOR PAPER'!B$22*'DATA COLLATED'!Q419*'DATA COLLATED'!Q419","v":0.67554097099992405},{"$f":"'GRAPHS FOR PAPER'!B$25+'GRAPHS FOR PAPER'!B$26*'DATA COLLATED'!Q419","v":24.147054199999939}]
[null,null,null,null,null,null,null,null,null,null,null,null,null,null,null,null,2.0800000000001,{"$f":"'GRAPHS FOR PAPER'!B$20+'GRAPHS FOR PAPER'!B$21*'DATA COLLATED'!Q420+'GRAPHS FOR PAPER'!B$22*'DATA COLLATED'!Q420*'DATA COLLATED'!Q420","v":0.6679402559999239},{"$f":"'GRAPHS FOR PAPER'!B$25+'GRAPHS FOR PAPER'!B$26*'DATA COLLATED'!Q420","v":24.141044799999939}]